Local authority department which incurred the expenditure,Service Division,Cost Centre,Summary of the Purpose of Expenditure,Expense Type,Expense Code,Detailed Expense Type,Date of Transaction,Transaction Number,Beneficiary,Merchant Category Number,Merchant Category,Gross Amount,VAT,Net Amount
Resources,I.C.T. Services,069010,Administration,Employees,040149,Recruitment Instruction and Training,01-Sep-2016,5225848443,ARMA INTERNATIONAL,8398,Training-all costs,1.24,0.00,1.24
Children and Adult Services,Education,071801,Selby Cottage Childcare Centre,Supplies and Services,324117,Provisions,01-Sep-2016,5230211365,TESCO STORES 2278,5411,Catering costs - provisions,105.61,0.00,105.61
Children and Adult Services,Childrens Services,085957,Secure Management,Supplies and Services,324117,Provisions,01-Sep-2016,5230211389,TESCO STORES 6329,5411,Catering costs - provisions,89.92,0.00,89.92
Neighbourhood Services,Culture & Sport,010601,Spennymoor Leisure Cr - General,Supplies and Services,304259,Equipment and Materials,01-Sep-2016,5230211395,CHAIN REACTION CYCLES,5940,Equipment-purchase and rental,99.99,0.00,99.99
Neighbourhood Services,Culture & Sport,010599,Newton Aycliffe Leisure Ctr-General,Supplies and Services,304259,Equipment and Materials,01-Sep-2016,5230211397,CHAIN REACTION CYCLES,5940,Equipment-purchase and rental,99.99,0.00,99.99
Neighbourhood Services,Direct Services,021242,Catering - County Hall,Supplies and Services,324117,Provisions,01-Sep-2016,5230211409,JR HOLLAND FOODSERVICE,5422,Catering costs - provisions,130.63,0.00,130.63
Neighbourhood Services,Direct Services,021242,Catering - County Hall,Supplies and Services,324117,Provisions,01-Sep-2016,5230211411,JR HOLLAND FOODSERVICE,5422,Catering costs - provisions,31.35,0.00,31.35
Neighbourhood Services,Direct Services,021242,Catering - County Hall,Supplies and Services,324117,Provisions,01-Sep-2016,5230211413,JR HOLLAND FOODSERVICE,5422,Catering costs - provisions,13.16,0.00,13.16
Neighbourhood Services,Culture & Sport,054812,Gala Theatre - Catering etc,Supplies and Services,324117,Provisions,01-Sep-2016,5230211429,JR HOLLAND FOODSERVICE,5422,Catering costs - provisions,39.81,0.00,39.81
Children and Adult Services,Childrens Services,085300,Looked After & Permanence Strategic Manager,Supplies and Services,324117,Provisions,01-Sep-2016,5230211465,MAKRO SELF SERVICE,5300,Catering costs - provisions,67.15,0.00,67.15
Neighbourhood Services,Culture & Sport,011198,Culture & Sport Management,Supplies and Services,304403,Equipment and Materials,01-Sep-2016,5230211467,AMAZON UK RETAIL AMAZO,5999,Other consumables,24.50,0.00,24.50
Regeneration & Economic Development,Economic Development and Housing,030554,International Relations,Supplies and Services,352001,Conference Expenses,01-Sep-2016,5230211469,HOTEL MERCURE,7011,Conferencesseminars fees etc,211.11,0.00,211.11
Regeneration & Economic Development,Economic Development and Housing,030554,International Relations,Supplies and Services,352001,Conference Expenses,01-Sep-2016,5230211471,HOTEL MERCURE,7011,Conferencesseminars fees etc,238.86,0.00,238.86
Children and Adult Services,Childrens Services,085957,Secure Management,Supplies and Services,384999,Miscellaneous Expenses,01-Sep-2016,5230211495,Amazon UK Marketplace,5942,Other expenses,3.96,0.00,3.96
Children and Adult Services,Childrens Services,085957,Secure Management,Supplies and Services,384999,Miscellaneous Expenses,01-Sep-2016,5230211499,Amazon UK Marketplace,5942,Other expenses,3.96,0.00,3.96
Children and Adult Services,Childrens Services,085957,Secure Management,Supplies and Services,384999,Miscellaneous Expenses,01-Sep-2016,5230211501,Amazon UK Marketplace,5942,Other expenses,9.92,0.00,9.92
Children and Adult Services,Childrens Services,085956,Lumley,Supplies and Services,384999,Miscellaneous Expenses,01-Sep-2016,5230211503,Amazon UK Marketplace,5942,Other expenses,27.96,0.00,27.96
Children and Adult Services,Childrens Services,085956,Lumley,Supplies and Services,384999,Miscellaneous Expenses,01-Sep-2016,5230211507,ARGOS RETAIL GROUP,5310,Other expenses,79.93,0.00,79.93
Children and Adult Services,Childrens Services,085957,Secure Management,Supplies and Services,328041,Clothing Uniforms and Laundry,01-Sep-2016,5230211509,VERY.CO.UK,5964,Clothing uniforms and laundry,24.99,0.00,24.99
Neighbourhood Services,Culture & Sport,011060,Hardwick Park Catering,Supplies and Services,324117,Provisions,01-Sep-2016,5230211511,JR HOLLAND FOODSERVICE,5422,Catering costs - provisions,33.64,0.00,33.64
Neighbourhood Services,Culture & Sport,011060,Hardwick Park Catering,Supplies and Services,324117,Provisions,01-Sep-2016,5230211513,JR HOLLAND FOODSERVICE,5422,Catering costs - provisions,27.14,0.00,27.14
Resources,I.C.T. Services,070204,Operations - System & Repairs Team,Supplies and Services,342053,Computers and Communications,01-Sep-2016,5230211515,www.gedat.com,5045,Computer software,69.64,0.00,69.64
Neighbourhood Services,Culture & Sport,054815,Gala Theatre Stage School,Supplies and Services,312011,Newspapers Books and Periodicals,01-Sep-2016,5230211519,Amazon UK Marketplace,5942,Books-school library,1.53,0.00,1.53
Neighbourhood Services,Culture & Sport,054815,Gala Theatre Stage School,Supplies and Services,312011,Newspapers Books and Periodicals,01-Sep-2016,5230211521,Amazon EU,5969,Books-school library,23.36,0.00,23.36
Neighbourhood Services,Culture & Sport,054815,Gala Theatre Stage School,Supplies and Services,328041,Clothing Uniforms and Laundry,01-Sep-2016,5230211523,WWW.PROP4SHOWS.O.UK,5699,Clothing uniforms and laundry,80.45,13.41,67.04
Neighbourhood Services,Culture & Sport,054815,Gala Theatre Stage School,Supplies and Services,332047,Printing Stationery and Gen Off Exps,01-Sep-2016,5230211525,RYMAN,5943,Stationery,48.28,8.05,40.23
Neighbourhood Services,Culture & Sport,054815,Gala Theatre Stage School,Supplies and Services,312009,Newspapers Books and Periodicals,01-Sep-2016,5230211527,WH SMITH,5994,Newspapers books and periodicals,2.99,0.00,2.99
Neighbourhood Services,Direct Services,021234,Catering - Locomotion,Supplies and Services,324117,Provisions,01-Sep-2016,5230211543,BRAKE BROS LTD,5811,Catering costs - provisions,354.60,59.10,295.50
Neighbourhood Services,Direct Services,021234,Catering - Locomotion,Supplies and Services,324117,Provisions,01-Sep-2016,5230211543 - 1,BRAKE BROS LTD,5811,Catering costs - provisions,224.45,,224.45
Neighbourhood Services,Direct Services,021234,Catering - Locomotion,Supplies and Services,324117,Provisions,01-Sep-2016,5230211547,BRAKE BROS LTD,5811,Catering costs - provisions,-8.56,0.00,-8.56
Neighbourhood Services,Direct Services,010525,Catering - Green Lane,Supplies and Services,324117,Provisions,01-Sep-2016,5230211571,JR HOLLAND FOODSERVICE,5422,Catering costs - provisions,69.64,0.00,69.64
Children and Adult Services,Childrens Services,088053,Stanley 0 - 5,Supplies and Services,312011,Newspapers Books and Periodicals,01-Sep-2016,5230211585,Amazon UK Marketplace,5942,Books-school library,24.11,0.00,24.11
Neighbourhood Services,Direct Services,010367,C&G - South Grounds Maintenance,Transport,215995,Running Costs of Vehicles,01-Sep-2016,5230211595,SNOWBALLS (RAILWAY,5533,Vehicle running expenses,59.20,9.87,49.33
Regeneration & Economic Development,Economic Development and Housing,030749,Employability - Youth Contract,Supplies and Services,324117,Provisions,01-Sep-2016,5230211601,ASDA STORES LTD 4313,5411,Catering costs - provisions,44.05,0.00,44.05
Children and Adult Services,Childrens Services,088043,Consett 0 - 5,Supplies and Services,328041,Clothing Uniforms and Laundry,01-Sep-2016,5230211617,ARGOS RETAIL GROUP,5310,Clothing uniforms and laundry,14.99,0.00,14.99
Children and Adult Services,Childrens Services,088043,Consett 0 - 5,Supplies and Services,328041,Clothing Uniforms and Laundry,01-Sep-2016,5230211619,ARGOS RETAIL GROUP,5310,Clothing uniforms and laundry,238.94,0.00,238.94
Children and Adult Services,Childrens Services,088043,Consett 0 - 5,Supplies and Services,324117,Provisions,01-Sep-2016,5230211621,WM MORRISONS,5411,Catering costs - provisions,42.28,0.00,42.28
Resources,I.C.T. Services,069010,Administration,Supplies and Services,304259,Equipment and Materials,01-Sep-2016,5230211625,SUNDERLAND CC,9399,Equipment-purchase and rental,20.00,0.00,20.00
Resources,I.C.T. Services,069010,Administration,Supplies and Services,312011,Newspapers Books and Periodicals,01-Sep-2016,5230211627,Amazon EU,5969,Books-school library,27.70,0.00,27.70
Resources,I.C.T. Services,069010,Administration,Supplies and Services,304259,Equipment and Materials,01-Sep-2016,5230211629,MILTON KEYNES COUNCIL,9399,Equipment-purchase and rental,26.00,0.00,26.00
Resources,I.C.T. Services,069010,Administration,Supplies and Services,304259,Equipment and Materials,01-Sep-2016,5230211633,MILTON KEYNES COUNCIL,9399,Equipment-purchase and rental,26.00,0.00,26.00
Resources,I.C.T. Services,069010,Administration,Supplies and Services,304259,Equipment and Materials,01-Sep-2016,5230211635,DURHAM COUNTY COUNCIL,9399,Equipment-purchase and rental,36.00,0.00,36.00
Children and Adult Services,Childrens Services,088013,Seaham 0 - 5,Supplies and Services,304403,Equipment and Materials,01-Sep-2016,5230211659,SCHOOLBADGESTORE.,5947,Other consumables,28.74,0.00,28.74
Children and Adult Services,Childrens Services,088013,Seaham 0 - 5,Supplies and Services,328041,Clothing Uniforms and Laundry,01-Sep-2016,5230211661,ARGOS RETAIL GROUP,5310,Clothing uniforms and laundry,23.94,0.00,23.94
Children and Adult Services,Childrens Services,088003,Peterlee 0 - 5,Supplies and Services,304403,Equipment and Materials,01-Sep-2016,5230211671,TESCO - Seller_IST_1_2,5999,Other consumables,62.99,10.50,52.49
Neighbourhood Services,Culture & Sport,054235,Bp Auckland Town Hall Cafe,Supplies and Services,324117,Provisions,01-Sep-2016,5230211673,JR HOLLAND FOODSERVICE,5422,Catering costs - provisions,37.05,0.00,37.05
Regeneration & Economic Development,Economic Development and Housing,030737,Durham Works Flexible Fund,Transport,235057,Public Transport,01-Sep-2016,5230211701,WWW.SIMPLYGO.COM,4131,Staff travelling,5.00,0.00,5.00
Neighbourhood Services,Direct Services,021235,Catering - Wharton Park,Supplies and Services,324117,Provisions,01-Sep-2016,5230211709,JR HOLLAND FOODSERVICE,5422,Catering costs - provisions,21.19,0.00,21.19
Neighbourhood Services,Culture & Sport,026591,Hardwick Hall Country Park,Supplies and Services,304245,Equipment and Materials,01-Sep-2016,5230211715,SCREWFIX,5211,Materials,36.48,6.08,30.40
Neighbourhood Services,Culture & Sport,010605,Woodhouse Close Leisure Complex,Supplies and Services,324117,Provisions,01-Sep-2016,5230211717,JR HOLLAND FOODSERVICE,5422,Catering costs - provisions,28.90,0.00,28.90
Neighbourhood Services,Culture & Sport,010605,Woodhouse Close Leisure Complex,Supplies and Services,324117,Provisions,01-Sep-2016,5230211719,BRAKE BROS LTD,5811,Catering costs - provisions,71.34,11.89,59.45
Neighbourhood Services,Culture & Sport,010605,Woodhouse Close Leisure Complex,Supplies and Services,324117,Provisions,01-Sep-2016,5230211719 - 1,BRAKE BROS LTD,5811,Catering costs - provisions,44.53,,44.53
Regeneration & Economic Development,Economic Development and Housing,030554,International Relations,Supplies and Services,352001,Conference Expenses,02-Sep-2016,5230211473,HOTEL MERCURE,7011,Conferencesseminars fees etc,5.81,0.00,5.81
Regeneration & Economic Development,Economic Development and Housing,030554,International Relations,Supplies and Services,352001,Conference Expenses,02-Sep-2016,5230211475,HOTEL MERCURE,7011,Conferencesseminars fees etc,6.57,0.00,6.57
Children and Adult Services,Childrens Services,085957,Secure Management,Supplies and Services,384999,Miscellaneous Expenses,02-Sep-2016,5230211505,Amazon UK Marketplace,5942,Other expenses,18.12,0.00,18.12
Resources,I.C.T. Services,070204,Operations - System & Repairs Team,Supplies and Services,342053,Computers and Communications,02-Sep-2016,5230211517,www.gedat.com,5045,Computer software,1.92,0.00,1.92
Children and Adult Services,Education,071733,Shildon Childcare,Supplies and Services,328041,Clothing Uniforms and Laundry,02-Sep-2016,5235166637,B & M RETAIL,5310,Clothing uniforms and laundry,9.99,0.00,9.99
Children and Adult Services,Childrens Services,085957,Secure Management,Supplies and Services,324117,Provisions,02-Sep-2016,5235166663,TESCO STORES 6329,5411,Catering costs - provisions,83.33,0.00,83.33
Regeneration & Economic Development,Economic Development and Housing,030699,Business Growth and Innovation General,Supplies and Services,304403,Equipment and Materials,02-Sep-2016,5235166699,ADOBE CREATIVE CLOUD,5734,Other consumables,45.73,7.62,38.11
Regeneration & Economic Development,Economic Development and Housing,030699,Business Growth and Innovation General,Supplies and Services,312011,Newspapers Books and Periodicals,02-Sep-2016,5235166705,FASTHOSTS INTERNET,4816,Books-school library,59.99,10.00,49.99
Neighbourhood Services,Direct Services,021242,Catering - County Hall,Supplies and Services,324117,Provisions,02-Sep-2016,5235166739,JR HOLLAND FOODSERVICE,5422,Catering costs - provisions,31.83,0.00,31.83
Neighbourhood Services,Direct Services,021242,Catering - County Hall,Supplies and Services,324117,Provisions,02-Sep-2016,5235166741,JR HOLLAND FOODSERVICE,5422,Catering costs - provisions,22.04,0.00,22.04
Neighbourhood Services,Direct Services,021242,Catering - County Hall,Supplies and Services,324117,Provisions,02-Sep-2016,5235166743,JR HOLLAND FOODSERVICE,5422,Catering costs - provisions,13.16,0.00,13.16
Neighbourhood Services,Direct Services,021242,Catering - County Hall,Supplies and Services,324117,Provisions,02-Sep-2016,5235166747,JR HOLLAND FOODSERVICE,5422,Catering costs - provisions,10.92,0.00,10.92
Neighbourhood Services,Culture & Sport,054812,Gala Theatre - Catering etc,Supplies and Services,324117,Provisions,02-Sep-2016,5235166757,BRAKE BROS LTD,5811,Catering costs - provisions,70.42,0.00,70.42
Children and Adult Services,Childrens Services,085351,Framwellgate Moor CU,Supplies and Services,324117,Provisions,02-Sep-2016,5235166785,ASDA HOME SHOPPING,5411,Catering costs - provisions,0.60,0.00,0.60
Children and Adult Services,Childrens Services,085351,Framwellgate Moor CU,Supplies and Services,324117,Provisions,02-Sep-2016,5235166789,ASDA HOME SHOPPING,5411,Catering costs - provisions,84.32,0.00,84.32
Children and Adult Services,Childrens Services,085351,Framwellgate Moor CU,Supplies and Services,324117,Provisions,02-Sep-2016,5235166793,ASDA HOME SHOPPING,5411,Catering costs - provisions,-1.00,0.00,-1.00
Neighbourhood Services,Culture & Sport,011219,Office Services,Supplies and Services,304999,Equipment and Materials,02-Sep-2016,5235166799,GOOGLE ADWS2420292471,5968,Misc equipment tools and materials,14.58,0.00,14.58
Regeneration & Economic Development,Economic Development and Housing,030749,Employability - Youth Contract,Transport,235057,Public Transport,02-Sep-2016,5235166815,GO NORTH EAST - V/T,4131,Staff travelling,66.24,0.00,66.24
Resources,Legal & Democratic Services,067910,Democratic Representation,Supplies and Services,384999,Miscellaneous Expenses,02-Sep-2016,5235166823,BRAMWELLS ELVET LT,5944,Other expenses,144.00,24.00,120.00
Children and Adult Services,Childrens Services,085957,Secure Management,Supplies and Services,384999,Miscellaneous Expenses,02-Sep-2016,5235166855,Amazon UK Marketplace,5942,Other expenses,8.80,0.00,8.80
Children and Adult Services,Childrens Services,085957,Secure Management,Supplies and Services,384999,Miscellaneous Expenses,02-Sep-2016,5235166857,Amazon UK Marketplace,5942,Other expenses,4.36,0.00,4.36
Children and Adult Services,Childrens Services,085957,Secure Management,Supplies and Services,384999,Miscellaneous Expenses,02-Sep-2016,5235166861,Amazon UK Marketplace,5942,Other expenses,22.95,0.00,22.95
Children and Adult Services,Childrens Services,085957,Secure Management,Supplies and Services,384999,Miscellaneous Expenses,02-Sep-2016,5235166863,Amazon UK Marketplace,5942,Other expenses,7.99,0.00,7.99
Children and Adult Services,Childrens Services,085955,Auckland,Supplies and Services,384999,Miscellaneous Expenses,02-Sep-2016,5235166867,ARGOS RETAIL GROUP,5310,Other expenses,69.93,0.00,69.93
Neighbourhood Services,Culture & Sport,011060,Hardwick Park Catering,Supplies and Services,324117,Provisions,02-Sep-2016,5235166931,JR HOLLAND FOODSERVICE,5422,Catering costs - provisions,39.00,0.00,39.00
Neighbourhood Services,Culture & Sport,011060,Hardwick Park Catering,Supplies and Services,324117,Provisions,02-Sep-2016,5235166933,BRAKE BROS LTD,5811,Catering costs - provisions,515.88,85.98,429.90
Neighbourhood Services,Culture & Sport,011060,Hardwick Park Catering,Supplies and Services,324117,Provisions,02-Sep-2016,5235166933 - 1,BRAKE BROS LTD,5811,Catering costs - provisions,503.11,,503.11
Neighbourhood Services,Culture & Sport,011060,Hardwick Park Catering,Supplies and Services,324117,Provisions,02-Sep-2016,5235166943,BRAKE BROS LTD,5811,Catering costs - provisions,503.04,83.84,419.20
Neighbourhood Services,Culture & Sport,011060,Hardwick Park Catering,Supplies and Services,324117,Provisions,02-Sep-2016,5235166943 - 1,BRAKE BROS LTD,5811,Catering costs - provisions,95.08,,95.08
Neighbourhood Services,Culture & Sport,054815,Gala Theatre Stage School,Supplies and Services,312011,Newspapers Books and Periodicals,02-Sep-2016,5235166953,Amazon UK Marketplace,5942,Books-school library,2.57,0.00,2.57
Neighbourhood Services,Culture & Sport,054815,Gala Theatre Stage School,Supplies and Services,304999,Equipment and Materials,02-Sep-2016,5235166959,Amazon Prime,5968,Misc equipment tools and materials,7.99,0.00,7.99
Regeneration & Economic Development,Economic Development and Housing,031576,B& B - Temp Accom,Supplies and Services,364320,Grants to Voluntary Organisations,02-Sep-2016,5235166975,DAYS INN,7011,Accommodation assistance,159.00,26.50,132.50
Regeneration & Economic Development,Economic Development and Housing,030749,Employability - Youth Contract,Transport,235005,Public Transport,02-Sep-2016,5235167021,ARRIVA PASSENGER S,7538,Contract tickets,59.00,0.00,59.00
Resources,I.C.T. Services,069010,Administration,Supplies and Services,304259,Equipment and Materials,02-Sep-2016,5235167031,STOCKTON BOROUGH COUNC,9399,Equipment-purchase and rental,11.00,0.00,11.00
Neighbourhood Services,Direct Services,021324,Catering - Meadowfield,Supplies and Services,324117,Provisions,02-Sep-2016,5235167047,JR HOLLAND FOODSERVICE,5422,Catering costs - provisions,34.45,0.00,34.45
Neighbourhood Services,Direct Services,021324,Catering - Meadowfield,Supplies and Services,324117,Provisions,02-Sep-2016,5235167053,JR HOLLAND FOODSERVICE,5422,Catering costs - provisions,14.45,0.00,14.45
Children and Adult Services,Childrens Services,085333,Coxhoe Satelite Home,Supplies and Services,324117,Provisions,02-Sep-2016,5235167059,TESCO STORES 5496,5411,Catering costs - provisions,11.26,0.00,11.26
Neighbourhood Services,Direct Services,010301,C&G - North Grounds Maintenance,Supplies and Services,304999,Equipment and Materials,02-Sep-2016,5235167075,GUSTHARTS CHAINSAW CTR,7699,Misc equipment tools and materials,180.67,30.11,150.56
Neighbourhood Services,Direct Services,021235,Catering - Wharton Park,Supplies and Services,324117,Provisions,02-Sep-2016,5235167147,BRAKE BROS LTD,5811,Catering costs - provisions,264.30,44.05,220.25
Neighbourhood Services,Direct Services,021235,Catering - Wharton Park,Supplies and Services,324117,Provisions,02-Sep-2016,5235167147 - 1,BRAKE BROS LTD,5811,Catering costs - provisions,41.99,,41.99
Neighbourhood Services,Direct Services,021235,Catering - Wharton Park,Supplies and Services,324117,Provisions,02-Sep-2016,5235167153,JR HOLLAND FOODSERVICE,5422,Catering costs - provisions,-2.08,0.00,-2.08
Dedicated Schools Grant,Dedicated Schools Grant,079052,Part Sighted-Belmont Comp,Supplies and Services,304999,Equipment and Materials,03-Sep-2016,5235166653,Audible Ltd,5968,Misc equipment tools and materials,7.99,1.33,6.66
Children and Adult Services,Childrens Services,085957,Secure Management,Supplies and Services,324117,Provisions,03-Sep-2016,5235166667,TESCO STORES 6329,5411,Catering costs - provisions,105.54,0.00,105.54
Children and Adult Services,Childrens Services,085333,Coxhoe Satelite Home,Supplies and Services,312011,Newspapers Books and Periodicals,03-Sep-2016,5235167065,Amazon UK Marketplace,5942,Books-school library,49.99,0.00,49.99
Children and Adult Services,Childrens Services,085333,Coxhoe Satelite Home,Supplies and Services,324117,Provisions,03-Sep-2016,5235167069,ALDI,5411,Catering costs - provisions,17.04,2.84,14.20
Children and Adult Services,Childrens Services,085333,Coxhoe Satelite Home,Supplies and Services,324117,Provisions,03-Sep-2016,5235167069 - 1,ALDI,5411,Catering costs - provisions,57.68,,57.68
Children and Adult Services,Childrens Services,085333,Coxhoe Satelite Home,Supplies and Services,328041,Clothing Uniforms and Laundry,03-Sep-2016,5235167071,B & M RETAIL,5310,Clothing uniforms and laundry,20.98,0.00,20.98
Neighbourhood Services,Direct Services,021235,Catering - Wharton Park,Supplies and Services,324117,Provisions,03-Sep-2016,5235167157,BRAKE BROS LTD,5811,Catering costs - provisions,352.80,58.80,294.00
Neighbourhood Services,Direct Services,021235,Catering - Wharton Park,Supplies and Services,324117,Provisions,03-Sep-2016,5235167157 - 1,BRAKE BROS LTD,5811,Catering costs - provisions,4.54,,4.54
Children and Adult Services,Childrens Services,085957,Secure Management,Supplies and Services,324117,Provisions,04-Sep-2016,5235166671,TESCO STORES 6329,5411,Catering costs - provisions,151.45,0.00,151.45
Regeneration & Economic Development,Economic Development and Housing,030699,Business Growth and Innovation General,Supplies and Services,304403,Equipment and Materials,04-Sep-2016,5235166703,MEETEDGAR.COM STARTER,5734,Other consumables,36.98,0.00,36.98
Regeneration & Economic Development,Spatial Policy Planning Assets & Environment,031200,North Pennines Core,Supplies and Services,352001,Conference Expenses,04-Sep-2016,5240649533,TVLICENSING.CO.UK,7392,Conferencesseminars fees etc,145.50,0.00,145.50
Children and Adult Services,Childrens Services,085957,Secure Management,Supplies and Services,304403,Equipment and Materials,04-Sep-2016,5240649599,AMAZON UK RETAIL AMAZO,5999,Other consumables,13.04,0.00,13.04
Regeneration & Economic Development,Economic Development and Housing,030699,Business Growth and Innovation General,Supplies and Services,304403,Equipment and Materials,05-Sep-2016,5235166709,MEETEDGAR.COM STARTER,5734,Other consumables,1.02,0.00,1.02
Neighbourhood Services,EnvironmentHealth & Consumer Protection,010934,Works in Default Holding Code,Income,720130,Fees and Charges,05-Sep-2016,5240649421,WWW.MONEYCLAIM.GOV,9399,Fees-legal,60.00,0.00,60.00
Children and Adult Services,Education,071733,Shildon Childcare,Supplies and Services,324117,Provisions,05-Sep-2016,5240649425,ASDA HOME SHOPPING,5411,Catering costs - provisions,52.81,0.00,52.81
Children and Adult Services,Education,071733,Shildon Childcare,Supplies and Services,304649,Equipment and Materials,05-Sep-2016,5240649429,HOME BARGAINS,5251,Toys,3.96,0.66,3.30
Children and Adult Services,Education,071733,Shildon Childcare,Supplies and Services,324117,Provisions,05-Sep-2016,5240649431,ASDA HOME SHOPPING,5411,Catering costs - provisions,-0.16,0.00,-0.16
Neighbourhood Services,Direct Services,010383,C&G - South Street Cleansing,Transport,215995,Running Costs of Vehicles,05-Sep-2016,5240649465,SNOWBALLS (RAILWAY,5533,Vehicle running expenses,57.31,9.55,47.76
Children and Adult Services,Childrens Services,085342,9 Cedar Drive Aycliffe,Supplies and Services,324117,Provisions,05-Sep-2016,5240649469,TESCO STORES 2916,5411,Catering costs - provisions,75.52,0.00,75.52
Neighbourhood Services,EnvironmentHealth & Consumer Protection,011035,Consumer Protection,Supplies and Services,338048,Services,05-Sep-2016,5240649475,COUNTY COURT,9222,Court Costs,308.00,0.00,308.00
Children and Adult Services,Childrens Services,071449,Ferryhill One Point Hub,Supplies and Services,324117,Provisions,05-Sep-2016,5240649479,TESCO STORES 2371,5411,Catering costs - provisions,9.00,0.00,9.00
Neighbourhood Services,Direct Services,021242,Catering - County Hall,Supplies and Services,324117,Provisions,05-Sep-2016,5240649487,BRAMBLES FOODS LTD,5499,Catering costs - provisions,344.18,0.00,344.18
Neighbourhood Services,Direct Services,021242,Catering - County Hall,Supplies and Services,324117,Provisions,05-Sep-2016,5240649489,JR HOLLAND FOODSERVICE,5422,Catering costs - provisions,59.13,0.00,59.13
Neighbourhood Services,Direct Services,021242,Catering - County Hall,Supplies and Services,324117,Provisions,05-Sep-2016,5240649495,JR HOLLAND FOODSERVICE,5422,Catering costs - provisions,6.94,0.00,6.94
Neighbourhood Services,Direct Services,021242,Catering - County Hall,Supplies and Services,324117,Provisions,05-Sep-2016,5240649497,BRAKE BROS LTD,5811,Catering costs - provisions,305.94,50.99,254.95
Neighbourhood Services,Direct Services,021242,Catering - County Hall,Supplies and Services,324117,Provisions,05-Sep-2016,5240649497 - 1,BRAKE BROS LTD,5811,Catering costs - provisions,120.58,,120.58
Neighbourhood Services,Direct Services,021242,Catering - County Hall,Supplies and Services,324117,Provisions,05-Sep-2016,5240649503,BRAKE BROS LTD,5811,Catering costs - provisions,123.71,0.00,123.71
Children and Adult Services,Education,070169,Durham SSP,Supplies and Services,384199,Miscellaneous Expenses,05-Sep-2016,5240649509,CARTRIDGE SAVE,5111,Other hired and contracted services,345.69,57.62,288.07
Neighbourhood Services,Direct Services,010367,C&G - South Grounds Maintenance,Supplies and Services,304259,Equipment and Materials,05-Sep-2016,5240649511,SPENCO LTD,5211,Equipment-purchase and rental,72.00,12.00,60.00
Children and Adult Services,Childrens Services,085957,Secure Management,Supplies and Services,328041,Clothing Uniforms and Laundry,05-Sep-2016,5240649573,VERY.CO.UK,5964,Clothing uniforms and laundry,45.00,0.00,45.00
Children and Adult Services,Childrens Services,085957,Secure Management,Supplies and Services,328041,Clothing Uniforms and Laundry,05-Sep-2016,5240649575,VERY.CO.UK,5964,Clothing uniforms and laundry,30.00,0.00,30.00
Children and Adult Services,Childrens Services,085957,Secure Management,Supplies and Services,328041,Clothing Uniforms and Laundry,05-Sep-2016,5240649579,VERY.CO.UK,5964,Clothing uniforms and laundry,26.00,0.00,26.00
Children and Adult Services,Childrens Services,085957,Secure Management,Supplies and Services,328041,Clothing Uniforms and Laundry,05-Sep-2016,5240649581,VERY.CO.UK,5964,Clothing uniforms and laundry,25.00,0.00,25.00
Children and Adult Services,Childrens Services,085957,Secure Management,Supplies and Services,328041,Clothing Uniforms and Laundry,05-Sep-2016,5240649583,VERY.CO.UK,5964,Clothing uniforms and laundry,25.00,0.00,25.00
Children and Adult Services,Childrens Services,085957,Secure Management,Supplies and Services,328041,Clothing Uniforms and Laundry,05-Sep-2016,5240649587,VERY.CO.UK,5964,Clothing uniforms and laundry,12.00,0.00,12.00
Children and Adult Services,Childrens Services,085957,Secure Management,Supplies and Services,328041,Clothing Uniforms and Laundry,05-Sep-2016,5240649589,VERY.CO.UK,5964,Clothing uniforms and laundry,6.99,0.00,6.99
Children and Adult Services,Childrens Services,085957,Secure Management,Supplies and Services,328041,Clothing Uniforms and Laundry,05-Sep-2016,5240649593,VERY.CO.UK,5964,Clothing uniforms and laundry,5.99,0.00,5.99
Children and Adult Services,Childrens Services,085957,Secure Management,Supplies and Services,328041,Clothing Uniforms and Laundry,05-Sep-2016,5240649595,VERY.CO.UK,5964,Clothing uniforms and laundry,3.99,0.00,3.99
Children and Adult Services,Childrens Services,085957,Secure Management,Supplies and Services,304403,Equipment and Materials,05-Sep-2016,5240649603,AMAZON UK RETAIL AMAZO,5999,Other consumables,8.72,0.00,8.72
Neighbourhood Services,Culture & Sport,011060,Hardwick Park Catering,Supplies and Services,324117,Provisions,05-Sep-2016,5240649629,JR HOLLAND FOODSERVICE,5422,Catering costs - provisions,32.23,0.00,32.23
Neighbourhood Services,Culture & Sport,011060,Hardwick Park Catering,Supplies and Services,324117,Provisions,05-Sep-2016,5240649633,BRAKE BROS LTD,5811,Catering costs - provisions,191.82,31.97,159.85
Neighbourhood Services,Culture & Sport,011060,Hardwick Park Catering,Supplies and Services,324117,Provisions,05-Sep-2016,5240649633 - 1,BRAKE BROS LTD,5811,Catering costs - provisions,200.34,,200.34
Regeneration & Economic Development,Economic Development and Housing,031576,B& B - Temp Accom,Supplies and Services,364320,Grants to Voluntary Organisations,05-Sep-2016,5240649653,DAYS INN,7011,Accommodation assistance,49.00,8.17,40.83
Neighbourhood Services,Direct Services,010525,Catering - Green Lane,Supplies and Services,324117,Provisions,05-Sep-2016,5240649677,BRAMBLES FOODS LTD,5499,Catering costs - provisions,57.58,0.00,57.58
Neighbourhood Services,Culture & Sport,054399,Local Delivery-Libraries,Supplies and Services,312011,Newspapers Books and Periodicals,05-Sep-2016,5240649745,Amazon EU,5969,Books-school library,15.98,0.00,15.98
Resources,Financial Services,052865,SF-Financial Services Team,Supplies and Services,338048,Services,05-Sep-2016,5240649755,HMCOURTS-SERVICE.G,9222,Court Costs,"6,411.00","1,068.50",5342.50
Neighbourhood Services,Culture & Sport,054235,Bp Auckland Town Hall Cafe,Supplies and Services,324117,Provisions,05-Sep-2016,5240649777,JR HOLLAND FOODSERVICE,5422,Catering costs - provisions,14.80,0.00,14.80
Neighbourhood Services,Direct Services,021324,Catering - Meadowfield,Supplies and Services,324117,Provisions,05-Sep-2016,5240649781,BRAMBLES FOODS LTD,5499,Catering costs - provisions,35.75,0.00,35.75
Children and Adult Services,Childrens Services,085333,Coxhoe Satelite Home,Supplies and Services,312011,Newspapers Books and Periodicals,05-Sep-2016,5240649785,Amazon EU,5969,Books-school library,58.66,0.00,58.66
Neighbourhood Services,Culture & Sport,011086,Positive Futures,Supplies and Services,324117,Provisions,05-Sep-2016,5240649801,W M MORRISONS,5411,Catering costs - provisions,25.25,0.00,25.25
Children and Adult Services,Childrens Services,088083,Ferryhill 0 - 5,Supplies and Services,324117,Provisions,05-Sep-2016,5240649805,ASDA SUPERSTORE 4987,5411,Catering costs - provisions,15.61,0.00,15.61
Neighbourhood Services,Culture & Sport,026591,Hardwick Hall Country Park,Supplies and Services,304245,Equipment and Materials,05-Sep-2016,5240649841,SCREWFIX DIRECT,5211,Materials,81.75,13.63,68.12
Neighbourhood Services,Culture & Sport,010605,Woodhouse Close Leisure Complex,Supplies and Services,324117,Provisions,05-Sep-2016,5240649849,JR HOLLAND FOODSERVICE,5422,Catering costs - provisions,17.48,0.00,17.48
Neighbourhood Services,Culture & Sport,010605,Woodhouse Close Leisure Complex,Supplies and Services,324117,Provisions,05-Sep-2016,5240649853,BRAKE BROS LTD,5811,Catering costs - provisions,56.08,0.00,56.08
Regeneration & Economic Development,Spatial Policy Planning Assets & Environment,031200,North Pennines Core,Supplies and Services,384999,Miscellaneous Expenses,05-Sep-2016,5240649871,HIGH PENNINE ANIMAL FE,5995,Other expenses,75.14,0.00,75.14
Children and Adult Services,Education,071801,Selby Cottage Childcare Centre,Supplies and Services,324117,Provisions,06-Sep-2016,5242862111,TESCO STORES 2278,5411,Catering costs - provisions,40.22,0.00,40.22
Children and Adult Services,Childrens Services,088001,Peterlee Locality,Supplies and Services,308011,Furniture,06-Sep-2016,5242862129,POUNDSTRETCHER 692,5714,Furniture repair and replacement,25.99,0.00,25.99
Children and Adult Services,Education,071733,Shildon Childcare,Supplies and Services,304649,Equipment and Materials,06-Sep-2016,5242862133,Amazon UK Marketplace,5942,Toys,14.99,0.00,14.99
Children and Adult Services,Education,071733,Shildon Childcare,Supplies and Services,304649,Equipment and Materials,06-Sep-2016,5242862135,Amazon UK Marketplace,5942,Toys,2.02,0.00,2.02
Children and Adult Services,Education,071733,Shildon Childcare,Supplies and Services,304649,Equipment and Materials,06-Sep-2016,5242862139,Amazon UK Marketplace,5942,Toys,20.73,0.00,20.73
Children and Adult Services,Childrens Services,085342,9 Cedar Drive Aycliffe,Supplies and Services,324117,Provisions,06-Sep-2016,5242862165,SAINSBURYS 0776,5411,Catering costs - provisions,27.69,0.00,27.69
Regeneration & Economic Development,Economic Development and Housing,030699,Business Growth and Innovation General,Employees,040149,Recruitment Instruction and Training,06-Sep-2016,5242862187,RNT LTD,8931,Training-all costs,155.40,25.90,129.50
Resources,Financial Services,052865,SF-Financial Services Team,Supplies and Services,304403,Equipment and Materials,06-Sep-2016,5242862191,TESCO - Seller_IST_1_2,5999,Other consumables,19.95,0.00,19.95
Resources,Financial Services,052865,SF-Financial Services Team,Supplies and Services,304403,Equipment and Materials,06-Sep-2016,5242862193,TESCO - Tescopay,5999,Other consumables,25.00,0.00,25.00
Resources,Financial Services,052865,SF-Financial Services Team,Supplies and Services,304403,Equipment and Materials,06-Sep-2016,5242862197,TESCO DIRECT,5999,Other consumables,101.00,0.00,101.00
Regeneration & Economic Development,Economic Development and Housing,030737,Durham Works Flexible Fund,Supplies and Services,344033,Telephones,06-Sep-2016,5242862241,ARGOS,5310,Telephones general-all costs,29.99,0.00,29.99
Neighbourhood Services,Direct Services,021242,Catering - County Hall,Supplies and Services,324117,Provisions,06-Sep-2016,5242862245,JR HOLLAND FOODSERVICE,5422,Catering costs - provisions,63.42,0.00,63.42
Neighbourhood Services,Direct Services,021242,Catering - County Hall,Supplies and Services,324117,Provisions,06-Sep-2016,5242862247,JR HOLLAND FOODSERVICE,5422,Catering costs - provisions,6.58,0.00,6.58
Neighbourhood Services,Culture & Sport,054812,Gala Theatre - Catering etc,Supplies and Services,324117,Provisions,06-Sep-2016,5242862259,JR HOLLAND FOODSERVICE,5422,Catering costs - provisions,58.44,0.00,58.44
Neighbourhood Services,Culture & Sport,054812,Gala Theatre - Catering etc,Supplies and Services,324117,Provisions,06-Sep-2016,5242862263,BRAKE BROS LTD,5811,Catering costs - provisions,19.98,3.33,16.65
Neighbourhood Services,Culture & Sport,054812,Gala Theatre - Catering etc,Supplies and Services,324117,Provisions,06-Sep-2016,5242862263 - 1,BRAKE BROS LTD,5811,Catering costs - provisions,112.84,,112.84
Neighbourhood Services,Direct Services,019100,Fleet - Strategic Fleet,Employees,040149,Recruitment Instruction and Training,06-Sep-2016,5242862285,JAUPT,9399,Training-all costs,252.00,0.00,252.00
Regeneration & Economic Development,Economic Development and Housing,030749,Employability - Youth Contract,Transport,235005,Public Transport,06-Sep-2016,5242862291,ARRIVA PASSENGER S,7538,Contract tickets,48.00,0.00,48.00
Children and Adult Services,Education,071732,Dean Bank Childcare,Supplies and Services,312011,Newspapers Books and Periodicals,06-Sep-2016,5242862295,Amazon UK Marketplace,5942,Books-school library,8.98,0.00,8.98
Children and Adult Services,Education,071732,Dean Bank Childcare,Supplies and Services,312011,Newspapers Books and Periodicals,06-Sep-2016,5242862297,Amazon UK Marketplace,5942,Books-school library,4.60,0.00,4.60
Children and Adult Services,Education,071732,Dean Bank Childcare,Supplies and Services,312011,Newspapers Books and Periodicals,06-Sep-2016,5242862299,Amazon EU,5969,Books-school library,14.83,0.00,14.83
Children and Adult Services,Education,071732,Dean Bank Childcare,Supplies and Services,324117,Provisions,06-Sep-2016,5242862303,ASDA HOME SHOPPING,5411,Catering costs - provisions,45.08,0.00,45.08
Children and Adult Services,Childrens Services,085957,Secure Management,Supplies and Services,328041,Clothing Uniforms and Laundry,06-Sep-2016,5242862349,VERY.CO.UK,5964,Clothing uniforms and laundry,6.39,0.00,6.39
Neighbourhood Services,Culture & Sport,011060,Hardwick Park Catering,Supplies and Services,324117,Provisions,06-Sep-2016,5242862369,JR HOLLAND FOODSERVICE,5422,Catering costs - provisions,77.83,0.00,77.83
Neighbourhood Services,Culture & Sport,011060,Hardwick Park Catering,Supplies and Services,324117,Provisions,06-Sep-2016,5242862371,JR HOLLAND FOODSERVICE,5422,Catering costs - provisions,56.78,0.00,56.78
Neighbourhood Services,Culture & Sport,011060,Hardwick Park Catering,Supplies and Services,324117,Provisions,06-Sep-2016,5242862375,JR HOLLAND FOODSERVICE,5422,Catering costs - provisions,12.96,0.00,12.96
Neighbourhood Services,Culture & Sport,011060,Hardwick Park Catering,Supplies and Services,324117,Provisions,06-Sep-2016,5242862377,BRAKE BROS LTD,5811,Catering costs - provisions,226.56,37.76,188.80
Neighbourhood Services,Culture & Sport,011060,Hardwick Park Catering,Supplies and Services,324117,Provisions,06-Sep-2016,5242862377 - 1,BRAKE BROS LTD,5811,Catering costs - provisions,103.42,,103.42
Neighbourhood Services,Direct Services,021234,Catering - Locomotion,Supplies and Services,324117,Provisions,06-Sep-2016,5242862383,BRAKE BROS LTD,5811,Catering costs - provisions,93.54,15.59,77.95
Neighbourhood Services,Direct Services,021234,Catering - Locomotion,Supplies and Services,324117,Provisions,06-Sep-2016,5242862383 - 1,BRAKE BROS LTD,5811,Catering costs - provisions,61.16,,61.16
Regeneration & Economic Development,Economic Development and Housing,031576,B& B - Temp Accom,Supplies and Services,364320,Grants to Voluntary Organisations,06-Sep-2016,5242862387,DAYS INN,7011,Accommodation assistance,49.00,8.17,40.83
Neighbourhood Services,Direct Services,010525,Catering - Green Lane,Supplies and Services,324117,Provisions,06-Sep-2016,5242862397,BRAKE BROS LTD,5811,Catering costs - provisions,10.80,1.80,9.00
Neighbourhood Services,Direct Services,010525,Catering - Green Lane,Supplies and Services,324117,Provisions,06-Sep-2016,5242862397 - 1,BRAKE BROS LTD,5811,Catering costs - provisions,34.15,,34.15
Neighbourhood Services,Direct Services,010367,C&G - South Grounds Maintenance,Supplies and Services,312011,Newspapers Books and Periodicals,06-Sep-2016,5242862417,RICKERBY,5251,Books-school library,74.88,12.48,62.40
Neighbourhood Services,Direct Services,010367,C&G - South Grounds Maintenance,Supplies and Services,304999,Equipment and Materials,06-Sep-2016,5242862419,NEW ROW FARM NURSERIES,5193,Misc equipment tools and materials,293.25,0.00,293.25
Neighbourhood Services,Direct Services,010367,C&G - South Grounds Maintenance,Supplies and Services,304999,Equipment and Materials,06-Sep-2016,5242862423,NEW ROW FARM NURSERIES,5193,Misc equipment tools and materials,292.65,0.00,292.65
Neighbourhood Services,Technical Services,018700,Highways Services - Management and Administration,Supplies and Services,332047,Printing Stationery and Gen Off Exps,06-Sep-2016,5242862457,"Amazon Svcs Europe,SAR",5942,Stationery,180.00,0.00,180.00
Neighbourhood Services,Direct Services,021324,Catering - Meadowfield,Supplies and Services,324117,Provisions,06-Sep-2016,5242862511,BRAKE BROS LTD,5811,Catering costs - provisions,41.39,0.00,41.39
Children and Adult Services,Childrens Services,088083,Ferryhill 0 - 5,Supplies and Services,324117,Provisions,06-Sep-2016,5242862525,ASDA SUPERSTORE 4987,5411,Catering costs - provisions,21.65,0.00,21.65
Regeneration & Economic Development,Economic Development and Housing,030737,Durham Works Flexible Fund,Transport,235057,Public Transport,06-Sep-2016,5242862537,WWW.SIMPLYGO.COM,4131,Staff travelling,86.54,0.00,86.54
Neighbourhood Services,Direct Services,021235,Catering - Wharton Park,Supplies and Services,324117,Provisions,06-Sep-2016,5242862551,BRAKE BROS LTD,5811,Catering costs - provisions,191.16,31.86,159.30
Neighbourhood Services,Direct Services,021235,Catering - Wharton Park,Supplies and Services,324117,Provisions,06-Sep-2016,5242862551 - 1,BRAKE BROS LTD,5811,Catering costs - provisions,5.42,,5.42
Neighbourhood Services,Culture & Sport,010605,Woodhouse Close Leisure Complex,Supplies and Services,324117,Provisions,06-Sep-2016,5242862561,BRAKE BROS LTD,5811,Catering costs - provisions,-2.06,0.00,-2.06
Resources,Financial Services,065166,Finance - Post Entry Training,Employees,040149,Recruitment Instruction and Training,06-Sep-2016,5242862565,WWW.CIPS.ORG,8699,Training-all costs,246.84,0.00,246.84
Resources,Financial Services,065166,Finance - Post Entry Training,Employees,040149,Recruitment Instruction and Training,06-Sep-2016,5242862567,WWW.CIPS.ORG,8699,Training-all costs,127.50,0.00,127.50
Children and Adult Services,Education,071733,Shildon Childcare,Supplies and Services,304649,Equipment and Materials,07-Sep-2016,5242862141,Amazon UK Marketplace,5942,Toys,2.00,0.00,2.00
Children and Adult Services,Childrens Services,088003,Peterlee 0 - 5,Supplies and Services,312011,Newspapers Books and Periodicals,07-Sep-2016,5242862587,Amazon EU,5969,Books-school library,14.98,0.00,14.98
Children and Adult Services,Education,071801,Selby Cottage Childcare Centre,Supplies and Services,304259,Equipment and Materials,07-Sep-2016,5245957823,WILKO RETAIL LIMIT,5722,Equipment-purchase and rental,99.68,0.00,99.68
Children and Adult Services,Education,071801,Selby Cottage Childcare Centre,Supplies and Services,324117,Provisions,07-Sep-2016,5245957827,TESCO STORES 2278,5411,Catering costs - provisions,41.07,0.00,41.07
Children and Adult Services,Education,054640,Durham Learning Resources,Supplies and Services,332047,Printing Stationery and Gen Off Exps,07-Sep-2016,5245957835,WWW.REDMONTPKG.CO.UK,5943,Stationery,64.44,0.00,64.44
Regeneration & Economic Development,Economic Development and Housing,031500,Housing Solutions - Core Team,Supplies and Services,352001,Conference Expenses,07-Sep-2016,5245957855,TRAVELODGE,3615,Conferencesseminars fees etc,50.00,8.33,41.67
Neighbourhood Services,Direct Services,021242,Catering - County Hall,Supplies and Services,324117,Provisions,07-Sep-2016,5245957913,FREEMAN CATERING BUTCH,5422,Catering costs - provisions,78.83,0.00,78.83
Neighbourhood Services,Direct Services,021242,Catering - County Hall,Supplies and Services,324117,Provisions,07-Sep-2016,5245957915,JR HOLLAND FOODSERVICE,5422,Catering costs - provisions,100.45,0.00,100.45
Neighbourhood Services,Direct Services,021242,Catering - County Hall,Supplies and Services,324117,Provisions,07-Sep-2016,5245957917,JR HOLLAND FOODSERVICE,5422,Catering costs - provisions,99.90,0.00,99.90
Neighbourhood Services,Direct Services,021242,Catering - County Hall,Supplies and Services,324117,Provisions,07-Sep-2016,5245957921,JR HOLLAND FOODSERVICE,5422,Catering costs - provisions,80.51,0.00,80.51
Neighbourhood Services,Direct Services,021242,Catering - County Hall,Supplies and Services,324117,Provisions,07-Sep-2016,5245957923,JR HOLLAND FOODSERVICE,5422,Catering costs - provisions,73.88,0.00,73.88
Neighbourhood Services,Direct Services,021242,Catering - County Hall,Supplies and Services,324117,Provisions,07-Sep-2016,5245957927,JR HOLLAND FOODSERVICE,5422,Catering costs - provisions,73.06,0.00,73.06
Neighbourhood Services,Direct Services,021242,Catering - County Hall,Supplies and Services,324117,Provisions,07-Sep-2016,5245957931,JR HOLLAND FOODSERVICE,5422,Catering costs - provisions,65.79,0.00,65.79
Neighbourhood Services,Direct Services,021242,Catering - County Hall,Supplies and Services,324117,Provisions,07-Sep-2016,5245957933,JR HOLLAND FOODSERVICE,5422,Catering costs - provisions,31.35,0.00,31.35
Neighbourhood Services,Direct Services,021242,Catering - County Hall,Supplies and Services,324117,Provisions,07-Sep-2016,5245957935,JR HOLLAND FOODSERVICE,5422,Catering costs - provisions,13.65,0.00,13.65
Neighbourhood Services,Direct Services,021242,Catering - County Hall,Supplies and Services,324117,Provisions,07-Sep-2016,5245957939,BRAKE BROS LTD,5811,Catering costs - provisions,120.24,0.00,120.24
Neighbourhood Services,Direct Services,010367,C&G - South Grounds Maintenance,Third Party Payments,430100,Rendered by Private Contractors,07-Sep-2016,5245957947,S&A BUILDERS MERCHANTS,5039,Payments to sub-contractors,30.08,5.01,25.07
Neighbourhood Services,Culture & Sport,054812,Gala Theatre - Catering etc,Supplies and Services,324117,Provisions,07-Sep-2016,5245957951,FREEMAN CATERING BUTCH,5422,Catering costs - provisions,24.40,0.00,24.40
Neighbourhood Services,Culture & Sport,054812,Gala Theatre - Catering etc,Supplies and Services,324117,Provisions,07-Sep-2016,5245957953,FREEMAN CATERING BUTCH,5422,Catering costs - provisions,18.74,0.00,18.74
Neighbourhood Services,Culture & Sport,011219,Office Services,Supplies and Services,336005,Advertising,07-Sep-2016,5245957967,TWITTER ADVERTISING,7311,Advertising other than for staff,10.00,0.00,10.00
Children and Adult Services,Childrens Services,085361,LAC & Permanence Team 1 Aycliffe,Supplies and Services,304259,Equipment and Materials,07-Sep-2016,5245957983,SUNDERLAND CC,9399,Equipment-purchase and rental,10.00,0.00,10.00
Children and Adult Services,Education,071732,Dean Bank Childcare,Supplies and Services,312011,Newspapers Books and Periodicals,07-Sep-2016,5245958001,Amazon UK Marketplace,5942,Books-school library,7.24,0.00,7.24
Children and Adult Services,Education,071732,Dean Bank Childcare,Supplies and Services,324117,Provisions,07-Sep-2016,5245958007,CO-OP GROUP 010503,5411,Catering costs - provisions,7.24,0.00,7.24
Children and Adult Services,Childrens Services,085957,Secure Management,Supplies and Services,384999,Miscellaneous Expenses,07-Sep-2016,5245958041,Amazon UK Marketplace,5942,Other expenses,6.69,0.00,6.69
Children and Adult Services,Childrens Services,085957,Secure Management,Supplies and Services,328041,Clothing Uniforms and Laundry,07-Sep-2016,5245958045,notonthehighstreet.com,5999,Clothing uniforms and laundry,36.00,0.00,36.00
Children and Adult Services,Childrens Services,085956,Lumley,Supplies and Services,384999,Miscellaneous Expenses,07-Sep-2016,5245958051,PAYPAL BGRAPHICS,5970,Other expenses,14.95,0.00,14.95
Children and Adult Services,Childrens Services,085956,Lumley,Supplies and Services,384999,Miscellaneous Expenses,07-Sep-2016,5245958055,Amazon UK Marketplace,5942,Other expenses,14.99,0.00,14.99
Children and Adult Services,Childrens Services,085956,Lumley,Supplies and Services,384999,Miscellaneous Expenses,07-Sep-2016,5245958057,Amazon UK Marketplace,5942,Other expenses,1.35,0.00,1.35
Children and Adult Services,Childrens Services,085957,Secure Management,Supplies and Services,328041,Clothing Uniforms and Laundry,07-Sep-2016,5245958061,FLANNELSFASHION.,5691,Clothing uniforms and laundry,60.96,10.16,50.80
Children and Adult Services,Childrens Services,085957,Secure Management,Supplies and Services,328041,Clothing Uniforms and Laundry,07-Sep-2016,5245958061 - 1,FLANNELSFASHION.,5691,Clothing uniforms and laundry,0.03,,0.03
Children and Adult Services,Childrens Services,085956,Lumley,Supplies and Services,384999,Miscellaneous Expenses,07-Sep-2016,5245958063,SKR photowall.com,8999,Other expenses,165.00,27.50,137.50
Children and Adult Services,Childrens Services,085957,Secure Management,Supplies and Services,324117,Provisions,07-Sep-2016,5245958065,TESCO STORES 6329,5411,Catering costs - provisions,55.75,0.00,55.75
Children and Adult Services,Childrens Services,085957,Secure Management,Supplies and Services,328041,Clothing Uniforms and Laundry,07-Sep-2016,5245958067,VERY.CO.UK,5964,Clothing uniforms and laundry,45.00,0.00,45.00
Children and Adult Services,Childrens Services,085957,Secure Management,Supplies and Services,328041,Clothing Uniforms and Laundry,07-Sep-2016,5245958069,VERY.CO.UK,5964,Clothing uniforms and laundry,26.00,0.00,26.00
Children and Adult Services,Childrens Services,085957,Secure Management,Supplies and Services,328041,Clothing Uniforms and Laundry,07-Sep-2016,5245958071,VERY.CO.UK,5964,Clothing uniforms and laundry,15.00,0.00,15.00
Children and Adult Services,Childrens Services,085957,Secure Management,Supplies and Services,328041,Clothing Uniforms and Laundry,07-Sep-2016,5245958073,VERY.CO.UK,5964,Clothing uniforms and laundry,3.99,0.00,3.99
Children and Adult Services,Childrens Services,085957,Secure Management,Supplies and Services,328041,Clothing Uniforms and Laundry,07-Sep-2016,5245958075,VERY.CO.UK,5964,Clothing uniforms and laundry,3.99,0.00,3.99
Children and Adult Services,Childrens Services,088033,Durham 0 - 5,Transport,235005,Public Transport,07-Sep-2016,5245958083,ARRIVA PASSENGER S,7538,Contract tickets,59.00,0.00,59.00
Neighbourhood Services,Direct Services,010301,C&G - North Grounds Maintenance,Supplies and Services,304221,Equipment and Materials,07-Sep-2016,5245958093,JG PAXTON & SONS LTD,8911,Direct materials,55.22,9.20,46.02
Neighbourhood Services,Culture & Sport,011060,Hardwick Park Catering,Supplies and Services,324117,Provisions,07-Sep-2016,5245958097,FREEMAN CATERING BUTCH,5422,Catering costs - provisions,44.81,0.00,44.81
Neighbourhood Services,Culture & Sport,011060,Hardwick Park Catering,Supplies and Services,324117,Provisions,07-Sep-2016,5245958101,FREEMAN CATERING BUTCH,5422,Catering costs - provisions,28.48,0.00,28.48
Neighbourhood Services,Culture & Sport,011060,Hardwick Park Catering,Supplies and Services,324117,Provisions,07-Sep-2016,5245958105,JR HOLLAND FOODSERVICE,5422,Catering costs - provisions,33.37,0.00,33.37
Neighbourhood Services,Culture & Sport,011060,Hardwick Park Catering,Supplies and Services,324117,Provisions,07-Sep-2016,5245958109,BRAKE BROS LTD,5811,Catering costs - provisions,21.42,3.57,17.85
Neighbourhood Services,Culture & Sport,011060,Hardwick Park Catering,Supplies and Services,324117,Provisions,07-Sep-2016,5245958109 - 1,BRAKE BROS LTD,5811,Catering costs - provisions,126.02,,126.02
Neighbourhood Services,Culture & Sport,011060,Hardwick Park Catering,Supplies and Services,324117,Provisions,07-Sep-2016,5245958113,BRAKE BROS LTD,5811,Catering costs - provisions,83.76,13.96,69.80
Neighbourhood Services,Culture & Sport,011060,Hardwick Park Catering,Supplies and Services,324117,Provisions,07-Sep-2016,5245958113 - 1,BRAKE BROS LTD,5811,Catering costs - provisions,7.81,,7.81
Resources,I.C.T. Services,070204,Operations - System & Repairs Team,Supplies and Services,304403,Equipment and Materials,07-Sep-2016,5245958121,THE REPLACE BASE LTD,5999,Other consumables,42.35,7.06,35.29
Resources,I.C.T. Services,070204,Operations - System & Repairs Team,Supplies and Services,304403,Equipment and Materials,07-Sep-2016,5245958125,THE REPLACE BASE LTD,5999,Other consumables,52.36,8.73,43.63
Regeneration & Economic Development,Economic Development and Housing,031576,B& B - Temp Accom,Supplies and Services,364320,Grants to Voluntary Organisations,07-Sep-2016,5245958137,DAYS INN,7011,Accommodation assistance,49.00,8.17,40.83
Assistant Chief Executive,Planning & Performance Division,060134,WW1 In County Durham,Third Party Payments,430100,Rendered by Private Contractors,07-Sep-2016,5245958141,EVENTBRITE,7399,Payments to sub-contractors,-30.00,0.00,-30.00
Neighbourhood Services,Direct Services,010525,Catering - Green Lane,Supplies and Services,324117,Provisions,07-Sep-2016,5245958143,JR HOLLAND FOODSERVICE,5422,Catering costs - provisions,23.75,0.00,23.75
Children and Adult Services,Childrens Services,088063,Bishop Auckland 0 - 5,Supplies and Services,324117,Provisions,07-Sep-2016,5245958161,WM MORRISON 040,5411,Catering costs - provisions,10.28,0.00,10.28
Children and Adult Services,Childrens Services,088053,Stanley 0 - 5,Supplies and Services,304259,Equipment and Materials,07-Sep-2016,5245958167,NEWCASTLE CC INET,9399,Equipment-purchase and rental,52.02,0.00,52.02
Regeneration & Economic Development,Spatial Policy Planning Assets & Environment,031217,North Pennines - Cold Blooded & Spineless,Supplies and Services,342033,Computers and Communications,07-Sep-2016,5245958207,SUB 6 LTD,7379,Computer hardware,6.00,0.00,6.00
Children and Adult Services,Childrens Services,074000,TTF-Attachment and Results,Supplies and Services,304403,Equipment and Materials,07-Sep-2016,5245958215,TESCO - Childrens Room,5999,Other consumables,18.00,0.00,18.00
Children and Adult Services,Childrens Services,074000,TTF-Attachment and Results,Supplies and Services,308011,Furniture,07-Sep-2016,5245958217,TESCO DIRECT,5999,Furniture repair and replacement,97.95,0.00,97.95
Resources,I.C.T. Services,069010,Administration,Supplies and Services,312011,Newspapers Books and Periodicals,07-Sep-2016,5245958225,Amazon UK Marketplace,5942,Books-school library,48.20,0.00,48.20
Neighbourhood Services,Culture & Sport,054399,Local Delivery-Libraries,Supplies and Services,312011,Newspapers Books and Periodicals,07-Sep-2016,5245958237,Amazon UK Marketplace,5942,Books-school library,26.00,0.00,26.00
Neighbourhood Services,Culture & Sport,054399,Local Delivery-Libraries,Supplies and Services,312011,Newspapers Books and Periodicals,07-Sep-2016,5245958239,Amazon EU,5969,Books-school library,6.74,0.00,6.74
Neighbourhood Services,Direct Services,010301,C&G - North Grounds Maintenance,Supplies and Services,312011,Newspapers Books and Periodicals,07-Sep-2016,5245958271,GRALANDS WOODWORK SUPP,5251,Books-school library,104.40,0.00,104.40
Neighbourhood Services,Culture & Sport,011206,Sports,Employees,040149,Recruitment Instruction and Training,07-Sep-2016,5245958291,TYNE AND WEAR SPORT,8299,Training-all costs,35.00,0.00,35.00
Neighbourhood Services,Culture & Sport,054235,Bp Auckland Town Hall Cafe,Supplies and Services,324117,Provisions,07-Sep-2016,5245958293,JR HOLLAND FOODSERVICE,5422,Catering costs - provisions,21.67,0.00,21.67
Regeneration & Economic Development,Transport and Contracted Services,031701,Care Connect All Localities,Supplies and Services,344033,Telephones,07-Sep-2016,5245958299,BT BILL PAYMENT 2,4812,Telephones general-all costs,29.49,4.92,24.57
Neighbourhood Services,Direct Services,021324,Catering - Meadowfield,Supplies and Services,324117,Provisions,07-Sep-2016,5245958303,FREEMAN CATERING BUTCH,5422,Catering costs - provisions,84.78,0.00,84.78
Neighbourhood Services,Direct Services,021324,Catering - Meadowfield,Supplies and Services,324117,Provisions,07-Sep-2016,5245958307,FREEMAN CATERING BUTCH,5422,Catering costs - provisions,71.61,0.00,71.61
Neighbourhood Services,Direct Services,021324,Catering - Meadowfield,Supplies and Services,324117,Provisions,07-Sep-2016,5245958311,JR HOLLAND FOODSERVICE,5422,Catering costs - provisions,30.95,0.00,30.95
Neighbourhood Services,Direct Services,021324,Catering - Meadowfield,Supplies and Services,324117,Provisions,07-Sep-2016,5245958315,JR HOLLAND FOODSERVICE,5422,Catering costs - provisions,6.87,0.00,6.87
Neighbourhood Services,Direct Services,021324,Catering - Meadowfield,Supplies and Services,324117,Provisions,07-Sep-2016,5245958317,BRAKE BROS LTD,5811,Catering costs - provisions,43.74,7.29,36.45
Neighbourhood Services,Direct Services,021324,Catering - Meadowfield,Supplies and Services,324117,Provisions,07-Sep-2016,5245958317 - 1,BRAKE BROS LTD,5811,Catering costs - provisions,63.21,,63.21
Children and Adult Services,Childrens Services,088073,Barnard Castle 0 - 5,Supplies and Services,308011,Furniture,07-Sep-2016,5245958331,POUNDSTRETCHER 692,5714,Furniture repair and replacement,19.98,0.00,19.98
Regeneration & Economic Development,Economic Development and Housing,030737,Durham Works Flexible Fund,Supplies and Services,384700,Miscellaneous Expenses,07-Sep-2016,5245958365,ONE STOP 2969,5411,Miscellaneous grants,14.00,0.00,14.00
Neighbourhood Services,Direct Services,021235,Catering - Wharton Park,Supplies and Services,324117,Provisions,07-Sep-2016,5245958373,BRAKE BROS LTD,5811,Catering costs - provisions,141.24,23.54,117.70
Neighbourhood Services,Direct Services,021235,Catering - Wharton Park,Supplies and Services,324117,Provisions,07-Sep-2016,5245958373 - 1,BRAKE BROS LTD,5811,Catering costs - provisions,13.25,,13.25
Neighbourhood Services,Culture & Sport,010605,Woodhouse Close Leisure Complex,Supplies and Services,324117,Provisions,07-Sep-2016,5245958387,FREEMAN CATERING BUTCH,5422,Catering costs - provisions,43.80,0.00,43.80
Neighbourhood Services,Culture & Sport,010605,Woodhouse Close Leisure Complex,Supplies and Services,324117,Provisions,07-Sep-2016,5245958391,JR HOLLAND FOODSERVICE,5422,Catering costs - provisions,33.11,0.00,33.11
Regeneration & Economic Development,Spatial Policy Planning Assets & Environment,031200,North Pennines Core,Supplies and Services,338048,Services,07-Sep-2016,5245958413,EDEN DISTRICT COUN,9222,Court Costs,292.50,0.00,292.50
Children and Adult Services,Childrens Services,085957,Secure Management,Supplies and Services,328041,Clothing Uniforms and Laundry,07-Sep-2016,5250093657,UnitedDirect Online,5655,Clothing uniforms and laundry,54.95,0.00,54.95
Children and Adult Services,Childrens Services,085957,Secure Management,Supplies and Services,304649,Equipment and Materials,07-Sep-2016,5250093669,AMAZON UK RETAIL AMAZO,5999,Toys,12.55,0.00,12.55
Children and Adult Services,Childrens Services,085957,Secure Management,Supplies and Services,384999,Miscellaneous Expenses,07-Sep-2016,5250093671,AMAZON UK RETAIL AMAZO,5999,Other expenses,13.15,0.00,13.15
Children and Adult Services,Childrens Services,085956,Lumley,Supplies and Services,384999,Miscellaneous Expenses,08-Sep-2016,5245958077,"Amazon Svcs Europe,SAR",5942,Other expenses,9.99,0.00,9.99
Children and Adult Services,Childrens Services,085956,Lumley,Supplies and Services,384999,Miscellaneous Expenses,08-Sep-2016,5245958079,Amazon UK Marketplace,5942,Other expenses,5.99,0.00,5.99
Children and Adult Services,Education,071733,Shildon Childcare,Supplies and Services,324117,Provisions,08-Sep-2016,5250093423,TESCO STORES 2916,5411,Catering costs - provisions,15.75,0.00,15.75
Neighbourhood Services,Direct Services,010383,C&G - South Street Cleansing,Supplies and Services,304403,Equipment and Materials,08-Sep-2016,5250093449,FRED WILLIAMSON,5231,Other consumables,48.60,8.10,40.50
Neighbourhood Services,Direct Services,010383,C&G - South Street Cleansing,Supplies and Services,304221,Equipment and Materials,08-Sep-2016,5250093451,AZTEC CHEMICALS LTD,5169,Direct materials,299.04,49.84,249.20
Regeneration & Economic Development,Economic Development and Housing,030737,Durham Works Flexible Fund,Supplies and Services,328041,Clothing Uniforms and Laundry,08-Sep-2016,5250093473,ASDA STORES LTD,5411,Clothing uniforms and laundry,26.05,0.00,26.05
Regeneration & Economic Development,Economic Development and Housing,030737,Durham Works Flexible Fund,Supplies and Services,328041,Clothing Uniforms and Laundry,08-Sep-2016,5250093475,ASDA STORES LTD,5411,Clothing uniforms and laundry,-6.00,0.00,-6.00
Neighbourhood Services,Direct Services,021242,Catering - County Hall,Supplies and Services,324117,Provisions,08-Sep-2016,5250093477,JR HOLLAND FOODSERVICE,5422,Catering costs - provisions,111.74,0.00,111.74
Neighbourhood Services,Direct Services,021242,Catering - County Hall,Supplies and Services,324117,Provisions,08-Sep-2016,5250093483,JR HOLLAND FOODSERVICE,5422,Catering costs - provisions,13.16,0.00,13.16
Neighbourhood Services,Direct Services,021242,Catering - County Hall,Supplies and Services,324117,Provisions,08-Sep-2016,5250093485,BRAKE BROS LTD,5811,Catering costs - provisions,178.48,0.00,178.48
Children and Adult Services,Education,070169,Durham SSP,Supplies and Services,384199,Miscellaneous Expenses,08-Sep-2016,5250093487,SAMBUCA DURHAM,5812,Other hired and contracted services,43.60,0.00,43.60
Neighbourhood Services,Direct Services,010900,Fleet - Meadowfield Fleet,Transport,215013,Running Costs of Vehicles,08-Sep-2016,5250093513,DVLA VEHICLE TAX,9399,Vehicle Excise Duty (VED),232.50,0.00,232.50
Neighbourhood Services,Direct Services,010900,Fleet - Meadowfield Fleet,Transport,215013,Running Costs of Vehicles,08-Sep-2016,5250093515,DVLA VEHICLE TAX,9399,Vehicle Excise Duty (VED),232.50,0.00,232.50
Neighbourhood Services,Direct Services,010900,Fleet - Meadowfield Fleet,Transport,215013,Running Costs of Vehicles,08-Sep-2016,5250093517,DVLA VEHICLE TAX,9399,Vehicle Excise Duty (VED),232.50,0.00,232.50
Neighbourhood Services,Direct Services,010900,Fleet - Meadowfield Fleet,Transport,215013,Running Costs of Vehicles,08-Sep-2016,5250093519,DVLA VEHICLE TAX,9399,Vehicle Excise Duty (VED),232.50,0.00,232.50
Neighbourhood Services,Direct Services,010900,Fleet - Meadowfield Fleet,Transport,215013,Running Costs of Vehicles,08-Sep-2016,5250093521,DVLA VEHICLE TAX,9399,Vehicle Excise Duty (VED),22.50,0.00,22.50
Neighbourhood Services,Direct Services,010864,Fleet - Hackworth Road Fleet,Transport,215013,Running Costs of Vehicles,08-Sep-2016,5250093523,DVLA VEHICLE TAX,9399,Vehicle Excise Duty (VED),652.50,0.00,652.50
Neighbourhood Services,Direct Services,010900,Fleet - Meadowfield Fleet,Transport,215013,Running Costs of Vehicles,08-Sep-2016,5250093525,DVLA VEHICLE TAX,9399,Vehicle Excise Duty (VED),232.50,0.00,232.50
Neighbourhood Services,Direct Services,010864,Fleet - Hackworth Road Fleet,Transport,215013,Running Costs of Vehicles,08-Sep-2016,5250093527,DVLA VEHICLE TAX,9399,Vehicle Excise Duty (VED),232.50,0.00,232.50
Neighbourhood Services,Direct Services,010900,Fleet - Meadowfield Fleet,Transport,215013,Running Costs of Vehicles,08-Sep-2016,5250093529,DVLA VEHICLE TAX,9399,Vehicle Excise Duty (VED),232.50,0.00,232.50
Neighbourhood Services,Direct Services,010900,Fleet - Meadowfield Fleet,Transport,215013,Running Costs of Vehicles,08-Sep-2016,5250093531,DVLA VEHICLE TAX,9399,Vehicle Excise Duty (VED),232.50,0.00,232.50
Neighbourhood Services,Direct Services,010864,Fleet - Hackworth Road Fleet,Transport,215013,Running Costs of Vehicles,08-Sep-2016,5250093533,DVLA VEHICLE TAX,9399,Vehicle Excise Duty (VED),652.50,0.00,652.50
Neighbourhood Services,Direct Services,010900,Fleet - Meadowfield Fleet,Transport,215013,Running Costs of Vehicles,08-Sep-2016,5250093535,DVLA VEHICLE TAX,9399,Vehicle Excise Duty (VED),232.50,0.00,232.50
Neighbourhood Services,Direct Services,010864,Fleet - Hackworth Road Fleet,Transport,215013,Running Costs of Vehicles,08-Sep-2016,5250093537,DVLA VEHICLE TAX,9399,Vehicle Excise Duty (VED),652.50,0.00,652.50
Neighbourhood Services,Direct Services,010900,Fleet - Meadowfield Fleet,Transport,215013,Running Costs of Vehicles,08-Sep-2016,5250093539,DVLA VEHICLE TAX,9399,Vehicle Excise Duty (VED),652.50,0.00,652.50
Neighbourhood Services,Direct Services,010561,Fleet - Morrison Busty Fleet,Transport,215013,Running Costs of Vehicles,08-Sep-2016,5250093541,DVLA VEHICLE TAX,9399,Vehicle Excise Duty (VED),232.50,0.00,232.50
Neighbourhood Services,Direct Services,010900,Fleet - Meadowfield Fleet,Transport,215013,Running Costs of Vehicles,08-Sep-2016,5250093543,DVLA VEHICLE TAX,9399,Vehicle Excise Duty (VED),167.50,0.00,167.50
Neighbourhood Services,Direct Services,010900,Fleet - Meadowfield Fleet,Transport,215013,Running Costs of Vehicles,08-Sep-2016,5250093545,DVLA VEHICLE TAX,9399,Vehicle Excise Duty (VED),232.50,0.00,232.50
Neighbourhood Services,Direct Services,010561,Fleet - Morrison Busty Fleet,Transport,215013,Running Costs of Vehicles,08-Sep-2016,5250093547,DVLA VEHICLE TAX,9399,Vehicle Excise Duty (VED),167.50,0.00,167.50
Neighbourhood Services,Direct Services,010900,Fleet - Meadowfield Fleet,Transport,215013,Running Costs of Vehicles,08-Sep-2016,5250093549,DVLA VEHICLE TAX,9399,Vehicle Excise Duty (VED),167.50,0.00,167.50
Neighbourhood Services,Direct Services,010900,Fleet - Meadowfield Fleet,Transport,215013,Running Costs of Vehicles,08-Sep-2016,5250093551,DVLA VEHICLE TAX,9399,Vehicle Excise Duty (VED),232.50,0.00,232.50
Neighbourhood Services,Direct Services,010900,Fleet - Meadowfield Fleet,Transport,215013,Running Costs of Vehicles,08-Sep-2016,5250093553,DVLA VEHICLE TAX,9399,Vehicle Excise Duty (VED),232.50,0.00,232.50
Neighbourhood Services,Direct Services,010561,Fleet - Morrison Busty Fleet,Transport,215013,Running Costs of Vehicles,08-Sep-2016,5250093555,DVLA VEHICLE TAX,9399,Vehicle Excise Duty (VED),232.50,0.00,232.50
Neighbourhood Services,Direct Services,010900,Fleet - Meadowfield Fleet,Transport,215013,Running Costs of Vehicles,08-Sep-2016,5250093557,DVLA VEHICLE TAX,9399,Vehicle Excise Duty (VED),232.50,0.00,232.50
Neighbourhood Services,Direct Services,010900,Fleet - Meadowfield Fleet,Transport,215013,Running Costs of Vehicles,08-Sep-2016,5250093561,DVLA VEHICLE TAX,9399,Vehicle Excise Duty (VED),232.50,0.00,232.50
Neighbourhood Services,Direct Services,010900,Fleet - Meadowfield Fleet,Transport,215013,Running Costs of Vehicles,08-Sep-2016,5250093563,DVLA VEHICLE TAX,9399,Vehicle Excise Duty (VED),232.50,0.00,232.50
Neighbourhood Services,Direct Services,010900,Fleet - Meadowfield Fleet,Transport,215013,Running Costs of Vehicles,08-Sep-2016,5250093565,DVLA VEHICLE TAX,9399,Vehicle Excise Duty (VED),232.50,0.00,232.50
Neighbourhood Services,Direct Services,010551,Fleet - Chilton Fleet,Transport,215013,Running Costs of Vehicles,08-Sep-2016,5250093567,DVLA VEHICLE TAX,9399,Vehicle Excise Duty (VED),232.50,0.00,232.50
Neighbourhood Services,Direct Services,010900,Fleet - Meadowfield Fleet,Transport,215013,Running Costs of Vehicles,08-Sep-2016,5250093569,DVLA VEHICLE TAX,9399,Vehicle Excise Duty (VED),232.50,0.00,232.50
Neighbourhood Services,Direct Services,010864,Fleet - Hackworth Road Fleet,Transport,215013,Running Costs of Vehicles,08-Sep-2016,5250093571,DVLA VEHICLE TAX,9399,Vehicle Excise Duty (VED),232.50,0.00,232.50
Neighbourhood Services,Direct Services,010864,Fleet - Hackworth Road Fleet,Transport,215013,Running Costs of Vehicles,08-Sep-2016,5250093573,DVLA VEHICLE TAX,9399,Vehicle Excise Duty (VED),232.50,0.00,232.50
Neighbourhood Services,Direct Services,010864,Fleet - Hackworth Road Fleet,Transport,215013,Running Costs of Vehicles,08-Sep-2016,5250093575,DVLA VEHICLE TAX,9399,Vehicle Excise Duty (VED),232.50,0.00,232.50
Neighbourhood Services,Direct Services,010864,Fleet - Hackworth Road Fleet,Transport,215013,Running Costs of Vehicles,08-Sep-2016,5250093577,DVLA VEHICLE TAX,9399,Vehicle Excise Duty (VED),232.50,0.00,232.50
Neighbourhood Services,Direct Services,010561,Fleet - Morrison Busty Fleet,Transport,215013,Running Costs of Vehicles,08-Sep-2016,5250093579,DVLA VEHICLE TAX,9399,Vehicle Excise Duty (VED),232.50,0.00,232.50
Neighbourhood Services,Direct Services,010864,Fleet - Hackworth Road Fleet,Transport,215013,Running Costs of Vehicles,08-Sep-2016,5250093581,DVLA VEHICLE TAX,9399,Vehicle Excise Duty (VED),232.50,0.00,232.50
Neighbourhood Services,Direct Services,010900,Fleet - Meadowfield Fleet,Transport,215013,Running Costs of Vehicles,08-Sep-2016,5250093583,DVLA VEHICLE TAX,9399,Vehicle Excise Duty (VED),232.50,0.00,232.50
Neighbourhood Services,Direct Services,010551,Fleet - Chilton Fleet,Transport,215013,Running Costs of Vehicles,08-Sep-2016,5250093585,DVLA VEHICLE TAX,9399,Vehicle Excise Duty (VED),232.50,0.00,232.50
Neighbourhood Services,Direct Services,010900,Fleet - Meadowfield Fleet,Transport,215013,Running Costs of Vehicles,08-Sep-2016,5250093587,DVLA VEHICLE TAX,9399,Vehicle Excise Duty (VED),232.50,0.00,232.50
Neighbourhood Services,Direct Services,010864,Fleet - Hackworth Road Fleet,Transport,215013,Running Costs of Vehicles,08-Sep-2016,5250093589,DVLA VEHICLE TAX,9399,Vehicle Excise Duty (VED),232.50,0.00,232.50
Neighbourhood Services,Direct Services,010900,Fleet - Meadowfield Fleet,Transport,215013,Running Costs of Vehicles,08-Sep-2016,5250093591,DVLA VEHICLE TAX,9399,Vehicle Excise Duty (VED),232.50,0.00,232.50
Neighbourhood Services,Direct Services,010900,Fleet - Meadowfield Fleet,Transport,215013,Running Costs of Vehicles,08-Sep-2016,5250093593,DVLA VEHICLE TAX,9399,Vehicle Excise Duty (VED),232.50,0.00,232.50
Neighbourhood Services,Direct Services,010900,Fleet - Meadowfield Fleet,Transport,215013,Running Costs of Vehicles,08-Sep-2016,5250093597,DVLA VEHICLE TAX,9399,Vehicle Excise Duty (VED),232.50,0.00,232.50
Neighbourhood Services,Direct Services,010900,Fleet - Meadowfield Fleet,Transport,215013,Running Costs of Vehicles,08-Sep-2016,5250093599,DVLA VEHICLE TAX,9399,Vehicle Excise Duty (VED),232.50,0.00,232.50
Neighbourhood Services,Direct Services,010900,Fleet - Meadowfield Fleet,Transport,215013,Running Costs of Vehicles,08-Sep-2016,5250093603,DVLA VEHICLE TAX,9399,Vehicle Excise Duty (VED),232.50,0.00,232.50
Neighbourhood Services,Direct Services,010900,Fleet - Meadowfield Fleet,Transport,215013,Running Costs of Vehicles,08-Sep-2016,5250093605,DVLA VEHICLE TAX,9399,Vehicle Excise Duty (VED),232.50,0.00,232.50
Neighbourhood Services,Direct Services,010900,Fleet - Meadowfield Fleet,Transport,215013,Running Costs of Vehicles,08-Sep-2016,5250093607,DVLA VEHICLE TAX,9399,Vehicle Excise Duty (VED),232.50,0.00,232.50
Neighbourhood Services,Direct Services,010900,Fleet - Meadowfield Fleet,Transport,215013,Running Costs of Vehicles,08-Sep-2016,5250093609,DVLA VEHICLE TAX,9399,Vehicle Excise Duty (VED),232.50,0.00,232.50
Neighbourhood Services,Direct Services,010900,Fleet - Meadowfield Fleet,Transport,215013,Running Costs of Vehicles,08-Sep-2016,5250093611,DVLA VEHICLE TAX,9399,Vehicle Excise Duty (VED),232.50,0.00,232.50
Regeneration & Economic Development,Economic Development and Housing,030749,Employability - Youth Contract,Transport,235057,Public Transport,08-Sep-2016,5250093613,WWW.SIMPLYGO.COM,4131,Staff travelling,86.54,0.00,86.54
Regeneration & Economic Development,Economic Development and Housing,030749,Employability - Youth Contract,Transport,235005,Public Transport,08-Sep-2016,5250093615,ARRIVA PASSENGER S,7538,Contract tickets,48.00,0.00,48.00
Children and Adult Services,Childrens Services,085341,High Etherley Satelite Home,Supplies and Services,304259,Equipment and Materials,08-Sep-2016,5250093621,B & Q 1120,5211,Equipment-purchase and rental,39.73,0.00,39.73
Children and Adult Services,Childrens Services,088037,One Point YEI,Supplies and Services,304403,Equipment and Materials,08-Sep-2016,5250093635,GRO HM PASSPORT OFFICE,9399,Other consumables,18.50,0.00,18.50
Children and Adult Services,Childrens Services,085956,Lumley,Supplies and Services,384999,Miscellaneous Expenses,08-Sep-2016,5250093645,"Amazon Svcs Europe,SAR",5942,Other expenses,14.71,0.00,14.71
Children and Adult Services,Childrens Services,085956,Lumley,Supplies and Services,384999,Miscellaneous Expenses,08-Sep-2016,5250093647,"Amazon Svcs Europe,SAR",5942,Other expenses,4.57,0.00,4.57
Children and Adult Services,Childrens Services,085956,Lumley,Supplies and Services,384999,Miscellaneous Expenses,08-Sep-2016,5250093649,Amazon UK Marketplace,5942,Other expenses,3.99,0.00,3.99
Children and Adult Services,Childrens Services,085956,Lumley,Supplies and Services,384999,Miscellaneous Expenses,08-Sep-2016,5250093651,Amazon UK Marketplace,5942,Other expenses,12.95,0.00,12.95
Children and Adult Services,Childrens Services,085956,Lumley,Supplies and Services,384999,Miscellaneous Expenses,08-Sep-2016,5250093653,Amazon UK Marketplace,5942,Other expenses,15.95,0.00,15.95
Children and Adult Services,Childrens Services,085956,Lumley,Supplies and Services,384999,Miscellaneous Expenses,08-Sep-2016,5250093655,Amazon UK Marketplace,5942,Other expenses,16.99,0.00,16.99
Children and Adult Services,Childrens Services,085952,Secure Education,Supplies and Services,332047,Printing Stationery and Gen Off Exps,08-Sep-2016,5250093659,DETECTAMET LTD,8999,Stationery,30.60,0.00,30.60
Children and Adult Services,Childrens Services,085955,Auckland,Supplies and Services,384999,Miscellaneous Expenses,08-Sep-2016,5250093661,ARGOS RETAIL GROUP,5310,Other expenses,107.94,0.00,107.94
Children and Adult Services,Childrens Services,085957,Secure Management,Supplies and Services,324117,Provisions,08-Sep-2016,5250093663,TESCO STORES 6329,5411,Catering costs - provisions,125.28,0.00,125.28
Children and Adult Services,Childrens Services,085957,Secure Management,Supplies and Services,328041,Clothing Uniforms and Laundry,08-Sep-2016,5250093667,WWW.NIKESTORE.COM,5691,Clothing uniforms and laundry,50.00,8.33,41.67
Children and Adult Services,Childrens Services,085956,Lumley,Supplies and Services,304403,Equipment and Materials,08-Sep-2016,5250093673,AMAZON UK RETAIL AMAZO,5999,Other consumables,19.32,0.00,19.32
Neighbourhood Services,Direct Services,010301,C&G - North Grounds Maintenance,Supplies and Services,304221,Equipment and Materials,08-Sep-2016,5250093679,WWW.BARRIERSDIRECT.CO.,5085,Direct materials,162.12,27.02,135.10
Neighbourhood Services,Direct Services,010301,C&G - North Grounds Maintenance,Supplies and Services,304403,Equipment and Materials,08-Sep-2016,5250093681,BESCOL,5231,Other consumables,76.74,12.79,63.95
Neighbourhood Services,Culture & Sport,011060,Hardwick Park Catering,Supplies and Services,324117,Provisions,08-Sep-2016,5250093683,JR HOLLAND FOODSERVICE,5422,Catering costs - provisions,34.98,0.00,34.98
Regeneration & Economic Development,Economic Development and Housing,031576,B& B - Temp Accom,Supplies and Services,364320,Grants to Voluntary Organisations,08-Sep-2016,5250093691,AYCLIFFE BIZ,7011,Accommodation assistance,245.00,0.00,245.00
Regeneration & Economic Development,Economic Development and Housing,031576,B& B - Temp Accom,Supplies and Services,364320,Grants to Voluntary Organisations,08-Sep-2016,5250093693,AYCLIFFE BIZ,7011,Accommodation assistance,245.00,0.00,245.00
Regeneration & Economic Development,Economic Development and Housing,031576,B& B - Temp Accom,Supplies and Services,364320,Grants to Voluntary Organisations,08-Sep-2016,5250093695,AYCLIFFE BIZ,7011,Accommodation assistance,245.00,0.00,245.00
Regeneration & Economic Development,Economic Development and Housing,031576,B& B - Temp Accom,Supplies and Services,364320,Grants to Voluntary Organisations,08-Sep-2016,5250093697,AYCLIFFE BIZ,7011,Accommodation assistance,245.00,0.00,245.00
Regeneration & Economic Development,Economic Development and Housing,031576,B& B - Temp Accom,Supplies and Services,364320,Grants to Voluntary Organisations,08-Sep-2016,5250093699,AYCLIFFE BIZ,7011,Accommodation assistance,140.00,0.00,140.00
Regeneration & Economic Development,Economic Development and Housing,031576,B& B - Temp Accom,Supplies and Services,364320,Grants to Voluntary Organisations,08-Sep-2016,5250093701,DAYS INN,7011,Accommodation assistance,49.00,8.17,40.83
Neighbourhood Services,Direct Services,010525,Catering - Green Lane,Supplies and Services,324117,Provisions,08-Sep-2016,5250093717,BRAKE BROS LTD,5811,Catering costs - provisions,-13.95,0.00,-13.95
Children and Adult Services,Childrens Services,085556,Child Protection Team Stanley,Supplies and Services,338045,Services,08-Sep-2016,5250093719,HM PASSPORT,9399,Legal expenses,270.00,0.00,270.00
Neighbourhood Services,Culture & Sport,011217,Commercial Management,Supplies and Services,312009,Newspapers Books and Periodicals,08-Sep-2016,5250093721,PAYPAL COLOPHONFOU,5932,Newspapers books and periodicals,48.00,8.00,40.00
Children and Adult Services,Childrens Services,085352,Tow Law CU,Supplies and Services,324117,Provisions,08-Sep-2016,5250093727,TESCO STORES 2371,5411,Catering costs - provisions,205.92,0.00,205.92
Children and Adult Services,Childrens Services,088053,Stanley 0 - 5,Supplies and Services,304259,Equipment and Materials,08-Sep-2016,5250093735,DURHAM COUNTY COUNCIL,9399,Equipment-purchase and rental,20.00,0.00,20.00
Neighbourhood Services,Direct Services,010367,C&G - South Grounds Maintenance,Supplies and Services,304221,Equipment and Materials,08-Sep-2016,5250093755,R DEFTY,5200,Direct materials,52.80,0.00,52.80
Regeneration & Economic Development,Economic Development and Housing,030749,Employability - Youth Contract,Transport,235057,Public Transport,08-Sep-2016,5250093771,WWW.SIMPLYGO.COM,4131,Staff travelling,24.40,0.00,24.40
Regeneration & Economic Development,Economic Development and Housing,030749,Employability - Youth Contract,Supplies and Services,328041,Clothing Uniforms and Laundry,08-Sep-2016,5250093773,MATALAN,5691,Clothing uniforms and laundry,39.05,0.00,39.05
Neighbourhood Services,Direct Services,020071,Bldg Serv - CONS Div 71 - Heating South,Supplies and Services,342033,Computers and Communications,08-Sep-2016,5250093797,Amazon UK Marketplace,5942,Computer hardware,4.46,0.00,4.46
Neighbourhood Services,Technical Services,018400,018400 Highways Operations - West,Supplies and Services,344033,Telephones,08-Sep-2016,5250093799,Amazon UK Marketplace,5942,Telephones general-all costs,22.90,0.00,22.90
Resources,I.C.T. Services,065329,Operations - Primary Support,Supplies and Services,338064,Services,08-Sep-2016,5250093801,DISCLOSURE SCOT,9399,Disclosure & Barring (DBS) Fees,25.00,0.00,25.00
Children and Adult Services,Head of Adults,052753,Social Care Direct,Supplies and Services,338064,Services,08-Sep-2016,5250093803,DISCLOSURE SCOT,9399,Disclosure & Barring (DBS) Fees,25.00,0.00,25.00
Resources,I.C.T. Services,065230,IT Renewals Fund,Supplies and Services,332047,Printing Stationery and Gen Off Exps,08-Sep-2016,5250093805,Amazon UK Marketplace,5942,Stationery,18.94,0.00,18.94
Regeneration & Economic Development,Spatial Policy Planning Assets & Environment,031200,North Pennines Core,Supplies and Services,352001,Conference Expenses,08-Sep-2016,5250093823,CAMPANILE HOTELS,3672,Conferencesseminars fees etc,125.78,0.00,125.78
Neighbourhood Services,Direct Services,010301,C&G - North Grounds Maintenance,Supplies and Services,304259,Equipment and Materials,08-Sep-2016,5250093853,SCREWFIX,5211,Equipment-purchase and rental,23.98,4.00,19.98
Children and Adult Services,Childrens Services,088003,Peterlee 0 - 5,Supplies and Services,308011,Furniture,08-Sep-2016,5250093869,J DODDS CARPETS LTD,5713,Furniture repair and replacement,150.00,25.00,125.00
Children and Adult Services,Childrens Services,088003,Peterlee 0 - 5,Supplies and Services,304259,Equipment and Materials,08-Sep-2016,5250093871,WILKO.COM,5722,Equipment-purchase and rental,138.00,23.00,115.00
Neighbourhood Services,Culture & Sport,054235,Bp Auckland Town Hall Cafe,Supplies and Services,324117,Provisions,08-Sep-2016,5250093895,JR HOLLAND FOODSERVICE,5422,Catering costs - provisions,18.30,0.00,18.30
Children and Adult Services,Childrens Services,085333,Coxhoe Satelite Home,Supplies and Services,324117,Provisions,08-Sep-2016,5250093897,ALDI,5411,Catering costs - provisions,19.15,3.19,15.96
Children and Adult Services,Childrens Services,085333,Coxhoe Satelite Home,Supplies and Services,324117,Provisions,08-Sep-2016,5250093899,ALDI,5411,Catering costs - provisions,12.60,2.10,10.50
Children and Adult Services,Childrens Services,085333,Coxhoe Satelite Home,Supplies and Services,324117,Provisions,08-Sep-2016,5250093899 - 1,ALDI,5411,Catering costs - provisions,108.32,,108.32
Neighbourhood Services,Direct Services,021235,Catering - Wharton Park,Supplies and Services,324117,Provisions,08-Sep-2016,5250093937,JR HOLLAND FOODSERVICE,5422,Catering costs - provisions,21.05,0.00,21.05
Neighbourhood Services,Culture & Sport,026591,Hardwick Hall Country Park,Supplies and Services,384999,Miscellaneous Expenses,08-Sep-2016,5250093955,WWW.ANGELWHOLESALE.CO.,5641,Other expenses,56.27,9.38,46.89
Neighbourhood Services,Culture & Sport,026591,Hardwick Hall Country Park,Supplies and Services,332047,Printing Stationery and Gen Off Exps,08-Sep-2016,5250093957,WWW.YORKSHIREENVELOPES,5943,Stationery,24.18,4.03,20.15
Neighbourhood Services,Culture & Sport,010605,Woodhouse Close Leisure Complex,Supplies and Services,324117,Provisions,08-Sep-2016,5250093969,BRAKE BROS LTD,5811,Catering costs - provisions,85.08,14.18,70.90
Neighbourhood Services,Culture & Sport,010605,Woodhouse Close Leisure Complex,Supplies and Services,324117,Provisions,08-Sep-2016,5250093969 - 1,BRAKE BROS LTD,5811,Catering costs - provisions,127.00,,127.00
Children and Adult Services,Childrens Services,085372,Young People Services - North,Supplies and Services,338064,Services,08-Sep-2016,5250093971,DISCLOSURE SCOT,9399,Disclosure & Barring (DBS) Fees,25.00,0.00,25.00
Neighbourhood Services,Direct Services,010301,C&G - North Grounds Maintenance,Supplies and Services,304221,Equipment and Materials,08-Sep-2016,5279384965,WWW.BARRIERSDIRECT.CO.,5085,Direct materials,-73.92,0.00,-73.92
Regeneration & Economic Development,Spatial Policy Planning Assets & Environment,031200,North Pennines Core,Supplies and Services,352001,Conference Expenses,09-Sep-2016,5250093825,CAMPANILE HOTELS,3672,Conferencesseminars fees etc,3.46,0.00,3.46
Children and Adult Services,Education,071801,Selby Cottage Childcare Centre,Supplies and Services,324117,Provisions,09-Sep-2016,5255163261,TESCO STORES 2278,5411,Catering costs - provisions,33.53,0.00,33.53
Children and Adult Services,Education,071801,Selby Cottage Childcare Centre,Supplies and Services,308011,Furniture,09-Sep-2016,5255163263,IKEA,5719,Furniture repair and replacement,205.00,34.17,170.83
Children and Adult Services,Education,071801,Selby Cottage Childcare Centre,Supplies and Services,328041,Clothing Uniforms and Laundry,09-Sep-2016,5255163265,THE RANGE,5311,Clothing uniforms and laundry,166.38,27.73,138.65
Children and Adult Services,Education,071801,Selby Cottage Childcare Centre,Supplies and Services,328041,Clothing Uniforms and Laundry,09-Sep-2016,5255163265 - 1,THE RANGE,5311,Clothing uniforms and laundry,0.03,,0.03
Children and Adult Services,Education,054640,Durham Learning Resources,Supplies and Services,332047,Printing Stationery and Gen Off Exps,09-Sep-2016,5255163285,WWW.REDMONTPKG.CO.UK,5943,Stationery,-64.44,0.00,-64.44
Children and Adult Services,Education,071733,Shildon Childcare,Supplies and Services,304403,Equipment and Materials,09-Sep-2016,5255163293,TESCO STORES 2916,5411,Other consumables,10.34,0.00,10.34
Children and Adult Services,Education,071733,Shildon Childcare,Supplies and Services,324117,Provisions,09-Sep-2016,5255163295,TESCO STORES 2916,5411,Catering costs - provisions,4.93,0.00,4.93
Children and Adult Services,Education,071733,Shildon Childcare,Supplies and Services,304649,Equipment and Materials,09-Sep-2016,5255163297,CARD FACTORY,5947,Toys,10.95,0.00,10.95
Children and Adult Services,Education,071733,Shildon Childcare,Supplies and Services,304649,Equipment and Materials,09-Sep-2016,5255163299,CARD FACTORY,5947,Toys,17.47,0.00,17.47
Children and Adult Services,Education,071733,Shildon Childcare,Supplies and Services,308011,Furniture,09-Sep-2016,5255163303,POUNDLAND LTD 1554,5310,Furniture repair and replacement,15.00,0.00,15.00
Children and Adult Services,Education,071733,Shildon Childcare,Supplies and Services,304649,Equipment and Materials,09-Sep-2016,5255163305,POUNDWORLD,5310,Toys,3.00,0.50,2.50
Children and Adult Services,Education,078100,Curric and Professional Development,Supplies and Services,312009,Newspapers Books and Periodicals,09-Sep-2016,5255163395,Amazon EU,5969,Newspapers books and periodicals,90.91,0.00,90.91
Children and Adult Services,Education,078554,Adult Skills-Main,Supplies and Services,340001,Postages,09-Sep-2016,5255163399,WWW.ROYALMAIL.COM,9402,Postages,58.57,0.00,58.57
Neighbourhood Services,Direct Services,021242,Catering - County Hall,Supplies and Services,324117,Provisions,09-Sep-2016,5255163429,JR HOLLAND FOODSERVICE,5422,Catering costs - provisions,56.69,0.00,56.69
Neighbourhood Services,Direct Services,021242,Catering - County Hall,Supplies and Services,324117,Provisions,09-Sep-2016,5255163433,BRAKE BROS LTD,5811,Catering costs - provisions,127.32,21.22,106.10
Neighbourhood Services,Direct Services,021242,Catering - County Hall,Supplies and Services,324117,Provisions,09-Sep-2016,5255163433 - 1,BRAKE BROS LTD,5811,Catering costs - provisions,342.67,,342.67
Children and Adult Services,Education,070169,Durham SSP,Supplies and Services,384199,Miscellaneous Expenses,09-Sep-2016,5255163441,PAYPAL IMPACTPROMO,5941,Other hired and contracted services,302.40,0.00,302.40
Resources,I.C.T. Services,065464,Domains,Supplies and Services,372009,Subscriptions,09-Sep-2016,5255163443,NOMINET UK,7379,Subscriptions,4.50,0.75,3.75
Resources,I.C.T. Services,065464,Domains,Supplies and Services,372009,Subscriptions,09-Sep-2016,5255163447,NOMINET UK,7379,Subscriptions,22.50,3.75,18.75
Neighbourhood Services,Direct Services,010864,Fleet - Hackworth Road Fleet,Transport,215013,Running Costs of Vehicles,09-Sep-2016,5255163507,DVLA VEHICLE TAX,9399,Vehicle Excise Duty (VED),232.50,0.00,232.50
Neighbourhood Services,Direct Services,010900,Fleet - Meadowfield Fleet,Transport,215013,Running Costs of Vehicles,09-Sep-2016,5255163509,DVLA VEHICLE TAX,9399,Vehicle Excise Duty (VED),232.50,0.00,232.50
Neighbourhood Services,Direct Services,010900,Fleet - Meadowfield Fleet,Transport,215013,Running Costs of Vehicles,09-Sep-2016,5255163511,DVLA VEHICLE TAX,9399,Vehicle Excise Duty (VED),232.50,0.00,232.50
Neighbourhood Services,Direct Services,010551,Fleet - Chilton Fleet,Transport,215013,Running Costs of Vehicles,09-Sep-2016,5255163513,DVLA VEHICLE TAX,9399,Vehicle Excise Duty (VED),232.50,0.00,232.50
Children and Adult Services,Childrens Services,088063,Bishop Auckland 0 - 5,Supplies and Services,324117,Provisions,09-Sep-2016,5255163517,SAINSBURYS 2199,5411,Catering costs - provisions,18.30,0.00,18.30
Children and Adult Services,Childrens Services,088063,Bishop Auckland 0 - 5,Supplies and Services,304403,Equipment and Materials,09-Sep-2016,5255163519,CARD FACTORY,5947,Other consumables,7.28,0.00,7.28
Children and Adult Services,Childrens Services,088063,Bishop Auckland 0 - 5,Supplies and Services,328041,Clothing Uniforms and Laundry,09-Sep-2016,5255163521,B & M RETAIL,5310,Clothing uniforms and laundry,50.49,0.00,50.49
Children and Adult Services,Childrens Services,088063,Bishop Auckland 0 - 5,Supplies and Services,328041,Clothing Uniforms and Laundry,09-Sep-2016,5255163523,POUNDLAND LTD 1554,5310,Clothing uniforms and laundry,53.00,8.83,44.17
Neighbourhood Services,Culture & Sport,011198,Culture & Sport Management,Supplies and Services,312009,Newspapers Books and Periodicals,09-Sep-2016,5255163569,AUCKLAND CASTLE,5947,Newspapers books and periodicals,79.95,0.00,79.95
Children and Adult Services,Childrens Services,085957,Secure Management,Supplies and Services,328041,Clothing Uniforms and Laundry,09-Sep-2016,5255163603,Amazon UK Marketplace,5942,Clothing uniforms and laundry,59.00,0.00,59.00
Children and Adult Services,Childrens Services,085957,Secure Management,Supplies and Services,324117,Provisions,09-Sep-2016,5255163607,TESCO STORES 6329,5411,Catering costs - provisions,82.16,0.00,82.16
Children and Adult Services,Childrens Services,088033,Durham 0 - 5,Transport,235005,Public Transport,09-Sep-2016,5255163619,ARRIVA PASSENGER S,7538,Contract tickets,-59.00,0.00,-59.00
Neighbourhood Services,Culture & Sport,011060,Hardwick Park Catering,Supplies and Services,324117,Provisions,09-Sep-2016,5255163623,JR HOLLAND FOODSERVICE,5422,Catering costs - provisions,12.67,0.00,12.67
Neighbourhood Services,Culture & Sport,011060,Hardwick Park Catering,Supplies and Services,324117,Provisions,09-Sep-2016,5255163625,BRAKE BROS LTD,5811,Catering costs - provisions,426.66,71.11,355.55
Neighbourhood Services,Culture & Sport,011060,Hardwick Park Catering,Supplies and Services,324117,Provisions,09-Sep-2016,5255163625 - 1,BRAKE BROS LTD,5811,Catering costs - provisions,48.81,,48.81
Neighbourhood Services,Culture & Sport,011060,Hardwick Park Catering,Supplies and Services,324117,Provisions,09-Sep-2016,5255163631,BRAKE BROS LTD,5811,Catering costs - provisions,137.46,22.91,114.55
Neighbourhood Services,Culture & Sport,011060,Hardwick Park Catering,Supplies and Services,324117,Provisions,09-Sep-2016,5255163631 - 1,BRAKE BROS LTD,5811,Catering costs - provisions,158.56,,158.56
Neighbourhood Services,Direct Services,021234,Catering - Locomotion,Supplies and Services,324117,Provisions,09-Sep-2016,5255163653,BRAMBLES FOODS LTD,5499,Catering costs - provisions,"2,000.00",0.00,2000.00
Neighbourhood Services,Direct Services,021234,Catering - Locomotion,Supplies and Services,324117,Provisions,09-Sep-2016,5255163657,BRAMBLES FOODS LTD,5499,Catering costs - provisions,"2,000.00",0.00,2000.00
Neighbourhood Services,Direct Services,021234,Catering - Locomotion,Supplies and Services,324117,Provisions,09-Sep-2016,5255163661,BRAMBLES FOODS LTD,5499,Catering costs - provisions,"1,468.58",0.00,1468.58
Neighbourhood Services,Direct Services,021234,Catering - Locomotion,Supplies and Services,324117,Provisions,09-Sep-2016,5255163665,BRAKE BROS LTD,5811,Catering costs - provisions,88.86,14.81,74.05
Neighbourhood Services,Direct Services,021234,Catering - Locomotion,Supplies and Services,324117,Provisions,09-Sep-2016,5255163665 - 1,BRAKE BROS LTD,5811,Catering costs - provisions,200.30,,200.30
Neighbourhood Services,Direct Services,021234,Catering - Locomotion,Supplies and Services,324117,Provisions,09-Sep-2016,5255163669,BRAKE BROS LTD,5811,Catering costs - provisions,175.86,29.31,146.55
Neighbourhood Services,Direct Services,021234,Catering - Locomotion,Supplies and Services,324117,Provisions,09-Sep-2016,5255163669 - 1,BRAKE BROS LTD,5811,Catering costs - provisions,64.79,,64.79
Regeneration & Economic Development,Economic Development and Housing,031576,B& B - Temp Accom,Supplies and Services,364320,Grants to Voluntary Organisations,09-Sep-2016,5255163677,DAYS INN,7011,Accommodation assistance,167.00,27.83,139.17
Regeneration & Economic Development,Economic Development and Housing,031576,B& B - Temp Accom,Supplies and Services,364320,Grants to Voluntary Organisations,09-Sep-2016,5255163679,THE HONEST LAWYER HOTE,7011,Accommodation assistance,57.00,0.00,57.00
Neighbourhood Services,Direct Services,010525,Catering - Green Lane,Supplies and Services,324117,Provisions,09-Sep-2016,5255163705,JR HOLLAND FOODSERVICE,5422,Catering costs - provisions,38.54,0.00,38.54
Children and Adult Services,Childrens Services,088053,Stanley 0 - 5,Supplies and Services,304259,Equipment and Materials,09-Sep-2016,5255163727,DURHAM COUNTY COUNCIL,9399,Equipment-purchase and rental,12.00,0.00,12.00
Resources,I.C.T. Services,069010,Administration,Transport,235057,Public Transport,09-Sep-2016,5255163801,OYSTER RENEW WEB,4112,Staff travelling,50.00,0.00,50.00
Neighbourhood Services,Direct Services,010301,C&G - North Grounds Maintenance,Supplies and Services,304259,Equipment and Materials,09-Sep-2016,5255163825,HARELAW SAWMILL,5211,Equipment-purchase and rental,64.62,10.77,53.85
Regeneration & Economic Development,Transport and Contracted Services,031701,Care Connect All Localities,Supplies and Services,344033,Telephones,09-Sep-2016,5255163849,BT BILL PAYMENT 1,4812,Telephones general-all costs,91.57,15.26,76.31
Regeneration & Economic Development,Transport and Contracted Services,031701,Care Connect All Localities,Supplies and Services,344033,Telephones,09-Sep-2016,5255163851,BT BILL PAYMENT 1,4812,Telephones general-all costs,91.57,15.26,76.31
Regeneration & Economic Development,Transport and Contracted Services,031701,Care Connect All Localities,Supplies and Services,344033,Telephones,09-Sep-2016,5255163853,BT BILL PAYMENT 1,4812,Telephones general-all costs,91.57,15.26,76.31
Regeneration & Economic Development,Transport and Contracted Services,031701,Care Connect All Localities,Supplies and Services,344033,Telephones,09-Sep-2016,5255163855,BT BILL PAYMENT 2,4812,Telephones general-all costs,15.30,2.55,12.75
Regeneration & Economic Development,Transport and Contracted Services,031701,Care Connect All Localities,Supplies and Services,344033,Telephones,09-Sep-2016,5255163857,BT BILL PAYMENT 2,4812,Telephones general-all costs,20.61,3.44,17.17
Regeneration & Economic Development,Transport and Contracted Services,031701,Care Connect All Localities,Supplies and Services,344033,Telephones,09-Sep-2016,5255163861,BT BILL PAYMENT 2,4812,Telephones general-all costs,45.05,7.51,37.54
Neighbourhood Services,Direct Services,021324,Catering - Meadowfield,Supplies and Services,324117,Provisions,09-Sep-2016,5255163863,JR HOLLAND FOODSERVICE,5422,Catering costs - provisions,40.55,0.00,40.55
Neighbourhood Services,Direct Services,021324,Catering - Meadowfield,Supplies and Services,324117,Provisions,09-Sep-2016,5255163869,JR HOLLAND FOODSERVICE,5422,Catering costs - provisions,9.87,0.00,9.87
Neighbourhood Services,Direct Services,021235,Catering - Wharton Park,Supplies and Services,324117,Provisions,09-Sep-2016,5255163917,BRAMBLES FOODS LTD,5499,Catering costs - provisions,"1,000.00",0.00,1000.00
Neighbourhood Services,Direct Services,021235,Catering - Wharton Park,Supplies and Services,324117,Provisions,09-Sep-2016,5255163919,BRAMBLES FOODS LTD,5499,Catering costs - provisions,926.56,0.00,926.56
Regeneration & Economic Development,Spatial Policy Planning Assets & Environment,031217,North Pennines - Cold Blooded & Spineless,Supplies and Services,348037,Subsistence,09-Sep-2016,5255163921,THE HEMMEL CAFE,5812,Subsistence,23.30,0.00,23.30
Regeneration & Economic Development,Economic Development and Housing,030737,Durham Works Flexible Fund,Supplies and Services,304259,Equipment and Materials,09-Sep-2016,5255163927,DSA THEORY TEST,9399,Equipment-purchase and rental,23.00,0.00,23.00
Regeneration & Economic Development,Spatial Policy Planning Assets & Environment,031200,North Pennines Core,Supplies and Services,340001,Postages,09-Sep-2016,5255163929,THE POST OFFICE,9402,Postages,53.80,0.00,53.80
Children and Adult Services,Childrens Services,085342,9 Cedar Drive Aycliffe,Supplies and Services,324117,Provisions,10-Sep-2016,5255163327,TESCO STORES 2916,5411,Catering costs - provisions,60.62,0.00,60.62
Children and Adult Services,Childrens Services,085342,9 Cedar Drive Aycliffe,Supplies and Services,324117,Provisions,10-Sep-2016,5255163329,TESCO STORES 2916,5411,Catering costs - provisions,6.00,0.00,6.00
Children and Adult Services,Childrens Services,085342,9 Cedar Drive Aycliffe,Supplies and Services,324117,Provisions,10-Sep-2016,5255163331,TESCO STORES 2916,5411,Catering costs - provisions,3.00,0.00,3.00
Children and Adult Services,Childrens Services,088063,Bishop Auckland 0 - 5,Supplies and Services,304403,Equipment and Materials,10-Sep-2016,5255163527,CARD FACTORY,5947,Other consumables,12.00,0.00,12.00
Children and Adult Services,Head of Adults,055207,South & West Durham MH Support & Recovery Team,Supplies and Services,384999,Miscellaneous Expenses,10-Sep-2016,5255163571,Amazon UK Marketplace,5942,Other expenses,43.25,0.00,43.25
Children and Adult Services,Childrens Services,085957,Secure Management,Supplies and Services,324117,Provisions,10-Sep-2016,5255163609,TESCO STORES 6329,5411,Catering costs - provisions,141.52,0.00,141.52
Assistant Chief Executive,Policy & Communications Division,060270,Corporate News,Supplies and Services,372009,Subscriptions,10-Sep-2016,5255163803,ADOBE CAPTIVATE SUBS,5734,Subscriptions,22.86,0.00,22.86
Resources,Legal & Democratic Services,067910,Democratic Representation,Supplies and Services,384999,Miscellaneous Expenses,11-Sep-2016,5255163547,HOBBYCRAFT GROUP L,5970,Other expenses,3.00,0.50,2.50
Children and Adult Services,Childrens Services,088063,Bishop Auckland 0 - 5,Supplies and Services,324117,Provisions,11-Sep-2016,5255163725,WM MORRISON 040,5411,Catering costs - provisions,12.08,0.00,12.08
Resources,Resources Management,069000,Resources Management,Supplies and Services,324117,Provisions,11-Sep-2016,5255163787,CO-OP GROUP 010830,5411,Catering costs - provisions,2.00,0.00,2.00
Regeneration & Economic Development,Economic Development and Housing,030699,Business Growth and Innovation General,Supplies and Services,304403,Equipment and Materials,11-Sep-2016,5261812635,FSPRG.COM OHANAH,5734,Other consumables,90.28,0.00,90.28
Children and Adult Services,Education,071801,Selby Cottage Childcare Centre,Supplies and Services,324117,Provisions,12-Sep-2016,5261812569,TESCO STORES 2278,5411,Catering costs - provisions,6.64,0.00,6.64
Children and Adult Services,Childrens Services,088001,Peterlee Locality,Supplies and Services,304403,Equipment and Materials,12-Sep-2016,5261812575,TESCO DIRECT,5999,Other consumables,257.94,0.00,257.94
Children and Adult Services,Childrens Services,085957,Secure Management,Supplies and Services,308011,Furniture,12-Sep-2016,5261812617,DUNELM ONLINE ORDER,5714,Furniture repair and replacement,-24.25,0.00,-24.25
Children and Adult Services,Childrens Services,085342,9 Cedar Drive Aycliffe,Supplies and Services,324117,Provisions,12-Sep-2016,5261812625,ALDI,5411,Catering costs - provisions,9.67,0.00,9.67
Children and Adult Services,Childrens Services,085300,Looked After & Permanence Strategic Manager,Supplies and Services,384999,Miscellaneous Expenses,12-Sep-2016,5261812681,WWW.HARRISONCAMERAS.CO,5946,Other expenses,-18.87,0.00,-18.87
Neighbourhood Services,Direct Services,021242,Catering - County Hall,Supplies and Services,324117,Provisions,12-Sep-2016,5261812695,BRAMBLES FOODS LTD,5499,Catering costs - provisions,480.93,0.00,480.93
Neighbourhood Services,Direct Services,021242,Catering - County Hall,Supplies and Services,324117,Provisions,12-Sep-2016,5261812699,JR HOLLAND FOODSERVICE,5422,Catering costs - provisions,62.82,0.00,62.82
Neighbourhood Services,Direct Services,021242,Catering - County Hall,Supplies and Services,324117,Provisions,12-Sep-2016,5261812705,JR HOLLAND FOODSERVICE,5422,Catering costs - provisions,13.52,0.00,13.52
Neighbourhood Services,Direct Services,021242,Catering - County Hall,Supplies and Services,324117,Provisions,12-Sep-2016,5261812709,BRAKE BROS LTD,5811,Catering costs - provisions,185.34,0.00,185.34
Resources,I.C.T. Services,065464,Domains,Supplies and Services,372009,Subscriptions,12-Sep-2016,5261812725,WEB NETWORKSOLUTIONS,5968,Subscriptions,102.64,0.00,102.64
Neighbourhood Services,Culture & Sport,054812,Gala Theatre - Catering etc,Supplies and Services,324117,Provisions,12-Sep-2016,5261812761,JR HOLLAND FOODSERVICE,5422,Catering costs - provisions,68.58,0.00,68.58
Children and Adult Services,Education,071732,Dean Bank Childcare,Supplies and Services,324117,Provisions,12-Sep-2016,5261812863,ASDA HOME SHOPPING,5411,Catering costs - provisions,41.04,0.00,41.04
Children and Adult Services,Childrens Services,085957,Secure Management,Supplies and Services,328041,Clothing Uniforms and Laundry,12-Sep-2016,5261812923,VERY.CO.UK,5964,Clothing uniforms and laundry,-26.00,0.00,-26.00
Children and Adult Services,Childrens Services,085957,Secure Management,Supplies and Services,328041,Clothing Uniforms and Laundry,12-Sep-2016,5261812929,VERY.CO.UK,5964,Clothing uniforms and laundry,-30.00,0.00,-30.00
Children and Adult Services,Childrens Services,085957,Secure Management,Supplies and Services,328041,Clothing Uniforms and Laundry,12-Sep-2016,5261812935,VERY.CO.UK,5964,Clothing uniforms and laundry,-45.00,0.00,-45.00
Neighbourhood Services,Direct Services,010367,C&G - South Grounds Maintenance,Supplies and Services,304259,Equipment and Materials,12-Sep-2016,5261812943,SCREWFIX,5211,Equipment-purchase and rental,9.98,1.66,8.32
Neighbourhood Services,Culture & Sport,011060,Hardwick Park Catering,Supplies and Services,324117,Provisions,12-Sep-2016,5261812969,JR HOLLAND FOODSERVICE,5422,Catering costs - provisions,15.46,0.00,15.46
Neighbourhood Services,Culture & Sport,011060,Hardwick Park Catering,Supplies and Services,324117,Provisions,12-Sep-2016,5261812975,BRAKE BROS LTD,5811,Catering costs - provisions,188.82,31.47,157.35
Neighbourhood Services,Culture & Sport,011060,Hardwick Park Catering,Supplies and Services,324117,Provisions,12-Sep-2016,5261812975 - 1,BRAKE BROS LTD,5811,Catering costs - provisions,133.67,,133.67
Neighbourhood Services,Culture & Sport,011060,Hardwick Park Catering,Supplies and Services,324117,Provisions,12-Sep-2016,5261812989,BRAKE BROS LTD,5811,Catering costs - provisions,144.42,24.07,120.35
Neighbourhood Services,Culture & Sport,011060,Hardwick Park Catering,Supplies and Services,324117,Provisions,12-Sep-2016,5261812989 - 1,BRAKE BROS LTD,5811,Catering costs - provisions,52.23,,52.23
Regeneration & Economic Development,Economic Development and Housing,030762,Organisational Training & Development,Employees,040149,Recruitment Instruction and Training,12-Sep-2016,5261813007,CITB,8220,Training-all costs,30.00,5.00,25.00
Neighbourhood Services,Direct Services,021234,Catering - Locomotion,Supplies and Services,324117,Provisions,12-Sep-2016,5261813023,BRAMBLES FOODS LTD,5499,Catering costs - provisions,230.12,0.00,230.12
Regeneration & Economic Development,Economic Development and Housing,031576,B& B - Temp Accom,Supplies and Services,364320,Grants to Voluntary Organisations,12-Sep-2016,5261813029,DAYS INN,7011,Accommodation assistance,49.00,8.17,40.83
Neighbourhood Services,Direct Services,010525,Catering - Green Lane,Supplies and Services,324117,Provisions,12-Sep-2016,5261813059,BRAMBLES FOODS LTD,5499,Catering costs - provisions,90.41,0.00,90.41
Neighbourhood Services,Direct Services,010525,Catering - Green Lane,Supplies and Services,324117,Provisions,12-Sep-2016,5261813063,BRAKE BROS LTD,5811,Catering costs - provisions,59.62,0.00,59.62
Children and Adult Services,Childrens Services,088063,Bishop Auckland 0 - 5,Supplies and Services,324117,Provisions,12-Sep-2016,5261813089,SAINSBURYS SACAT 2199,5411,Catering costs - provisions,5.65,0.00,5.65
Neighbourhood Services,Culture & Sport,054235,Bp Auckland Town Hall Cafe,Supplies and Services,324117,Provisions,12-Sep-2016,5261813281,JR HOLLAND FOODSERVICE,5422,Catering costs - provisions,7.88,0.00,7.88
Neighbourhood Services,Culture & Sport,054235,Bp Auckland Town Hall Cafe,Supplies and Services,324117,Provisions,12-Sep-2016,5261813287,BRAKE BROS LTD,5811,Catering costs - provisions,54.56,0.00,54.56
Neighbourhood Services,Culture & Sport,054235,Bp Auckland Town Hall Cafe,Supplies and Services,324117,Provisions,12-Sep-2016,5261813293,BRAKE BROS LTD,5811,Catering costs - provisions,54.47,0.00,54.47
Neighbourhood Services,Direct Services,021324,Catering - Meadowfield,Supplies and Services,324117,Provisions,12-Sep-2016,5261813299,BRAMBLES FOODS LTD,5499,Catering costs - provisions,80.23,0.00,80.23
Neighbourhood Services,Culture & Sport,011086,Positive Futures,Supplies and Services,324117,Provisions,12-Sep-2016,5261813343,W M MORRISONS,5411,Catering costs - provisions,28.60,0.00,28.60
Regeneration & Economic Development,Economic Development and Housing,030737,Durham Works Flexible Fund,Transport,235057,Public Transport,12-Sep-2016,5261813379,WWW.SIMPLYGO.COM,4131,Staff travelling,4.85,0.00,4.85
Regeneration & Economic Development,Economic Development and Housing,030737,Durham Works Flexible Fund,Transport,235057,Public Transport,12-Sep-2016,5261813383,WWW.SIMPLYGO.COM,4131,Staff travelling,24.40,0.00,24.40
Neighbourhood Services,Direct Services,021235,Catering - Wharton Park,Supplies and Services,324117,Provisions,12-Sep-2016,5261813435,BRAMBLES FOODS LTD,5499,Catering costs - provisions,210.41,0.00,210.41
Neighbourhood Services,Direct Services,021235,Catering - Wharton Park,Supplies and Services,324117,Provisions,12-Sep-2016,5261813445,BRAKE BROS LTD,5811,Catering costs - provisions,144.96,24.16,120.80
Neighbourhood Services,Direct Services,021235,Catering - Wharton Park,Supplies and Services,324117,Provisions,12-Sep-2016,5261813445 - 1,BRAKE BROS LTD,5811,Catering costs - provisions,52.79,,52.79
Neighbourhood Services,Culture & Sport,026591,Hardwick Hall Country Park,Supplies and Services,304245,Equipment and Materials,12-Sep-2016,5261813461,SCREWFIX DIRECT,5211,Materials,165.72,27.62,138.10
Neighbourhood Services,Culture & Sport,010605,Woodhouse Close Leisure Complex,Supplies and Services,324117,Provisions,12-Sep-2016,5261813477,JR HOLLAND FOODSERVICE,5422,Catering costs - provisions,42.34,0.00,42.34
Neighbourhood Services,Culture & Sport,010605,Woodhouse Close Leisure Complex,Supplies and Services,324117,Provisions,12-Sep-2016,5261813483,BRAKE BROS LTD,5811,Catering costs - provisions,106.59,0.00,106.59
Resources,Financial Services,065166,Finance - Post Entry Training,Employees,040149,Recruitment Instruction and Training,12-Sep-2016,5261813491,WWW.CIPS.ORG,8699,Training-all costs,99.96,0.00,99.96
Regeneration & Economic Development,Economic Development and Housing,030554,International Relations,Transport,235057,Public Transport,12-Sep-2016,5261813531,VIRGINTRAINSEC SERVCS,4112,Staff travelling,284.50,0.00,284.50
Children and Adult Services,Education,076004,Music - Parents Fund,Supplies and Services,384999,Miscellaneous Expenses,12-Sep-2016,5261813537,Amazon EU,5969,Other expenses,10.00,0.00,10.00
Children and Adult Services,Education,076004,Music - Parents Fund,Supplies and Services,384999,Miscellaneous Expenses,12-Sep-2016,5261813543,Amazon EU,5969,Other expenses,10.00,0.00,10.00
Children and Adult Services,Education,076004,Music - Parents Fund,Supplies and Services,384999,Miscellaneous Expenses,12-Sep-2016,5261813545,AMAZON UK RETAIL AMAZO,5999,Other expenses,10.00,0.00,10.00
Children and Adult Services,Education,076004,Music - Parents Fund,Supplies and Services,384999,Miscellaneous Expenses,12-Sep-2016,5261813551,AMAZON UK RETAIL AMAZO,5999,Other expenses,10.00,0.00,10.00
Children and Adult Services,Education,076004,Music - Parents Fund,Supplies and Services,384999,Miscellaneous Expenses,12-Sep-2016,5261813557,AMAZON UK RETAIL AMAZO,5999,Other expenses,10.00,0.00,10.00
Regeneration & Economic Development,Economic Development and Housing,030699,Business Growth and Innovation General,Supplies and Services,304403,Equipment and Materials,13-Sep-2016,5261812641,FSPRG.COM OHANAH,5734,Other consumables,2.48,0.00,2.48
Resources,I.C.T. Services,065464,Domains,Supplies and Services,372009,Subscriptions,13-Sep-2016,5261812729,WEB NETWORKSOLUTIONS,5968,Subscriptions,2.82,0.00,2.82
Children and Adult Services,Education,071801,Selby Cottage Childcare Centre,Supplies and Services,324117,Provisions,13-Sep-2016,5265114357,SAINSBURYS SACAT 0776,5411,Catering costs - provisions,7.55,0.00,7.55
Children and Adult Services,Education,071801,Selby Cottage Childcare Centre,Supplies and Services,328041,Clothing Uniforms and Laundry,13-Sep-2016,5265114359,Argos Durham Arnis,5310,Clothing uniforms and laundry,59.98,0.00,59.98
Children and Adult Services,Education,071801,Selby Cottage Childcare Centre,Supplies and Services,304259,Equipment and Materials,13-Sep-2016,5265114361,WILKO DURHAM 426,5722,Equipment-purchase and rental,25.80,0.00,25.80
Children and Adult Services,Education,071801,Selby Cottage Childcare Centre,Supplies and Services,324117,Provisions,13-Sep-2016,5265114363,MARKS&SPENCER PLC SACA,5411,Catering costs - provisions,21.00,0.00,21.00
Regeneration & Economic Development,Economic Development and Housing,037271,Group Repair,Income,720130,Fees and Charges,13-Sep-2016,5265114371,WWW.MONEYCLAIM.GOV,9399,Fees-legal,60.00,0.00,60.00
Children and Adult Services,Childrens Services,074000,TTF-Attachment and Results,Supplies and Services,304403,Equipment and Materials,13-Sep-2016,5265114385,TESCO - Abacus Baby,5999,Other consumables,68.00,0.00,68.00
Children and Adult Services,Childrens Services,074000,TTF-Attachment and Results,Supplies and Services,304403,Equipment and Materials,13-Sep-2016,5265114387,TESCO - Seller_IST_1_2,5999,Other consumables,129.99,0.00,129.99
Children and Adult Services,Childrens Services,074000,TTF-Attachment and Results,Supplies and Services,304403,Equipment and Materials,13-Sep-2016,5265114389,TESCO DIRECT,5999,Other consumables,83.98,0.00,83.98
Children and Adult Services,Childrens Services,074000,TTF-Attachment and Results,Supplies and Services,304403,Equipment and Materials,13-Sep-2016,5265114391,TESCO DIRECT,5999,Other consumables,10.00,0.00,10.00
Dedicated Schools Grant,Dedicated Schools Grant,079052,Part Sighted-Belmont Comp,Supplies and Services,304259,Equipment and Materials,13-Sep-2016,5265114397,Kindle Unlimited,5735,Equipment-purchase and rental,7.99,0.00,7.99
Regeneration & Economic Development,Economic Development and Housing,031500,Housing Solutions - Core Team,Supplies and Services,352001,Conference Expenses,13-Sep-2016,5265114401,TRAVELODGE,3615,Conferencesseminars fees etc,41.00,6.83,34.17
Neighbourhood Services,Direct Services,010383,C&G - South Street Cleansing,Supplies and Services,328041,Clothing Uniforms and Laundry,13-Sep-2016,5265114411,THOMAS OWEN & SONS /N/,5611,Clothing uniforms and laundry,55.44,9.24,46.20
Regeneration & Economic Development,Economic Development and Housing,030737,Durham Works Flexible Fund,Transport,230031,Contract Hire,13-Sep-2016,5265114471,GO NORTH EAST - V/T,4131,Pupils-transport to play fields etc,13.20,0.00,13.20
Neighbourhood Services,Direct Services,021242,Catering - County Hall,Supplies and Services,324117,Provisions,13-Sep-2016,5265114475,FREEMAN CATERING BUTCH,5422,Catering costs - provisions,119.32,0.00,119.32
Neighbourhood Services,Direct Services,021242,Catering - County Hall,Supplies and Services,324117,Provisions,13-Sep-2016,5265114479,FREEMAN CATERING BUTCH,5422,Catering costs - provisions,107.07,0.00,107.07
Neighbourhood Services,Direct Services,021242,Catering - County Hall,Supplies and Services,324117,Provisions,13-Sep-2016,5265114481,FREEMAN CATERING BUTCH,5422,Catering costs - provisions,85.46,0.00,85.46
Neighbourhood Services,Direct Services,021242,Catering - County Hall,Supplies and Services,324117,Provisions,13-Sep-2016,5265114483,FREEMAN CATERING BUTCH,5422,Catering costs - provisions,48.60,0.00,48.60
Neighbourhood Services,Direct Services,021242,Catering - County Hall,Supplies and Services,324117,Provisions,13-Sep-2016,5265114487,JR HOLLAND FOODSERVICE,5422,Catering costs - provisions,41.44,0.00,41.44
Children and Adult Services,Childrens Services,088037,One Point YEI,Supplies and Services,384999,Miscellaneous Expenses,13-Sep-2016,5265114493,DURHAM COUNTY COUNCIL,9399,Other expenses,12.00,0.00,12.00
Children and Adult Services,Childrens Services,088037,One Point YEI,Supplies and Services,384999,Miscellaneous Expenses,13-Sep-2016,5265114497,DURHAM COUNTY COUNCIL,9399,Other expenses,12.00,0.00,12.00
Neighbourhood Services,Culture & Sport,054812,Gala Theatre - Catering etc,Supplies and Services,324117,Provisions,13-Sep-2016,5265114509,BRAKE BROS LTD,5811,Catering costs - provisions,95.58,15.93,79.65
Neighbourhood Services,Culture & Sport,054812,Gala Theatre - Catering etc,Supplies and Services,324117,Provisions,13-Sep-2016,5265114509 - 1,BRAKE BROS LTD,5811,Catering costs - provisions,119.72,,119.72
Neighbourhood Services,Culture & Sport,054812,Gala Theatre - Catering etc,Supplies and Services,324117,Provisions,13-Sep-2016,5265114513,BRAKE BROS LTD,5811,Catering costs - provisions,26.91,0.00,26.91
Children and Adult Services,Childrens Services,085351,Framwellgate Moor CU,Supplies and Services,324117,Provisions,13-Sep-2016,5265114535,ASDA HOME SHOPPING,5411,Catering costs - provisions,100.05,0.00,100.05
Children and Adult Services,Childrens Services,085351,Framwellgate Moor CU,Supplies and Services,324117,Provisions,13-Sep-2016,5265114537,ASDA HOME SHOPPING,5411,Catering costs - provisions,-1.27,0.00,-1.27
Children and Adult Services,Education,070140,School Admissions and Transport,Supplies and Services,340001,Postages,13-Sep-2016,5265114573,WWW.ROYALMAIL.COM,9402,Postages,220.00,0.00,220.00
Children and Adult Services,Childrens Services,085957,Secure Management,Supplies and Services,328041,Clothing Uniforms and Laundry,13-Sep-2016,5265114605,WWW.TESSUTI.CO.UK,5941,Clothing uniforms and laundry,43.99,0.00,43.99
Children and Adult Services,Childrens Services,085957,Secure Management,Supplies and Services,328041,Clothing Uniforms and Laundry,13-Sep-2016,5265114609,NEXT DIRECTORY,5651,Clothing uniforms and laundry,38.99,0.00,38.99
Children and Adult Services,Childrens Services,085957,Secure Management,Supplies and Services,328041,Clothing Uniforms and Laundry,13-Sep-2016,5265114611,VERY.CO.UK,5964,Clothing uniforms and laundry,22.00,0.00,22.00
Children and Adult Services,Childrens Services,085957,Secure Management,Supplies and Services,328041,Clothing Uniforms and Laundry,13-Sep-2016,5265114615,VERY.CO.UK,5964,Clothing uniforms and laundry,15.00,0.00,15.00
Children and Adult Services,Childrens Services,085957,Secure Management,Supplies and Services,328041,Clothing Uniforms and Laundry,13-Sep-2016,5265114619,VERY.CO.UK,5964,Clothing uniforms and laundry,10.00,0.00,10.00
Neighbourhood Services,Direct Services,010367,C&G - South Grounds Maintenance,Supplies and Services,304259,Equipment and Materials,13-Sep-2016,5265114633,SCREWFIX,5211,Equipment-purchase and rental,9.99,1.67,8.32
Neighbourhood Services,Culture & Sport,011060,Hardwick Park Catering,Supplies and Services,324117,Provisions,13-Sep-2016,5265114637,FREEMAN CATERING BUTCH,5422,Catering costs - provisions,27.96,0.00,27.96
Neighbourhood Services,Culture & Sport,011060,Hardwick Park Catering,Supplies and Services,324117,Provisions,13-Sep-2016,5265114641,FREEMAN CATERING BUTCH,5422,Catering costs - provisions,16.86,0.00,16.86
Neighbourhood Services,Culture & Sport,011060,Hardwick Park Catering,Supplies and Services,324117,Provisions,13-Sep-2016,5265114645,FREEMAN CATERING BUTCH,5422,Catering costs - provisions,10.72,0.00,10.72
Neighbourhood Services,Culture & Sport,011060,Hardwick Park Catering,Supplies and Services,324117,Provisions,13-Sep-2016,5265114647,FREEMAN CATERING BUTCH,5422,Catering costs - provisions,8.75,0.00,8.75
Neighbourhood Services,Culture & Sport,011060,Hardwick Park Catering,Supplies and Services,324117,Provisions,13-Sep-2016,5265114651,JR HOLLAND FOODSERVICE,5422,Catering costs - provisions,69.44,0.00,69.44
Neighbourhood Services,Culture & Sport,011060,Hardwick Park Catering,Supplies and Services,324117,Provisions,13-Sep-2016,5265114659,JR HOLLAND FOODSERVICE,5422,Catering costs - provisions,36.81,0.00,36.81
Neighbourhood Services,Culture & Sport,011060,Hardwick Park Catering,Supplies and Services,324117,Provisions,13-Sep-2016,5265114663,BRAKE BROS LTD,5811,Catering costs - provisions,394.32,65.72,328.60
Neighbourhood Services,Culture & Sport,011060,Hardwick Park Catering,Supplies and Services,324117,Provisions,13-Sep-2016,5265114663 - 1,BRAKE BROS LTD,5811,Catering costs - provisions,101.23,,101.23
Regeneration & Economic Development,Economic Development and Housing,030762,Organisational Training & Development,Employees,040149,Recruitment Instruction and Training,13-Sep-2016,5265114679,CITB,8220,Training-all costs,30.00,5.00,25.00
Regeneration & Economic Development,Economic Development and Housing,030762,Organisational Training & Development,Employees,040149,Recruitment Instruction and Training,13-Sep-2016,5265114683,CITB,8220,Training-all costs,30.00,5.00,25.00
Regeneration & Economic Development,Economic Development and Housing,030762,Organisational Training & Development,Employees,040149,Recruitment Instruction and Training,13-Sep-2016,5265114685,CITB,8220,Training-all costs,30.00,5.00,25.00
Regeneration & Economic Development,Economic Development and Housing,031576,B& B - Temp Accom,Supplies and Services,364320,Grants to Voluntary Organisations,13-Sep-2016,5265114705,DAYS INN,7011,Accommodation assistance,49.00,8.17,40.83
Resources,I.C.T. Services,065461,Business Support,Supplies and Services,304259,Equipment and Materials,13-Sep-2016,5265114715,DVLA VEHICLE TAX,9399,Equipment-purchase and rental,232.50,0.00,232.50
Resources,I.C.T. Services,065461,Business Support,Supplies and Services,304259,Equipment and Materials,13-Sep-2016,5265114717,DVLA VEHICLE TAX,9399,Equipment-purchase and rental,232.50,0.00,232.50
Neighbourhood Services,Direct Services,010525,Catering - Green Lane,Supplies and Services,324117,Provisions,13-Sep-2016,5265114729,FREEMAN CATERING BUTCH,5422,Catering costs - provisions,50.02,0.00,50.02
Neighbourhood Services,Direct Services,010525,Catering - Green Lane,Supplies and Services,324117,Provisions,13-Sep-2016,5265114733,BRAKE BROS LTD,5811,Catering costs - provisions,21.84,3.64,18.20
Neighbourhood Services,Direct Services,010525,Catering - Green Lane,Supplies and Services,324117,Provisions,13-Sep-2016,5265114733 - 1,BRAKE BROS LTD,5811,Catering costs - provisions,114.47,,114.47
Regeneration & Economic Development,Economic Development and Housing,031500,Housing Solutions - Core Team,Supplies and Services,338048,Services,13-Sep-2016,5265114751,WWW.GOV.UK,8999,Court Costs,10.00,0.00,10.00
Children and Adult Services,Childrens Services,088063,Bishop Auckland 0 - 5,Supplies and Services,312011,Newspapers Books and Periodicals,13-Sep-2016,5265114771,HOME BARGAINS,5251,Books-school library,8.53,0.00,8.53
Neighbourhood Services,Direct Services,010367,C&G - South Grounds Maintenance,Supplies and Services,312011,Newspapers Books and Periodicals,13-Sep-2016,5265114783,RICKERBY,5251,Books-school library,385.78,64.30,321.48
Children and Adult Services,Childrens Services,085334,West Rainton Satelite Home,Supplies and Services,304403,Equipment and Materials,13-Sep-2016,5265114801,TESCO DIRECT,5999,Other consumables,31.50,0.00,31.50
Neighbourhood Services,Direct Services,020041,Bldg Serv - Business Development - General,Supplies and Services,304335,Equipment and Materials,13-Sep-2016,5265114805,Amazon UK Marketplace,5942,ICT supplies etc,71.70,0.00,71.70
Children and Adult Services,Childrens Services,071616,Seaham Childrens Centre,Supplies and Services,304259,Equipment and Materials,13-Sep-2016,5265114821,WILKO RETAIL LIMIT,5722,Equipment-purchase and rental,30.00,0.00,30.00
Children and Adult Services,Childrens Services,074000,TTF-Attachment and Results,Supplies and Services,324117,Provisions,13-Sep-2016,5265114825,TESCO STORES 2916,5411,Catering costs - provisions,5.50,0.00,5.50
Neighbourhood Services,Direct Services,020079,Bldg Serv - R&M Div 79- Electrical,Supplies and Services,344033,Telephones,13-Sep-2016,5265114835,Amazon UK Marketplace,5942,Telephones general-all costs,4.46,0.00,4.46
Neighbourhood Services,Technical Services,018700,Highways Services - Management and Administration,Supplies and Services,344033,Telephones,13-Sep-2016,5265114839,Amazon UK Marketplace,5942,Telephones general-all costs,91.96,0.00,91.96
Neighbourhood Services,Culture & Sport,011058,Wharton Park,Supplies and Services,332047,Printing Stationery and Gen Off Exps,13-Sep-2016,5265114843,WWW.PARTYDELIGHTS.CO.U,5947,Stationery,57.77,0.00,57.77
Neighbourhood Services,Culture & Sport,054399,Local Delivery-Libraries,Supplies and Services,312011,Newspapers Books and Periodicals,13-Sep-2016,5265114859,Amazon EU,5969,Books-school library,12.99,0.00,12.99
Neighbourhood Services,Culture & Sport,054235,Bp Auckland Town Hall Cafe,Supplies and Services,324117,Provisions,13-Sep-2016,5265114909,JR HOLLAND FOODSERVICE,5422,Catering costs - provisions,8.37,0.00,8.37
Neighbourhood Services,Direct Services,021324,Catering - Meadowfield,Supplies and Services,324117,Provisions,13-Sep-2016,5265114915,FREEMAN CATERING BUTCH,5422,Catering costs - provisions,63.00,0.00,63.00
Neighbourhood Services,Direct Services,021324,Catering - Meadowfield,Supplies and Services,324117,Provisions,13-Sep-2016,5265114917,FREEMAN CATERING BUTCH,5422,Catering costs - provisions,40.82,0.00,40.82
Neighbourhood Services,Direct Services,021324,Catering - Meadowfield,Supplies and Services,324117,Provisions,13-Sep-2016,5265114921,BRAKE BROS LTD,5811,Catering costs - provisions,36.35,0.00,36.35
Neighbourhood Services,Culture & Sport,011086,Positive Futures,Supplies and Services,324117,Provisions,13-Sep-2016,5265114963,ASDA STORES,5411,Catering costs - provisions,38.67,0.00,38.67
Children and Adult Services,Childrens Services,088083,Ferryhill 0 - 5,Supplies and Services,324117,Provisions,13-Sep-2016,5265114981,CO-OP GROUP 010518,5411,Catering costs - provisions,16.22,0.00,16.22
Children and Adult Services,Childrens Services,071404,Laurel Avenue Childrens Centre,Supplies and Services,324117,Provisions,13-Sep-2016,5265114993,TESCO STORES 2371,5411,Catering costs - provisions,13.26,0.00,13.26
Neighbourhood Services,Direct Services,021235,Catering - Wharton Park,Supplies and Services,324117,Provisions,13-Sep-2016,5265114997,BRAKE BROS LTD,5811,Catering costs - provisions,135.30,22.55,112.75
Neighbourhood Services,Direct Services,021235,Catering - Wharton Park,Supplies and Services,324117,Provisions,13-Sep-2016,5265114997 - 1,BRAKE BROS LTD,5811,Catering costs - provisions,75.08,,75.08
Neighbourhood Services,Culture & Sport,011225,Locality 2 Team Management,Supplies and Services,312011,Newspapers Books and Periodicals,13-Sep-2016,5265115043,CHARLES DICKENS (SPENN,5251,Books-school library,16.94,0.00,16.94
Regeneration & Economic Development,Economic Development and Housing,030709,VCD - Product Development,Supplies and Services,384999,Miscellaneous Expenses,13-Sep-2016,5265115073,PAYPAL BEST BADGES,7399,Other expenses,108.00,0.00,108.00
Children and Adult Services,Childrens Services,088037,One Point YEI,Supplies and Services,338045,Services,13-Sep-2016,5265115093,HARTLEPOOL BC CNP,9399,Legal expenses,4.02,0.67,3.35
Children and Adult Services,Childrens Services,088037,One Point YEI,Supplies and Services,338045,Services,13-Sep-2016,5265115093 - 1,HARTLEPOOL BC CNP,9399,Legal expenses,10.23,,10.23
Neighbourhood Services,Culture & Sport,054399,Local Delivery-Libraries,Supplies and Services,304403,Equipment and Materials,13-Sep-2016,5269230525,AMAZON UK RETAIL AMAZO,5999,Other consumables,26.71,0.00,26.71
Neighbourhood Services,Culture & Sport,054399,Local Delivery-Libraries,Supplies and Services,304403,Equipment and Materials,13-Sep-2016,5269230527,AMAZON UK RETAIL AMAZO,5999,Other consumables,8.95,0.00,8.95
Children and Adult Services,Education,071801,Selby Cottage Childcare Centre,Supplies and Services,328041,Clothing Uniforms and Laundry,14-Sep-2016,5269230235,THE RANGE,5311,Clothing uniforms and laundry,28.36,0.00,28.36
Children and Adult Services,Education,071801,Selby Cottage Childcare Centre,Supplies and Services,308011,Furniture,14-Sep-2016,5269230237,IKEA SACAT,5719,Furniture repair and replacement,362.75,0.00,362.75
Children and Adult Services,Childrens Services,074000,TTF-Attachment and Results,Supplies and Services,308011,Furniture,14-Sep-2016,5269230239,EDS BEDS LTD,5712,Furniture repair and replacement,131.00,0.00,131.00
Children and Adult Services,Childrens Services,071449,Ferryhill One Point Hub,Supplies and Services,324117,Provisions,14-Sep-2016,5269230241,ASDA SUPERSTORE 4987,5411,Catering costs - provisions,10.05,0.00,10.05
Regeneration & Economic Development,Economic Development and Housing,031500,Housing Solutions - Core Team,Supplies and Services,352001,Conference Expenses,14-Sep-2016,5269230243,TRAVELODGE,3615,Conferencesseminars fees etc,41.00,6.83,34.17
Children and Adult Services,Childrens Services,085342,9 Cedar Drive Aycliffe,Supplies and Services,324117,Provisions,14-Sep-2016,5269230261,TESCO STORES 2916,5411,Catering costs - provisions,21.70,0.00,21.70
Regeneration & Economic Development,Economic Development and Housing,030699,Business Growth and Innovation General,Supplies and Services,342033,Computers and Communications,14-Sep-2016,5269230263,WATCHFULPAYPAL,7379,Computer hardware,15.12,0.00,15.12
Resources,Financial Services,065180,Collections,Income,720130,Fees and Charges,14-Sep-2016,5269230271,WWW.MONEYCLAIM.GOV,9399,Fees-legal,410.00,0.00,410.00
Neighbourhood Services,Direct Services,021242,Catering - County Hall,Supplies and Services,324117,Provisions,14-Sep-2016,5269230333,JR HOLLAND FOODSERVICE,5422,Catering costs - provisions,110.87,0.00,110.87
Neighbourhood Services,Direct Services,021242,Catering - County Hall,Supplies and Services,324117,Provisions,14-Sep-2016,5269230335,JR HOLLAND FOODSERVICE,5422,Catering costs - provisions,31.35,0.00,31.35
Neighbourhood Services,Direct Services,021242,Catering - County Hall,Supplies and Services,324117,Provisions,14-Sep-2016,5269230337,BRAKE BROS LTD,5811,Catering costs - provisions,415.20,69.20,346.00
Neighbourhood Services,Direct Services,021242,Catering - County Hall,Supplies and Services,324117,Provisions,14-Sep-2016,5269230337 - 1,BRAKE BROS LTD,5811,Catering costs - provisions,145.87,,145.87
Children and Adult Services,Childrens Services,085622,Families First Ferryhill,Supplies and Services,308011,Furniture,14-Sep-2016,5269230343,Amazon UK Marketplace,5942,Furniture repair and replacement,379.95,0.00,379.95
Children and Adult Services,Childrens Services,088037,One Point YEI,Supplies and Services,384999,Miscellaneous Expenses,14-Sep-2016,5269230347,DURHAM COUNTY COUNCIL,9399,Other expenses,12.00,0.00,12.00
Children and Adult Services,Childrens Services,088037,One Point YEI,Supplies and Services,384999,Miscellaneous Expenses,14-Sep-2016,5269230349,DURHAM COUNTY COUNCIL,9399,Other expenses,12.00,0.00,12.00
Neighbourhood Services,Culture & Sport,011219,Office Services,Supplies and Services,336005,Advertising,14-Sep-2016,5269230353,TWITTER ADVERTISING,7311,Advertising other than for staff,40.00,0.00,40.00
Children and Adult Services,Childrens Services,085361,LAC & Permanence Team 1 Aycliffe,Supplies and Services,304259,Equipment and Materials,14-Sep-2016,5269230367,DURHAM COUNTY COUNCIL,9399,Equipment-purchase and rental,40.00,0.00,40.00
Children and Adult Services,Childrens Services,085361,LAC & Permanence Team 1 Aycliffe,Supplies and Services,304259,Equipment and Materials,14-Sep-2016,5269230369,DURHAM COUNTY COUNCIL,9399,Equipment-purchase and rental,40.00,0.00,40.00
Neighbourhood Services,Direct Services,010561,Fleet - Morrison Busty Fleet,Transport,215013,Running Costs of Vehicles,14-Sep-2016,5269230371,DVLA VEHICLE TAX,9399,Vehicle Excise Duty (VED),232.50,0.00,232.50
Children and Adult Services,Education,071732,Dean Bank Childcare,Supplies and Services,312011,Newspapers Books and Periodicals,14-Sep-2016,5269230377,Amazon UK Marketplace,5942,Books-school library,33.92,0.00,33.92
Children and Adult Services,Education,071732,Dean Bank Childcare,Supplies and Services,312011,Newspapers Books and Periodicals,14-Sep-2016,5269230381,Amazon UK Marketplace,5942,Books-school library,40.27,0.00,40.27
Children and Adult Services,Education,071732,Dean Bank Childcare,Supplies and Services,312011,Newspapers Books and Periodicals,14-Sep-2016,5269230385,Amazon EU,5969,Books-school library,31.97,0.00,31.97
Children and Adult Services,Education,071732,Dean Bank Childcare,Supplies and Services,324117,Provisions,14-Sep-2016,5269230387,CO-OP GROUP 010518,5411,Catering costs - provisions,2.11,0.00,2.11
Regeneration & Economic Development,Economic Development and Housing,030554,International Relations,Supplies and Services,352001,Conference Expenses,14-Sep-2016,5269230397,CLOSEGATE HOTEL DEVELO,7011,Conferencesseminars fees etc,192.00,0.00,192.00
Regeneration & Economic Development,Economic Development and Housing,030554,International Relations,Supplies and Services,352001,Conference Expenses,14-Sep-2016,5269230401,CLOSEGATE HOTEL DEVELO,7011,Conferencesseminars fees etc,192.00,0.00,192.00
Regeneration & Economic Development,Economic Development and Housing,030554,International Relations,Supplies and Services,352001,Conference Expenses,14-Sep-2016,5269230403,CLOSEGATE HOTEL DEVELO,7011,Conferencesseminars fees etc,192.00,0.00,192.00
Regeneration & Economic Development,Economic Development and Housing,030554,International Relations,Supplies and Services,352001,Conference Expenses,14-Sep-2016,5269230405,CLOSEGATE HOTEL DEVELO,7011,Conferencesseminars fees etc,192.00,0.00,192.00
Regeneration & Economic Development,Economic Development and Housing,030554,International Relations,Transport,235057,Public Transport,14-Sep-2016,5269230409,NEWCASTLE PARK AND FLY,7523,Staff travelling,5.00,0.83,4.17
Children and Adult Services,Childrens Services,085957,Secure Management,Supplies and Services,328041,Clothing Uniforms and Laundry,14-Sep-2016,5269230419,VERY.CO.UK,5964,Clothing uniforms and laundry,5.99,0.00,5.99
Neighbourhood Services,Culture & Sport,011060,Hardwick Park Catering,Supplies and Services,324117,Provisions,14-Sep-2016,5269230429,JR HOLLAND FOODSERVICE,5422,Catering costs - provisions,75.82,0.00,75.82
Neighbourhood Services,Culture & Sport,011060,Hardwick Park Catering,Supplies and Services,324117,Provisions,14-Sep-2016,5269230431,JR HOLLAND FOODSERVICE,5422,Catering costs - provisions,15.40,0.00,15.40
Neighbourhood Services,Culture & Sport,011060,Hardwick Park Catering,Supplies and Services,324117,Provisions,14-Sep-2016,5269230435,BRAKE BROS LTD,5811,Catering costs - provisions,149.52,24.92,124.60
Neighbourhood Services,Culture & Sport,011060,Hardwick Park Catering,Supplies and Services,324117,Provisions,14-Sep-2016,5269230435 - 1,BRAKE BROS LTD,5811,Catering costs - provisions,181.76,,181.76
Regeneration & Economic Development,Economic Development and Housing,031576,B& B - Temp Accom,Supplies and Services,364320,Grants to Voluntary Organisations,14-Sep-2016,5269230439,DAYS INN,7011,Accommodation assistance,49.00,0.00,49.00
Neighbourhood Services,Direct Services,010525,Catering - Green Lane,Supplies and Services,324117,Provisions,14-Sep-2016,5269230447,JR HOLLAND FOODSERVICE,5422,Catering costs - provisions,28.79,0.00,28.79
Children and Adult Services,Childrens Services,071441,Bishop Auckland One Point Hub,Supplies and Services,304403,Equipment and Materials,14-Sep-2016,5269230465,CARD FACTORY,5947,Other consumables,23.10,0.00,23.10
Children and Adult Services,Childrens Services,088063,Bishop Auckland 0 - 5,Supplies and Services,324117,Provisions,14-Sep-2016,5269230469,WM MORRISON 040,5411,Catering costs - provisions,27.05,0.00,27.05
Neighbourhood Services,Direct Services,010367,C&G - South Grounds Maintenance,Supplies and Services,304259,Equipment and Materials,14-Sep-2016,5269230477,TUDOR ENVIRONMENTAL,5261,Equipment-purchase and rental,157.54,26.26,131.28
Regeneration & Economic Development,Spatial Policy Planning Assets & Environment,031221,North Pennines - Bowlees,Supplies and Services,384999,Miscellaneous Expenses,14-Sep-2016,5269230489,COLOUR FIVE,2741,Other expenses,198.12,33.02,165.10
Children and Adult Services,Planning & Service Strategy,052969,Service Support Team 1,Supplies and Services,338064,Services,14-Sep-2016,5269230505,DISCLOSURE SCOT,9399,Disclosure & Barring (DBS) Fees,25.00,0.00,25.00
Neighbourhood Services,Culture & Sport,054399,Local Delivery-Libraries,Supplies and Services,304999,Equipment and Materials,14-Sep-2016,5269230521,AMAZON UK PRIME AMZN.C,5968,Misc equipment tools and materials,7.99,0.00,7.99
Neighbourhood Services,Culture & Sport,054235,Bp Auckland Town Hall Cafe,Supplies and Services,324117,Provisions,14-Sep-2016,5269230551,JR HOLLAND FOODSERVICE,5422,Catering costs - provisions,31.32,0.00,31.32
Neighbourhood Services,Direct Services,021324,Catering - Meadowfield,Supplies and Services,324117,Provisions,14-Sep-2016,5269230555,JR HOLLAND FOODSERVICE,5422,Catering costs - provisions,32.95,0.00,32.95
Neighbourhood Services,Direct Services,021324,Catering - Meadowfield,Supplies and Services,324117,Provisions,14-Sep-2016,5269230557,JR HOLLAND FOODSERVICE,5422,Catering costs - provisions,13.45,0.00,13.45
Neighbourhood Services,Direct Services,021324,Catering - Meadowfield,Supplies and Services,324117,Provisions,14-Sep-2016,5269230561,BRAKE BROS LTD,5811,Catering costs - provisions,65.52,10.92,54.60
Neighbourhood Services,Direct Services,021324,Catering - Meadowfield,Supplies and Services,324117,Provisions,14-Sep-2016,5269230561 - 1,BRAKE BROS LTD,5811,Catering costs - provisions,51.25,,51.25
Children and Adult Services,Childrens Services,085333,Coxhoe Satelite Home,Supplies and Services,324117,Provisions,14-Sep-2016,5269230565,TESCO STORES 2371,5411,Catering costs - provisions,8.60,0.00,8.60
Children and Adult Services,Childrens Services,088083,Ferryhill 0 - 5,Supplies and Services,324117,Provisions,14-Sep-2016,5269230607,ASDA HOME SHOPPING,5411,Catering costs - provisions,300.20,0.00,300.20
Children and Adult Services,Childrens Services,088083,Ferryhill 0 - 5,Supplies and Services,324117,Provisions,14-Sep-2016,5269230611,ASDA HOME SHOPPING,5411,Catering costs - provisions,-20.00,0.00,-20.00
Neighbourhood Services,Direct Services,021235,Catering - Wharton Park,Supplies and Services,324117,Provisions,14-Sep-2016,5269230621,JR HOLLAND FOODSERVICE,5422,Catering costs - provisions,10.95,0.00,10.95
Neighbourhood Services,Culture & Sport,010605,Woodhouse Close Leisure Complex,Supplies and Services,324117,Provisions,14-Sep-2016,5269230629,JR HOLLAND FOODSERVICE,5422,Catering costs - provisions,32.27,0.00,32.27
Regeneration & Economic Development,Economic Development and Housing,030553,Europe Direct Scheme,Supplies and Services,348037,Subsistence,14-Sep-2016,5269230643,COSTA COFFEE,5812,Subsistence,5.50,0.00,5.50
Children and Adult Services,Childrens Services,074000,TTF-Attachment and Results,Supplies and Services,384700,Miscellaneous Expenses,14-Sep-2016,5269230647,EDS BEDS LTD,5712,Miscellaneous grants,139.00,0.00,139.00
Children and Adult Services,Education,071733,Shildon Childcare,Supplies and Services,304649,Equipment and Materials,14-Sep-2016,5273838419,B & M RETAIL,5310,Toys,8.92,0.00,8.92
Children and Adult Services,Education,071732,Dean Bank Childcare,Supplies and Services,328041,Clothing Uniforms and Laundry,14-Sep-2016,5273838533,B&M RETAIL LTD,5310,Clothing uniforms and laundry,30.91,0.00,30.91
Children and Adult Services,Childrens Services,085333,Coxhoe Satelite Home,Supplies and Services,328041,Clothing Uniforms and Laundry,14-Sep-2016,5273838703,B & M RETAIL,5310,Clothing uniforms and laundry,39.51,0.00,39.51
Children and Adult Services,Childrens Services,085333,Coxhoe Satelite Home,Supplies and Services,328041,Clothing Uniforms and Laundry,14-Sep-2016,5273838705,B & M RETAIL,5310,Clothing uniforms and laundry,27.45,0.00,27.45
Regeneration & Economic Development,Economic Development and Housing,030699,Business Growth and Innovation General,Supplies and Services,342033,Computers and Communications,15-Sep-2016,5269230265,WATCHFULPAYPAL,7379,Computer hardware,0.42,0.00,0.42
Resources,I.C.T. Services,065212,Digital Durham,Supplies and Services,332047,Printing Stationery and Gen Off Exps,15-Sep-2016,5269230507,Amazon UK Marketplace,5942,Stationery,3.65,0.00,3.65
Children and Adult Services,Education,071801,Selby Cottage Childcare Centre,Supplies and Services,304259,Equipment and Materials,15-Sep-2016,5273838409,WILKO RETAIL LIMIT,5722,Equipment-purchase and rental,32.00,0.00,32.00
Children and Adult Services,Education,054640,Durham Learning Resources,Supplies and Services,312011,Newspapers Books and Periodicals,15-Sep-2016,5273838415,EDEN INTERACTIVE L,5942,Books-school library,-173.79,0.00,-173.79
Children and Adult Services,Childrens Services,074000,TTF-Attachment and Results,Supplies and Services,304259,Equipment and Materials,15-Sep-2016,5273838421,B&Q DIRECT,5211,Equipment-purchase and rental,150.00,0.00,150.00
Children and Adult Services,Childrens Services,074000,TTF-Attachment and Results,Supplies and Services,304259,Equipment and Materials,15-Sep-2016,5273838425,WILKO.COM,5722,Equipment-purchase and rental,24.90,0.00,24.90
Children and Adult Services,Childrens Services,074000,TTF-Attachment and Results,Supplies and Services,304403,Equipment and Materials,15-Sep-2016,5273838427,TESCO - Livy Furniture,5999,Other consumables,81.99,0.00,81.99
Children and Adult Services,Childrens Services,074000,TTF-Attachment and Results,Supplies and Services,304403,Equipment and Materials,15-Sep-2016,5273838429,TESCO DIRECT,5999,Other consumables,43.00,0.00,43.00
Regeneration & Economic Development,Economic Development and Housing,031500,Housing Solutions - Core Team,Supplies and Services,352001,Conference Expenses,15-Sep-2016,5273838433,TRAVELODGE,3615,Conferencesseminars fees etc,41.00,6.83,34.17
Children and Adult Services,Childrens Services,085342,9 Cedar Drive Aycliffe,Supplies and Services,324117,Provisions,15-Sep-2016,5273838449,SAINSBURYS 2199,5411,Catering costs - provisions,99.00,0.00,99.00
Children and Adult Services,Childrens Services,085342,9 Cedar Drive Aycliffe,Supplies and Services,324117,Provisions,15-Sep-2016,5273838451,SAINSBURYS 2199,5411,Catering costs - provisions,18.60,0.00,18.60
Resources,Financial Services,065180,Collections,Income,720130,Fees and Charges,15-Sep-2016,5273838453,WWW.MONEYCLAIM.GOV,9399,Fees-legal,105.00,0.00,105.00
Children and Adult Services,Childrens Services,071449,Ferryhill One Point Hub,Supplies and Services,324117,Provisions,15-Sep-2016,5273838467,TESCO STORES 2371,5411,Catering costs - provisions,41.72,0.00,41.72
Neighbourhood Services,Direct Services,021242,Catering - County Hall,Supplies and Services,324117,Provisions,15-Sep-2016,5273838491,JR HOLLAND FOODSERVICE,5422,Catering costs - provisions,120.02,0.00,120.02
Neighbourhood Services,Direct Services,021242,Catering - County Hall,Supplies and Services,324117,Provisions,15-Sep-2016,5273838493,JR HOLLAND FOODSERVICE,5422,Catering costs - provisions,17.94,0.00,17.94
Neighbourhood Services,Direct Services,021242,Catering - County Hall,Supplies and Services,324117,Provisions,15-Sep-2016,5273838495,JR HOLLAND FOODSERVICE,5422,Catering costs - provisions,13.16,0.00,13.16
Neighbourhood Services,Direct Services,021242,Catering - County Hall,Supplies and Services,324117,Provisions,15-Sep-2016,5273838497,BRAKE BROS LTD,5811,Catering costs - provisions,236.00,0.00,236.00
Neighbourhood Services,Culture & Sport,054812,Gala Theatre - Catering etc,Supplies and Services,324117,Provisions,15-Sep-2016,5273838505,JR HOLLAND FOODSERVICE,5422,Catering costs - provisions,79.57,0.00,79.57
Neighbourhood Services,Culture & Sport,054812,Gala Theatre - Catering etc,Supplies and Services,324117,Provisions,15-Sep-2016,5273838507,BRAKE BROS LTD,5811,Catering costs - provisions,-14.22,0.00,-14.22
Children and Adult Services,Childrens Services,085351,Framwellgate Moor CU,Supplies and Services,312011,Newspapers Books and Periodicals,15-Sep-2016,5273838519,"Amazon Svcs Europe,SAR",5942,Books-school library,27.31,0.00,27.31
Children and Adult Services,Childrens Services,088094,Newton Aycliffe 5 - 19,Supplies and Services,304245,Equipment and Materials,15-Sep-2016,5273838523,"Amazon Svcs Europe,SAR",5942,Materials,24.99,0.00,24.99
Neighbourhood Services,Direct Services,010561,Fleet - Morrison Busty Fleet,Transport,215013,Running Costs of Vehicles,15-Sep-2016,5273838527,DVLA VEHICLE TAX,9399,Vehicle Excise Duty (VED),232.50,0.00,232.50
Regeneration & Economic Development,Economic Development and Housing,030737,Durham Works Flexible Fund,Transport,235005,Public Transport,15-Sep-2016,5273838539,ARRIVA PASSENGER S,7538,Contract tickets,4.30,0.00,4.30
Regeneration & Economic Development,Economic Development and Housing,030554,International Relations,Supplies and Services,352001,Conference Expenses,15-Sep-2016,5273838547,CLOSEGATE HOTEL DEVELO,7011,Conferencesseminars fees etc,480.90,0.00,480.90
Children and Adult Services,Childrens Services,085965,Barnard,Supplies and Services,384999,Miscellaneous Expenses,15-Sep-2016,5273838569,WWW.JOHNLEWIS.COM,5311,Other expenses,51.50,0.00,51.50
Children and Adult Services,Childrens Services,085957,Secure Management,Supplies and Services,328041,Clothing Uniforms and Laundry,15-Sep-2016,5273838571,NEW LOOK INTERNET,5621,Clothing uniforms and laundry,57.97,0.00,57.97
Children and Adult Services,Childrens Services,085957,Secure Management,Supplies and Services,324117,Provisions,15-Sep-2016,5273838573,TESCO STORES 6329,5411,Catering costs - provisions,139.82,0.00,139.82
Children and Adult Services,Childrens Services,085965,Barnard,Supplies and Services,384999,Miscellaneous Expenses,15-Sep-2016,5273838575,NEXT DIRECTORY,5651,Other expenses,243.99,0.00,243.99
Neighbourhood Services,Culture & Sport,011060,Hardwick Park Catering,Supplies and Services,324117,Provisions,15-Sep-2016,5273838581,JR HOLLAND FOODSERVICE,5422,Catering costs - provisions,38.15,0.00,38.15
Resources,I.C.T. Services,070204,Operations - System & Repairs Team,Supplies and Services,342033,Computers and Communications,15-Sep-2016,5273838595,WWW.ALIEXPRESS.COM,5964,Computer hardware,125.24,0.00,125.24
Resources,I.C.T. Services,070204,Operations - System & Repairs Team,Supplies and Services,342033,Computers and Communications,15-Sep-2016,5273838597,WWW.ALIEXPRESS.COM,5964,Computer hardware,125.24,0.00,125.24
Resources,I.C.T. Services,070204,Operations - System & Repairs Team,Supplies and Services,342033,Computers and Communications,15-Sep-2016,5273838599,WWW.ALIEXPRESS.COM,5964,Computer hardware,125.24,0.00,125.24
Neighbourhood Services,Culture & Sport,054815,Gala Theatre Stage School,Supplies and Services,312011,Newspapers Books and Periodicals,15-Sep-2016,5273838603,Amazon UK Marketplace,5942,Books-school library,5.99,0.00,5.99
Neighbourhood Services,Direct Services,010525,Catering - Green Lane,Supplies and Services,324117,Provisions,15-Sep-2016,5273838623,BRAKE BROS LTD,5811,Catering costs - provisions,-8.05,0.00,-8.05
Dedicated Schools Grant,Dedicated Schools Grant,079075,Learning Difficulties Team,Supplies and Services,312009,Newspapers Books and Periodicals,15-Sep-2016,5273838629,Amazon UK Marketplace,5942,Newspapers books and periodicals,47.10,0.00,47.10
Regeneration & Economic Development,Economic Development and Housing,030749,Employability - Youth Contract,Transport,235005,Public Transport,15-Sep-2016,5273838645,ARRIVA PASSENGER S,7538,Contract tickets,27.50,0.00,27.50
Children and Adult Services,Childrens Services,071515,Stanley Childrens Centre,Supplies and Services,332047,Printing Stationery and Gen Off Exps,15-Sep-2016,5273838651,Amazon UK Marketplace,5942,Stationery,16.97,0.00,16.97
Assistant Chief Executive,Policy & Communications Division,060270,Corporate News,Supplies and Services,336005,Advertising,15-Sep-2016,5273838653,NEWSQUEST MEDIA,2741,Advertising other than for staff,135.20,0.00,135.20
Neighbourhood Services,Direct Services,010301,C&G - North Grounds Maintenance,Supplies and Services,324117,Provisions,15-Sep-2016,5273838667,J VAN VLIET GATESHEAD,5399,Catering costs - provisions,85.56,0.00,85.56
Children and Adult Services,Childrens Services,085801,CDYOS - Support,Supplies and Services,312011,Newspapers Books and Periodicals,15-Sep-2016,5273838693,Amazon UK Marketplace,5942,Books-school library,8.00,0.00,8.00
Children and Adult Services,Childrens Services,085801,CDYOS - Support,Supplies and Services,304259,Equipment and Materials,15-Sep-2016,5273838695,B&Q DIRECT,5211,Equipment-purchase and rental,52.26,0.00,52.26
Regeneration & Economic Development,Transport and Contracted Services,031701,Care Connect All Localities,Supplies and Services,344033,Telephones,15-Sep-2016,5273838697,BT BILL PAYMENT 1,4812,Telephones general-all costs,86.94,14.49,72.45
Regeneration & Economic Development,Transport and Contracted Services,031701,Care Connect All Localities,Supplies and Services,344033,Telephones,15-Sep-2016,5273838699,BT BILL PAYMENT 2,4812,Telephones general-all costs,67.07,11.18,55.89
Regeneration & Economic Development,Transport and Contracted Services,031701,Care Connect All Localities,Supplies and Services,344033,Telephones,15-Sep-2016,5273838701,BT BILL PAYMENT 2,4812,Telephones general-all costs,67.07,11.18,55.89
Children and Adult Services,Childrens Services,088073,Barnard Castle 0 - 5,Supplies and Services,312011,Newspapers Books and Periodicals,15-Sep-2016,5273838739,HOME BARGAINS,5251,Books-school library,7.96,1.33,6.63
Children and Adult Services,Childrens Services,088083,Ferryhill 0 - 5,Supplies and Services,304999,Equipment and Materials,15-Sep-2016,5273838751,BOOTS 5617,5912,Misc equipment tools and materials,8.50,0.00,8.50
Children and Adult Services,Childrens Services,088083,Ferryhill 0 - 5,Supplies and Services,328041,Clothing Uniforms and Laundry,15-Sep-2016,5273838753,ARGOS RETAIL GROUP,5310,Clothing uniforms and laundry,119.98,0.00,119.98
Children and Adult Services,Childrens Services,088051,Stanley Locality,Supplies and Services,308011,Furniture,15-Sep-2016,5273838755,EDS BEDS LTD,5712,Furniture repair and replacement,47.00,0.00,47.00
Children and Adult Services,Childrens Services,088051,Stanley Locality,Supplies and Services,304259,Equipment and Materials,15-Sep-2016,5273838757,WILKO.COM,5722,Equipment-purchase and rental,99.00,0.00,99.00
Children and Adult Services,Childrens Services,088051,Stanley Locality,Supplies and Services,304403,Equipment and Materials,15-Sep-2016,5273838761,TESCO - PLO,5999,Other consumables,22.93,0.00,22.93
Children and Adult Services,Childrens Services,088051,Stanley Locality,Supplies and Services,304403,Equipment and Materials,15-Sep-2016,5273838765,TESCO DIRECT,5999,Other consumables,96.95,0.00,96.95
Neighbourhood Services,Direct Services,021235,Catering - Wharton Park,Supplies and Services,324117,Provisions,15-Sep-2016,5273838771,JR HOLLAND FOODSERVICE,5422,Catering costs - provisions,16.48,0.00,16.48
Neighbourhood Services,Culture & Sport,010605,Woodhouse Close Leisure Complex,Supplies and Services,324117,Provisions,15-Sep-2016,5273838777,BRAKE BROS LTD,5811,Catering costs - provisions,48.90,8.15,40.75
Neighbourhood Services,Culture & Sport,010605,Woodhouse Close Leisure Complex,Supplies and Services,324117,Provisions,15-Sep-2016,5273838777 - 1,BRAKE BROS LTD,5811,Catering costs - provisions,110.64,,110.64
Regeneration & Economic Development,Economic Development and Housing,030553,Europe Direct Scheme,Transport,235057,Public Transport,15-Sep-2016,5273838799,LUL TICKET MACHINE,4112,Staff travelling,19.60,0.00,19.60
Regeneration & Economic Development,Economic Development and Housing,030699,Business Growth and Innovation General,Supplies and Services,352001,Conference Expenses,15-Sep-2016,5279384719,SPROUT SOCIAL,7392,Conferencesseminars fees etc,753.49,0.00,753.49
Resources,I.C.T. Services,070204,Operations - System & Repairs Team,Supplies and Services,312011,Newspapers Books and Periodicals,15-Sep-2016,5279384991,GILMORE GLOBAL US,4816,Books-school library,146.76,0.00,146.76
Children and Adult Services,Childrens Services,088037,One Point YEI,Supplies and Services,304259,Equipment and Materials,15-Sep-2016,5279385139,DARLINGTON BC INTERNET,9399,Equipment-purchase and rental,12.00,0.00,12.00
Children and Adult Services,Childrens Services,088037,One Point YEI,Supplies and Services,304259,Equipment and Materials,15-Sep-2016,5279385141,DURHAM COUNTY COUNCIL,9399,Equipment-purchase and rental,10.00,0.00,10.00
Regeneration & Economic Development,Economic Development and Housing,030749,Employability - Youth Contract,Transport,235057,Public Transport,15-Sep-2016,5279385205,WWW.SIMPLYGO.COM,4131,Staff travelling,105.84,0.00,105.84
Resources,I.C.T. Services,065482,Data Centres,Supplies and Services,312009,Newspapers Books and Periodicals,15-Sep-2016,5279385271,AMAZON UK RETAIL AMAZO,5999,Newspapers books and periodicals,16.44,0.00,16.44
Neighbourhood Services,Direct Services,021100,Catering - General,Supplies and Services,324117,Provisions,16-Sep-2016,5279384609,TESCO STORES 2371,5411,Catering costs - provisions,4.00,0.00,4.00
Children and Adult Services,Education,071801,Selby Cottage Childcare Centre,Supplies and Services,324117,Provisions,16-Sep-2016,5279384631,TESCO STORES 2278,5411,Catering costs - provisions,56.04,0.00,56.04
Regeneration & Economic Development,Economic Development and Housing,031500,Housing Solutions - Core Team,Supplies and Services,352001,Conference Expenses,16-Sep-2016,5279384657,DAYS INN,7011,Conferencesseminars fees etc,196.00,0.00,196.00
Regeneration & Economic Development,Economic Development and Housing,031500,Housing Solutions - Core Team,Supplies and Services,352001,Conference Expenses,16-Sep-2016,5279384661,TRAVELODGE,3615,Conferencesseminars fees etc,174.00,29.00,145.00
Regeneration & Economic Development,Economic Development and Housing,030674,Business Services General,Supplies and Services,352001,Conference Expenses,16-Sep-2016,5279384747,WWW.RAMSIDEHALLHOTEL.C,7011,Conferencesseminars fees etc,52.90,0.00,52.90
Regeneration & Economic Development,Economic Development and Housing,030737,Durham Works Flexible Fund,Supplies and Services,344033,Telephones,16-Sep-2016,5279384773,ARGOS LTD,5310,Telephones general-all costs,24.99,0.00,24.99
Neighbourhood Services,Direct Services,021242,Catering - County Hall,Supplies and Services,324117,Provisions,16-Sep-2016,5279384777,JR HOLLAND FOODSERVICE,5422,Catering costs - provisions,41.21,0.00,41.21
Neighbourhood Services,Direct Services,021242,Catering - County Hall,Supplies and Services,324117,Provisions,16-Sep-2016,5279384783,JR HOLLAND FOODSERVICE,5422,Catering costs - provisions,13.16,0.00,13.16
Children and Adult Services,Childrens Services,085622,Families First Ferryhill,Supplies and Services,308011,Furniture,16-Sep-2016,5279384805,Amazon UK Marketplace,5942,Furniture repair and replacement,49.79,0.00,49.79
Children and Adult Services,Childrens Services,085351,Framwellgate Moor CU,Supplies and Services,324117,Provisions,16-Sep-2016,5279384823,ASDA HOME SHOPPING,5411,Catering costs - provisions,97.34,0.00,97.34
Children and Adult Services,Childrens Services,085351,Framwellgate Moor CU,Supplies and Services,324117,Provisions,16-Sep-2016,5279384825,ASDA HOME SHOPPING,5411,Catering costs - provisions,-0.30,0.00,-0.30
Children and Adult Services,Childrens Services,085361,LAC & Permanence Team 1 Aycliffe,Supplies and Services,384199,Miscellaneous Expenses,16-Sep-2016,5279384829,INFINITE AIR EXTREME T,7941,Other hired and contracted services,23.90,0.00,23.90
Children and Adult Services,Childrens Services,085957,Secure Management,Supplies and Services,384999,Miscellaneous Expenses,16-Sep-2016,5279384929,Amazon UK Marketplace,5942,Other expenses,10.58,0.00,10.58
Children and Adult Services,Childrens Services,085957,Secure Management,Supplies and Services,324117,Provisions,16-Sep-2016,5279384931,TESCO STORES 6329,5411,Catering costs - provisions,91.18,0.00,91.18
Neighbourhood Services,Direct Services,010301,C&G - North Grounds Maintenance,Supplies and Services,304403,Equipment and Materials,16-Sep-2016,5279384959,BESCOL,5231,Other consumables,45.73,7.62,38.11
Neighbourhood Services,Culture & Sport,011060,Hardwick Park Catering,Supplies and Services,324117,Provisions,16-Sep-2016,5279384967,JR HOLLAND FOODSERVICE,5422,Catering costs - provisions,48.98,0.00,48.98
Neighbourhood Services,Culture & Sport,011060,Hardwick Park Catering,Supplies and Services,324117,Provisions,16-Sep-2016,5279384975,BRAKE BROS LTD,5811,Catering costs - provisions,101.82,16.97,84.85
Neighbourhood Services,Culture & Sport,011060,Hardwick Park Catering,Supplies and Services,324117,Provisions,16-Sep-2016,5279384975 - 1,BRAKE BROS LTD,5811,Catering costs - provisions,175.14,,175.14
Neighbourhood Services,Culture & Sport,011060,Hardwick Park Catering,Supplies and Services,324117,Provisions,16-Sep-2016,5279384983,BRAKE BROS LTD,5811,Catering costs - provisions,129.36,21.56,107.80
Neighbourhood Services,Culture & Sport,011060,Hardwick Park Catering,Supplies and Services,324117,Provisions,16-Sep-2016,5279384983 - 1,BRAKE BROS LTD,5811,Catering costs - provisions,52.78,,52.78
Resources,I.C.T. Services,070204,Operations - System & Repairs Team,Third Party Payments,430100,Rendered by Private Contractors,16-Sep-2016,5279384995,HSO IFIXIT GMBH,7399,Payments to sub-contractors,27.82,0.00,27.82
Resources,I.C.T. Services,070204,Operations - System & Repairs Team,Supplies and Services,304403,Equipment and Materials,16-Sep-2016,5279384997,THE REPLACE BASE LTD,5999,Other consumables,249.48,41.58,207.90
Regeneration & Economic Development,Economic Development and Housing,030762,Organisational Training & Development,Employees,040149,Recruitment Instruction and Training,16-Sep-2016,5279385015,CITB,8220,Training-all costs,30.00,5.00,25.00
Regeneration & Economic Development,Economic Development and Housing,030762,Organisational Training & Development,Employees,040149,Recruitment Instruction and Training,16-Sep-2016,5279385019,CITB,8220,Training-all costs,30.00,5.00,25.00
Regeneration & Economic Development,Economic Development and Housing,030762,Organisational Training & Development,Employees,040149,Recruitment Instruction and Training,16-Sep-2016,5279385023,CITB,8220,Training-all costs,30.00,0.00,30.00
Regeneration & Economic Development,Economic Development and Housing,030762,Organisational Training & Development,Employees,040149,Recruitment Instruction and Training,16-Sep-2016,5279385029,CITB,8220,Training-all costs,30.00,5.00,25.00
Regeneration & Economic Development,Economic Development and Housing,030762,Organisational Training & Development,Employees,040149,Recruitment Instruction and Training,16-Sep-2016,5279385033,CITB,8220,Training-all costs,30.00,5.00,25.00
Neighbourhood Services,Direct Services,021234,Catering - Locomotion,Supplies and Services,324117,Provisions,16-Sep-2016,5279385035,BRAKE BROS LTD,5811,Catering costs - provisions,244.32,40.72,203.60
Neighbourhood Services,Direct Services,021234,Catering - Locomotion,Supplies and Services,324117,Provisions,16-Sep-2016,5279385035 - 1,BRAKE BROS LTD,5811,Catering costs - provisions,22.20,,22.20
Neighbourhood Services,Direct Services,021234,Catering - Locomotion,Supplies and Services,324117,Provisions,16-Sep-2016,5279385041,BRAKE BROS LTD,5811,Catering costs - provisions,46.44,7.74,38.70
Neighbourhood Services,Direct Services,021234,Catering - Locomotion,Supplies and Services,324117,Provisions,16-Sep-2016,5279385041 - 1,BRAKE BROS LTD,5811,Catering costs - provisions,124.97,,124.97
Neighbourhood Services,Direct Services,010525,Catering - Green Lane,Supplies and Services,324117,Provisions,16-Sep-2016,5279385103,JR HOLLAND FOODSERVICE,5422,Catering costs - provisions,45.91,0.00,45.91
Children and Adult Services,Childrens Services,088063,Bishop Auckland 0 - 5,Supplies and Services,312011,Newspapers Books and Periodicals,16-Sep-2016,5279385145,HOME BARGAINS,5251,Books-school library,19.90,0.00,19.90
Neighbourhood Services,Direct Services,020041,Bldg Serv - Business Development - General,Supplies and Services,332047,Printing Stationery and Gen Off Exps,16-Sep-2016,5279385215,Amazon UK Marketplace,5942,Stationery,1.88,0.31,1.57
Resources,Internal Audit and Insurance,065103,Insurance and Risk,Supplies and Services,312009,Newspapers Books and Periodicals,16-Sep-2016,5279385267,BPP PROF EDUCATION,8220,Newspapers books and periodicals,201.60,0.00,201.60
Resources,Corporate Finance,065109,Pensions,Supplies and Services,384199,Miscellaneous Expenses,16-Sep-2016,5279385269,DURHAM COUNTY COUNCIL,9399,Other hired and contracted services,36.00,0.00,36.00
Neighbourhood Services,Direct Services,010301,C&G - North Grounds Maintenance,Supplies and Services,304999,Equipment and Materials,16-Sep-2016,5279385329,NEW ROW FARM NURSERIES,5193,Misc equipment tools and materials,498.00,83.00,415.00
Neighbourhood Services,Culture & Sport,054235,Bp Auckland Town Hall Cafe,Supplies and Services,324117,Provisions,16-Sep-2016,5279385377,JR HOLLAND FOODSERVICE,5422,Catering costs - provisions,20.15,0.00,20.15
Neighbourhood Services,Direct Services,021324,Catering - Meadowfield,Supplies and Services,324117,Provisions,16-Sep-2016,5279385389,JR HOLLAND FOODSERVICE,5422,Catering costs - provisions,31.03,0.00,31.03
Neighbourhood Services,Direct Services,021324,Catering - Meadowfield,Supplies and Services,324117,Provisions,16-Sep-2016,5279385395,JR HOLLAND FOODSERVICE,5422,Catering costs - provisions,9.87,0.00,9.87
Neighbourhood Services,Direct Services,021324,Catering - Meadowfield,Supplies and Services,324117,Provisions,16-Sep-2016,5279385397,JR HOLLAND FOODSERVICE,5422,Catering costs - provisions,-17.30,0.00,-17.30
Neighbourhood Services,Culture & Sport,011086,Positive Futures,Supplies and Services,324117,Provisions,16-Sep-2016,5279385415,ASDA STORES,5411,Catering costs - provisions,25.02,0.00,25.02
Regeneration & Economic Development,Economic Development and Housing,030737,Durham Works Flexible Fund,Supplies and Services,340001,Postages,16-Sep-2016,5279385449,POST OFFICE COUNTER,9402,Postages,4.45,0.00,4.45
Children and Adult Services,Head of Adults,051603,OP/PD Durham & CLS,Supplies and Services,340001,Postages,16-Sep-2016,5279385493,WWW.ROYALMAIL.COM,9402,Postages,103.00,0.00,103.00
Resources,Financial Services,069805,Purchasing,Supplies and Services,304403,Equipment and Materials,16-Sep-2016,5279385495,AMAZON UK RETAIL AMAZO,5999,Other consumables,18.73,0.00,18.73
Neighbourhood Services,Culture & Sport,010605,Woodhouse Close Leisure Complex,Supplies and Services,324117,Provisions,16-Sep-2016,5279385527,BRAKE BROS LTD,5811,Catering costs - provisions,104.99,0.00,104.99
Regeneration & Economic Development,Spatial Policy Planning Assets & Environment,031200,North Pennines Core,Supplies and Services,340001,Postages,16-Sep-2016,5279385557,THE POST OFFICE,9402,Postages,10.53,0.00,10.53
Regeneration & Economic Development,Spatial Policy Planning Assets & Environment,031200,North Pennines Core,Supplies and Services,312011,Newspapers Books and Periodicals,16-Sep-2016,5279385561,Amazon UK Marketplace,5942,Books-school library,5.97,0.00,5.97
Regeneration & Economic Development,Economic Development and Housing,030699,Business Growth and Innovation General,Supplies and Services,304999,Equipment and Materials,17-Sep-2016,5279384723,PatentInspirationEU,5817,Misc equipment tools and materials,84.12,0.00,84.12
Regeneration & Economic Development,Economic Development and Housing,030699,Business Growth and Innovation General,Supplies and Services,352001,Conference Expenses,17-Sep-2016,5279384729,WTS CLUB ROOM SERVICE,7011,Conferencesseminars fees etc,24.65,0.00,24.65
Regeneration & Economic Development,Economic Development and Housing,030554,International Relations,Supplies and Services,304403,Equipment and Materials,17-Sep-2016,5279384869,CARD FACTORY,5947,Other consumables,2.51,0.00,2.51
Children and Adult Services,Childrens Services,085957,Secure Management,Supplies and Services,324117,Provisions,17-Sep-2016,5279384935,TESCO STORES 6329,5411,Catering costs - provisions,130.94,0.00,130.94
Neighbourhood Services,Direct Services,010367,C&G - South Grounds Maintenance,Supplies and Services,304259,Equipment and Materials,17-Sep-2016,5279385177,B & Q 1120,5211,Equipment-purchase and rental,25.66,0.00,25.66
Neighbourhood Services,Direct Services,021235,Catering - Wharton Park,Supplies and Services,324117,Provisions,17-Sep-2016,5279385475,BRAKE BROS LTD,5811,Catering costs - provisions,261.00,43.50,217.50
Neighbourhood Services,Direct Services,021235,Catering - Wharton Park,Supplies and Services,324117,Provisions,17-Sep-2016,5279385475 - 1,BRAKE BROS LTD,5811,Catering costs - provisions,2.15,,2.15
Neighbourhood Services,Direct Services,021235,Catering - Wharton Park,Supplies and Services,324117,Provisions,17-Sep-2016,5279385481,BRAKE BROS LTD,5811,Catering costs - provisions,174.96,29.16,145.80
Neighbourhood Services,Direct Services,021235,Catering - Wharton Park,Supplies and Services,324117,Provisions,17-Sep-2016,5279385481 - 1,BRAKE BROS LTD,5811,Catering costs - provisions,62.95,,62.95
Regeneration & Economic Development,Economic Development and Housing,030554,International Relations,Transport,235057,Public Transport,18-Sep-2016,5279384873,NEWCASTLE PARK AND FLY,7523,Staff travelling,3.20,0.00,3.20
Regeneration & Economic Development,Economic Development and Housing,030554,International Relations,Supplies and Services,348037,Subsistence,18-Sep-2016,5279384877,CONJUGAISON,5812,Subsistence,125.74,0.00,125.74
Regeneration & Economic Development,Economic Development and Housing,030554,International Relations,Supplies and Services,348037,Subsistence,18-Sep-2016,5279384879,CABIN BAR,5814,Subsistence,8.20,0.00,8.20
Neighbourhood Services,Direct Services,020041,Bldg Serv - Business Development - General,Supplies and Services,332047,Printing Stationery and Gen Off Exps,18-Sep-2016,5279385221,Amazon UK Marketplace,5942,Stationery,1.79,0.00,1.79
Resources,Resources Management,069000,Resources Management,Supplies and Services,324117,Provisions,18-Sep-2016,5279385237,CO-OP GROUP 010830,5411,Catering costs - provisions,15.39,0.00,15.39
Regeneration & Economic Development,Economic Development and Housing,030699,Business Growth and Innovation General,Supplies and Services,352001,Conference Expenses,19-Sep-2016,5279384731,SPROUT SOCIAL,7392,Conferencesseminars fees etc,20.72,0.00,20.72
Regeneration & Economic Development,Economic Development and Housing,030699,Business Growth and Innovation General,Supplies and Services,304999,Equipment and Materials,19-Sep-2016,5279384733,PatentInspirationEU,5817,Misc equipment tools and materials,2.31,0.00,2.31
Regeneration & Economic Development,Economic Development and Housing,030699,Business Growth and Innovation General,Supplies and Services,352001,Conference Expenses,19-Sep-2016,5279384737,WTS CLUB ROOM SERVICE,7011,Conferencesseminars fees etc,0.68,0.00,0.68
Regeneration & Economic Development,Economic Development and Housing,030554,International Relations,Supplies and Services,348037,Subsistence,19-Sep-2016,5279384887,CONJUGAISON,5812,Subsistence,3.46,0.00,3.46
Resources,I.C.T. Services,070204,Operations - System & Repairs Team,Supplies and Services,312011,Newspapers Books and Periodicals,19-Sep-2016,5279385003,GILMORE GLOBAL US,4816,Books-school library,4.04,0.00,4.04
Resources,I.C.T. Services,070204,Operations - System & Repairs Team,Third Party Payments,430100,Rendered by Private Contractors,19-Sep-2016,5279385005,HSO IFIXIT GMBH,7399,Payments to sub-contractors,0.77,0.00,0.77
Children and Adult Services,Education,071801,Selby Cottage Childcare Centre,Supplies and Services,304259,Equipment and Materials,19-Sep-2016,5286503263,WILKO RETAIL LIMIT,5722,Equipment-purchase and rental,5.00,0.00,5.00
Children and Adult Services,Education,071801,Selby Cottage Childcare Centre,Supplies and Services,324117,Provisions,19-Sep-2016,5286503265,W M MORRISON PLC,5411,Catering costs - provisions,5.02,0.00,5.02
Children and Adult Services,Education,071801,Selby Cottage Childcare Centre,Supplies and Services,304259,Equipment and Materials,19-Sep-2016,5286503267,WILKO RETAIL LIMIT,5722,Equipment-purchase and rental,-10.00,0.00,-10.00
Children and Adult Services,Education,071733,Shildon Childcare,Income,720130,Fees and Charges,19-Sep-2016,5286503269,WWW.MONEYCLAIM.GOV,9399,Fees-legal,105.00,0.00,105.00
Children and Adult Services,Education,071733,Shildon Childcare,Supplies and Services,324117,Provisions,19-Sep-2016,5286503277,ASDA HOME SHOPPING,5411,Catering costs - provisions,41.55,0.00,41.55
Regeneration & Economic Development,Economic Development and Housing,031500,Housing Solutions - Core Team,Supplies and Services,352001,Conference Expenses,19-Sep-2016,5286503287,DAYS INN,7011,Conferencesseminars fees etc,55.00,9.17,45.83
Children and Adult Services,Childrens Services,085957,Secure Management,Supplies and Services,384985,Miscellaneous Expenses,19-Sep-2016,5286503303,E-VOICE SPEECH REC,5045,Miscellaneous-special facilities,270.90,45.15,225.75
Children and Adult Services,Childrens Services,085957,Secure Management,Supplies and Services,384985,Miscellaneous Expenses,19-Sep-2016,5286503307,SIGHT AND SOUND TECHNO,5045,Miscellaneous-special facilities,418.20,69.70,348.50
Children and Adult Services,Childrens Services,085342,9 Cedar Drive Aycliffe,Supplies and Services,304259,Equipment and Materials,19-Sep-2016,5286503311,WILKO RETAIL LIMIT,5722,Equipment-purchase and rental,6.05,0.00,6.05
Neighbourhood Services,Direct Services,021242,Catering - County Hall,Supplies and Services,324117,Provisions,19-Sep-2016,5286503343,BRAMBLES FOODS LTD,5499,Catering costs - provisions,611.61,0.00,611.61
Neighbourhood Services,Direct Services,021242,Catering - County Hall,Supplies and Services,324117,Provisions,19-Sep-2016,5286503347,JR HOLLAND FOODSERVICE,5422,Catering costs - provisions,50.84,0.00,50.84
Neighbourhood Services,Direct Services,021242,Catering - County Hall,Supplies and Services,324117,Provisions,19-Sep-2016,5286503349,JR HOLLAND FOODSERVICE,5422,Catering costs - provisions,13.52,0.00,13.52
Neighbourhood Services,Direct Services,021242,Catering - County Hall,Supplies and Services,324117,Provisions,19-Sep-2016,5286503353,BRAKE BROS LTD,5811,Catering costs - provisions,120.60,20.10,100.50
Neighbourhood Services,Direct Services,021242,Catering - County Hall,Supplies and Services,324117,Provisions,19-Sep-2016,5286503353 - 1,BRAKE BROS LTD,5811,Catering costs - provisions,179.74,,179.74
Neighbourhood Services,Direct Services,021242,Catering - County Hall,Supplies and Services,324117,Provisions,19-Sep-2016,5286503357,BRAKE BROS LTD,5811,Catering costs - provisions,212.88,0.00,212.88
Neighbourhood Services,Culture & Sport,011232,Locality 3 Team Management,Supplies and Services,324117,Provisions,19-Sep-2016,5286503403,ASDA SUPERSTORE,5411,Catering costs - provisions,16.62,2.77,13.85
Children and Adult Services,Childrens Services,088063,Bishop Auckland 0 - 5,Supplies and Services,324117,Provisions,19-Sep-2016,5286503407,SAINSBURYS 2199,5411,Catering costs - provisions,7.22,0.00,7.22
Children and Adult Services,Education,071732,Dean Bank Childcare,Supplies and Services,312011,Newspapers Books and Periodicals,19-Sep-2016,5286503441,Amazon UK Marketplace,5942,Books-school library,3.09,0.00,3.09
Children and Adult Services,Education,071732,Dean Bank Childcare,Supplies and Services,312011,Newspapers Books and Periodicals,19-Sep-2016,5286503445,Amazon EU,5969,Books-school library,7.68,0.00,7.68
Children and Adult Services,Education,071732,Dean Bank Childcare,Supplies and Services,328041,Clothing Uniforms and Laundry,19-Sep-2016,5286503447,POUNDWORLD RETAIL,5310,Clothing uniforms and laundry,10.00,0.00,10.00
Children and Adult Services,Education,071732,Dean Bank Childcare,Supplies and Services,328041,Clothing Uniforms and Laundry,19-Sep-2016,5286503449,THE RANGE,5311,Clothing uniforms and laundry,35.96,0.00,35.96
Children and Adult Services,Education,071732,Dean Bank Childcare,Supplies and Services,324117,Provisions,19-Sep-2016,5286503453,ASDA HOME SHOPPING,5411,Catering costs - provisions,44.44,0.00,44.44
Children and Adult Services,Education,071732,Dean Bank Childcare,Supplies and Services,328041,Clothing Uniforms and Laundry,19-Sep-2016,5286503457,B&M RETAIL LTD,5310,Clothing uniforms and laundry,29.63,0.00,29.63
Regeneration & Economic Development,Economic Development and Housing,030737,Durham Works Flexible Fund,Transport,235005,Public Transport,19-Sep-2016,5286503467,ARRIVA PASSENGER S,7538,Contract tickets,4.30,0.00,4.30
Regeneration & Economic Development,Economic Development and Housing,030737,Durham Works Flexible Fund,Transport,230031,Contract Hire,19-Sep-2016,5286503485,ARRIVA PASSENGER S,7538,Pupils-transport to play fields etc,25.00,0.00,25.00
Neighbourhood Services,Direct Services,010367,C&G - South Grounds Maintenance,Supplies and Services,312011,Newspapers Books and Periodicals,19-Sep-2016,5286503503,WWW.GUSTHARTS.CO.UK,5251,Books-school library,258.00,43.00,215.00
Neighbourhood Services,Culture & Sport,011060,Hardwick Park Catering,Supplies and Services,324117,Provisions,19-Sep-2016,5286503515,JR HOLLAND FOODSERVICE,5422,Catering costs - provisions,42.29,0.00,42.29
Neighbourhood Services,Culture & Sport,011060,Hardwick Park Catering,Supplies and Services,324117,Provisions,19-Sep-2016,5286503517,BRAKE BROS LTD,5811,Catering costs - provisions,179.70,29.95,149.75
Neighbourhood Services,Culture & Sport,011060,Hardwick Park Catering,Supplies and Services,324117,Provisions,19-Sep-2016,5286503517 - 1,BRAKE BROS LTD,5811,Catering costs - provisions,207.91,,207.91
Resources,I.C.T. Services,070204,Operations - System & Repairs Team,Supplies and Services,312011,Newspapers Books and Periodicals,19-Sep-2016,5286503537,Amazon UK Marketplace,5942,Books-school library,64.95,0.00,64.95
Resources,I.C.T. Services,070204,Operations - System & Repairs Team,Supplies and Services,312011,Newspapers Books and Periodicals,19-Sep-2016,5286503541,Amazon UK Marketplace,5942,Books-school library,26.97,0.00,26.97
Neighbourhood Services,Direct Services,021234,Catering - Locomotion,Supplies and Services,324117,Provisions,19-Sep-2016,5286503543,BRAMBLES FOODS LTD,5499,Catering costs - provisions,172.38,0.00,172.38
Neighbourhood Services,Direct Services,010525,Catering - Green Lane,Supplies and Services,324117,Provisions,19-Sep-2016,5286503565,BRAMBLES FOODS LTD,5499,Catering costs - provisions,84.88,0.00,84.88
Neighbourhood Services,Direct Services,010525,Catering - Green Lane,Supplies and Services,324117,Provisions,19-Sep-2016,5286503567,BRAKE BROS LTD,5811,Catering costs - provisions,57.97,0.00,57.97
Children and Adult Services,Childrens Services,088063,Bishop Auckland 0 - 5,Supplies and Services,324117,Provisions,19-Sep-2016,5286503581,SAINSBURYS SACAT 2199,5411,Catering costs - provisions,13.72,2.29,11.43
Children and Adult Services,Childrens Services,088037,One Point YEI,Supplies and Services,304259,Equipment and Materials,19-Sep-2016,5286503585,DURHAM COUNTY COUNCIL,9399,Equipment-purchase and rental,10.00,0.00,10.00
Regeneration & Economic Development,Transport and Contracted Services,031701,Care Connect All Localities,Supplies and Services,344033,Telephones,19-Sep-2016,5286503657,BT BILL PAYMENT 2,4812,Telephones general-all costs,-26.54,0.00,-26.54
Neighbourhood Services,Direct Services,021324,Catering - Meadowfield,Supplies and Services,324117,Provisions,19-Sep-2016,5286503663,BRAMBLES FOODS LTD,5499,Catering costs - provisions,80.40,0.00,80.40
Children and Adult Services,Childrens Services,085333,Coxhoe Satelite Home,Supplies and Services,324117,Provisions,19-Sep-2016,5286503667,ALDI,5411,Catering costs - provisions,15.54,2.59,12.95
Children and Adult Services,Childrens Services,085333,Coxhoe Satelite Home,Supplies and Services,324117,Provisions,19-Sep-2016,5286503667 - 1,ALDI,5411,Catering costs - provisions,95.89,,95.89
Regeneration & Economic Development,Economic Development and Housing,030737,Durham Works Flexible Fund,Supplies and Services,384700,Miscellaneous Expenses,19-Sep-2016,5286503735,CO-OP GROUP 310027,5411,Miscellaneous grants,50.00,0.00,50.00
Children and Adult Services,Childrens Services,088083,Ferryhill 0 - 5,Supplies and Services,324117,Provisions,19-Sep-2016,5286503741,ASDA HOME SHOPPING,5411,Catering costs - provisions,39.83,0.00,39.83
Neighbourhood Services,Direct Services,021235,Catering - Wharton Park,Supplies and Services,324117,Provisions,19-Sep-2016,5286503755,BRAMBLES FOODS LTD,5499,Catering costs - provisions,263.90,0.00,263.90
Neighbourhood Services,Culture & Sport,010605,Woodhouse Close Leisure Complex,Supplies and Services,324117,Provisions,19-Sep-2016,5286503777,JR HOLLAND FOODSERVICE,5422,Catering costs - provisions,34.51,0.00,34.51
Neighbourhood Services,Culture & Sport,010605,Woodhouse Close Leisure Complex,Supplies and Services,324117,Provisions,19-Sep-2016,5286503781,BRAKE BROS LTD,5811,Catering costs - provisions,85.82,0.00,85.82
Children and Adult Services,Childrens Services,071746,Newton Aycliffe Childrens Centre,Supplies and Services,340001,Postages,19-Sep-2016,5289797953,POST OFFICE SHOP,9402,Postages,55.85,0.00,55.85
Neighbourhood Services,Direct Services,010341,Nei.Prot - N. Wardens,Supplies and Services,340001,Postages,19-Sep-2016,5289797959,POST OFFICE SHOP,9402,Postages,98.99,0.00,98.99
Children and Adult Services,Education,078100,Curric and Professional Development,Supplies and Services,364320,Grants to Voluntary Organisations,19-Sep-2016,5289798039,THE KINGSLODGE INN,7011,Accommodation assistance,85.50,0.00,85.50
Children and Adult Services,Childrens Services,088083,Ferryhill 0 - 5,Supplies and Services,324117,Provisions,19-Sep-2016,5289798109,ASDA HOME SHOPPING,5411,Catering costs - provisions,-2.85,0.00,-2.85
Children and Adult Services,Planning & Service Strategy,054630,Comm Marketing and Information,Supplies and Services,304999,Equipment and Materials,20-Sep-2016,5286503759,GOOGLE ADWS8172786379,5968,Misc equipment tools and materials,142.11,0.00,142.11
Children and Adult Services,Childrens Services,088001,Peterlee Locality,Supplies and Services,324117,Provisions,20-Sep-2016,5289797681,TESCO STORES 6329,5411,Catering costs - provisions,48.64,0.00,48.64
Neighbourhood Services,Technical Services,024611,Strategic Highways - Road Safety ETP,Supplies and Services,304403,Equipment and Materials,20-Sep-2016,5289797687,BIKEABILITY MATERIALS,5940,Other consumables,303.96,0.00,303.96
Children and Adult Services,Childrens Services,085957,Secure Management,Supplies and Services,304083,Equipment and Materials,20-Sep-2016,5289797703,ARGOS RETAIL GROUP,5310,Catering equipment,49.98,0.00,49.98
Children and Adult Services,Childrens Services,085957,Secure Management,Supplies and Services,328041,Clothing Uniforms and Laundry,20-Sep-2016,5289797707,MAINLINE MENSWEAR,5611,Clothing uniforms and laundry,48.50,0.00,48.50
Children and Adult Services,Childrens Services,085957,Secure Management,Supplies and Services,328041,Clothing Uniforms and Laundry,20-Sep-2016,5289797711,VERY.CO.UK,5964,Clothing uniforms and laundry,45.00,0.00,45.00
Children and Adult Services,Childrens Services,085957,Secure Management,Supplies and Services,328041,Clothing Uniforms and Laundry,20-Sep-2016,5289797713,VERY.CO.UK,5964,Clothing uniforms and laundry,25.00,0.00,25.00
Children and Adult Services,Childrens Services,085957,Secure Management,Supplies and Services,328041,Clothing Uniforms and Laundry,20-Sep-2016,5289797715,VERY.CO.UK,5964,Clothing uniforms and laundry,20.00,0.00,20.00
Children and Adult Services,Childrens Services,085957,Secure Management,Supplies and Services,328041,Clothing Uniforms and Laundry,20-Sep-2016,5289797719,VERY.CO.UK,5964,Clothing uniforms and laundry,14.99,0.00,14.99
Children and Adult Services,Childrens Services,085957,Secure Management,Supplies and Services,328041,Clothing Uniforms and Laundry,20-Sep-2016,5289797721,VERY.CO.UK,5964,Clothing uniforms and laundry,12.99,0.00,12.99
Children and Adult Services,Childrens Services,085957,Secure Management,Supplies and Services,328041,Clothing Uniforms and Laundry,20-Sep-2016,5289797725,VERY.CO.UK,5964,Clothing uniforms and laundry,12.99,0.00,12.99
Children and Adult Services,Childrens Services,085957,Secure Management,Supplies and Services,328041,Clothing Uniforms and Laundry,20-Sep-2016,5289797727,VERY.CO.UK,5964,Clothing uniforms and laundry,9.00,0.00,9.00
Children and Adult Services,Childrens Services,085957,Secure Management,Supplies and Services,328041,Clothing Uniforms and Laundry,20-Sep-2016,5289797729,VERY.CO.UK,5964,Clothing uniforms and laundry,3.99,0.00,3.99
Neighbourhood Services,EnvironmentHealth & Consumer Protection,010934,Works in Default Holding Code,Income,720130,Fees and Charges,20-Sep-2016,5289797751,WWW.MONEYCLAIM.GOV,9399,Fees-legal,77.00,0.00,77.00
Regeneration & Economic Development,Economic Development and Housing,030737,Durham Works Flexible Fund,Transport,230031,Contract Hire,20-Sep-2016,5289797777,ARRIVA PASSENGER S,7538,Pupils-transport to play fields etc,8.40,0.00,8.40
Neighbourhood Services,Direct Services,021242,Catering - County Hall,Supplies and Services,324117,Provisions,20-Sep-2016,5289797779,FREEMAN CATERING BUTCH,5422,Catering costs - provisions,113.39,0.00,113.39
Neighbourhood Services,Direct Services,021242,Catering - County Hall,Supplies and Services,324117,Provisions,20-Sep-2016,5289797783,FREEMAN CATERING BUTCH,5422,Catering costs - provisions,42.07,0.00,42.07
Neighbourhood Services,Direct Services,021242,Catering - County Hall,Supplies and Services,324117,Provisions,20-Sep-2016,5289797785,JR HOLLAND FOODSERVICE,5422,Catering costs - provisions,73.93,0.00,73.93
Neighbourhood Services,Direct Services,021242,Catering - County Hall,Supplies and Services,324117,Provisions,20-Sep-2016,5289797789,JR HOLLAND FOODSERVICE,5422,Catering costs - provisions,6.58,0.00,6.58
Children and Adult Services,Education,070169,Durham SSP,Supplies and Services,384199,Miscellaneous Expenses,20-Sep-2016,5289797791,Helloprint,7338,Other hired and contracted services,59.88,9.98,49.90
Neighbourhood Services,Direct Services,010367,C&G - South Grounds Maintenance,Supplies and Services,304259,Equipment and Materials,20-Sep-2016,5289797797,JT ATKINSON & SONS LTD,5211,Equipment-purchase and rental,10.02,1.67,8.35
Neighbourhood Services,Culture & Sport,054812,Gala Theatre - Catering etc,Supplies and Services,324117,Provisions,20-Sep-2016,5289797817,FREEMAN CATERING BUTCH,5422,Catering costs - provisions,47.68,0.00,47.68
Neighbourhood Services,Culture & Sport,054812,Gala Theatre - Catering etc,Supplies and Services,324117,Provisions,20-Sep-2016,5289797821,JR HOLLAND FOODSERVICE,5422,Catering costs - provisions,44.60,0.00,44.60
Neighbourhood Services,Culture & Sport,054812,Gala Theatre - Catering etc,Supplies and Services,324117,Provisions,20-Sep-2016,5289797823,BRAKE BROS LTD,5811,Catering costs - provisions,57.12,9.52,47.60
Neighbourhood Services,Culture & Sport,054812,Gala Theatre - Catering etc,Supplies and Services,324117,Provisions,20-Sep-2016,5289797823 - 1,BRAKE BROS LTD,5811,Catering costs - provisions,85.36,,85.36
Neighbourhood Services,Culture & Sport,011219,Office Services,Supplies and Services,342053,Computers and Communications,20-Sep-2016,5289797851,CREATESEND/COM,5045,Computer software,288.00,0.00,288.00
Neighbourhood Services,Direct Services,010561,Fleet - Morrison Busty Fleet,Transport,215013,Running Costs of Vehicles,20-Sep-2016,5289797859,WWW.DVLA.GOV.UK,9399,Vehicle Excise Duty (VED),232.50,0.00,232.50
Children and Adult Services,Education,071732,Dean Bank Childcare,Supplies and Services,312011,Newspapers Books and Periodicals,20-Sep-2016,5289797869,Amazon UK Marketplace,5942,Books-school library,35.52,0.00,35.52
Regeneration & Economic Development,Economic Development and Housing,030737,Durham Works Flexible Fund,Transport,230031,Contract Hire,20-Sep-2016,5289797879,WWW.SIMPLYGO.COM,4131,Pupils-transport to play fields etc,4.85,0.00,4.85
Neighbourhood Services,Culture & Sport,011060,Hardwick Park Catering,Supplies and Services,324117,Provisions,20-Sep-2016,5289797891,FREEMAN CATERING BUTCH,5422,Catering costs - provisions,19.06,0.00,19.06
Neighbourhood Services,Culture & Sport,011060,Hardwick Park Catering,Supplies and Services,324117,Provisions,20-Sep-2016,5289797895,FREEMAN CATERING BUTCH,5422,Catering costs - provisions,18.70,0.00,18.70
Neighbourhood Services,Culture & Sport,011060,Hardwick Park Catering,Supplies and Services,324117,Provisions,20-Sep-2016,5289797897,JR HOLLAND FOODSERVICE,5422,Catering costs - provisions,54.49,0.00,54.49
Neighbourhood Services,Culture & Sport,011060,Hardwick Park Catering,Supplies and Services,324117,Provisions,20-Sep-2016,5289797903,JR HOLLAND FOODSERVICE,5422,Catering costs - provisions,19.44,0.00,19.44
Neighbourhood Services,Culture & Sport,011060,Hardwick Park Catering,Supplies and Services,324117,Provisions,20-Sep-2016,5289797905,BRAKE BROS LTD,5811,Catering costs - provisions,-2.74,0.00,-2.74
Regeneration & Economic Development,Economic Development and Housing,030762,Organisational Training & Development,Employees,040149,Recruitment Instruction and Training,20-Sep-2016,5289797909,CITB,8220,Training-all costs,30.00,0.00,30.00
Neighbourhood Services,Direct Services,021234,Catering - Locomotion,Supplies and Services,324117,Provisions,20-Sep-2016,5289797911,BRAKE BROS LTD,5811,Catering costs - provisions,115.26,19.21,96.05
Neighbourhood Services,Direct Services,021234,Catering - Locomotion,Supplies and Services,324117,Provisions,20-Sep-2016,5289797911 - 1,BRAKE BROS LTD,5811,Catering costs - provisions,91.71,,91.71
Neighbourhood Services,Direct Services,010525,Catering - Green Lane,Supplies and Services,324117,Provisions,20-Sep-2016,5289797925,FREEMAN CATERING BUTCH,5422,Catering costs - provisions,47.57,0.00,47.57
Neighbourhood Services,Direct Services,010525,Catering - Green Lane,Supplies and Services,324117,Provisions,20-Sep-2016,5289797929,FREEMAN CATERING BUTCH,5422,Catering costs - provisions,19.35,0.00,19.35
Neighbourhood Services,Direct Services,010525,Catering - Green Lane,Supplies and Services,324117,Provisions,20-Sep-2016,5289797931,BRAKE BROS LTD,5811,Catering costs - provisions,21.78,3.63,18.15
Neighbourhood Services,Direct Services,010525,Catering - Green Lane,Supplies and Services,324117,Provisions,20-Sep-2016,5289797931 - 1,BRAKE BROS LTD,5811,Catering costs - provisions,107.39,,107.39
Neighbourhood Services,Direct Services,010525,Catering - Green Lane,Supplies and Services,324117,Provisions,20-Sep-2016,5289797937,BRAKE BROS LTD,5811,Catering costs - provisions,-6.29,0.00,-6.29
Children and Adult Services,Childrens Services,085352,Tow Law CU,Supplies and Services,324117,Provisions,20-Sep-2016,5289797965,ASDA STORES,5411,Catering costs - provisions,39.50,0.00,39.50
Children and Adult Services,Childrens Services,085352,Tow Law CU,Supplies and Services,324117,Provisions,20-Sep-2016,5289797969,TESCO STORES 2371,5411,Catering costs - provisions,230.65,0.00,230.65
Children and Adult Services,Childrens Services,088037,One Point YEI,Supplies and Services,304259,Equipment and Materials,20-Sep-2016,5289797979,DARLINGTON BC INTERNET,9399,Equipment-purchase and rental,12.00,0.00,12.00
Children and Adult Services,Childrens Services,088063,Bishop Auckland 0 - 5,Supplies and Services,324117,Provisions,20-Sep-2016,5289797983,TESCO STORES 6329,5411,Catering costs - provisions,11.10,0.00,11.10
Neighbourhood Services,Direct Services,010367,C&G - South Grounds Maintenance,Supplies and Services,304221,Equipment and Materials,20-Sep-2016,5289798017,R DEFTY,5200,Direct materials,8.30,0.00,8.30
Neighbourhood Services,Direct Services,010367,C&G - South Grounds Maintenance,Transport,215995,Running Costs of Vehicles,20-Sep-2016,5289798019,SNOWBALLS (RAILWAY,5533,Vehicle running expenses,55.00,9.17,45.83
Neighbourhood Services,Direct Services,010367,C&G - South Grounds Maintenance,Supplies and Services,328041,Clothing Uniforms and Laundry,20-Sep-2016,5289798027,ARGOS BISHOP AUCKL,5310,Clothing uniforms and laundry,32.10,0.00,32.10
Resources,I.C.T. Services,069010,Administration,Third Party Payments,430100,Rendered by Private Contractors,20-Sep-2016,5289798043,HOOTSUITE MEDIA INC.,7399,Payments to sub-contractors,5.50,0.00,5.50
Resources,I.C.T. Services,069010,Administration,Supplies and Services,304259,Equipment and Materials,20-Sep-2016,5289798045,GRO HM PASSPORT OFFICE,9399,Equipment-purchase and rental,18.50,0.00,18.50
Neighbourhood Services,Direct Services,021324,Catering - Meadowfield,Supplies and Services,324117,Provisions,20-Sep-2016,5289798073,FREEMAN CATERING BUTCH,5422,Catering costs - provisions,53.32,0.00,53.32
Neighbourhood Services,Direct Services,021324,Catering - Meadowfield,Supplies and Services,324117,Provisions,20-Sep-2016,5289798075,FREEMAN CATERING BUTCH,5422,Catering costs - provisions,42.58,0.00,42.58
Neighbourhood Services,Direct Services,021324,Catering - Meadowfield,Supplies and Services,324117,Provisions,20-Sep-2016,5289798077,BRAKE BROS LTD,5811,Catering costs - provisions,56.68,0.00,56.68
Neighbourhood Services,Direct Services,010301,C&G - North Grounds Maintenance,Supplies and Services,304221,Equipment and Materials,20-Sep-2016,5289798083,JG PAXTON & SONS LTD,8911,Direct materials,18.66,3.11,15.55
Regeneration & Economic Development,Economic Development and Housing,030737,Durham Works Flexible Fund,Transport,235057,Public Transport,20-Sep-2016,5289798101,WWW.SIMPLYGO.COM,4131,Staff travelling,24.40,0.00,24.40
Regeneration & Economic Development,Economic Development and Housing,030737,Durham Works Flexible Fund,Supplies and Services,328041,Clothing Uniforms and Laundry,20-Sep-2016,5289798105,MATALAN,5691,Clothing uniforms and laundry,39.05,6.51,32.54
Neighbourhood Services,Direct Services,021235,Catering - Wharton Park,Supplies and Services,324117,Provisions,20-Sep-2016,5289798125,JR HOLLAND FOODSERVICE,5422,Catering costs - provisions,21.45,0.00,21.45
Neighbourhood Services,Culture & Sport,010605,Woodhouse Close Leisure Complex,Supplies and Services,324117,Provisions,20-Sep-2016,5289798131,FREEMAN CATERING BUTCH,5422,Catering costs - provisions,43.80,0.00,43.80
Regeneration & Economic Development,Economic Development and Housing,030737,Durham Works Flexible Fund,Supplies and Services,324117,Provisions,20-Sep-2016,5289798143,FAMILY SHOPPER 17189,5411,Catering costs - provisions,60.00,0.00,60.00
Regeneration & Economic Development,Spatial Policy Planning Assets & Environment,031200,North Pennines Core,Supplies and Services,324117,Provisions,20-Sep-2016,5289798151,SCOTMID CO-OP STANHOPE,5411,Catering costs - provisions,25.58,0.00,25.58
Children and Adult Services,Childrens Services,085555,Child Protection Team Peterlee,Supplies and Services,338045,Services,20-Sep-2016,5289798175,GRO HM PASSPORT OFFICE,9399,Legal expenses,23.40,0.00,23.40
Children and Adult Services,Education,070264,EDC Premises,Supplies and Services,384956,Miscellaneous Expenses,20-Sep-2016,5293961237,TVLICENSING.CO.UK,7392,Licences,145.50,0.00,145.50
Children and Adult Services,Childrens Services,085957,Secure Management,Supplies and Services,328041,Clothing Uniforms and Laundry,20-Sep-2016,5293961253,FLANNELSFASHION.,5691,Clothing uniforms and laundry,30.99,5.17,25.82
Regeneration & Economic Development,Economic Development and Housing,030554,International Relations,Supplies and Services,312011,Newspapers Books and Periodicals,20-Sep-2016,5293961385,RELAY 352625PX,5942,Books-school library,11.08,0.00,11.08
Children and Adult Services,Childrens Services,074000,TTF-Attachment and Results,Supplies and Services,324117,Provisions,20-Sep-2016,5293961555,ASDA 4387,5411,Catering costs - provisions,60.00,0.00,60.00
Children and Adult Services,Childrens Services,088063,Bishop Auckland 0 - 5,Supplies and Services,324117,Provisions,20-Sep-2016,5293961559,ASDA 4387,5411,Catering costs - provisions,28.00,0.00,28.00
Children and Adult Services,Childrens Services,088063,Bishop Auckland 0 - 5,Supplies and Services,324117,Provisions,20-Sep-2016,5293961563,ASDA 4387,5411,Catering costs - provisions,21.00,0.00,21.00
Resources,I.C.T. Services,069010,Administration,Supplies and Services,304259,Equipment and Materials,20-Sep-2016,5358925015,GRO HM PASSPORT OFFICE,9399,Equipment-purchase and rental,-9.25,0.00,-9.25
Children and Adult Services,Childrens Services,085957,Secure Management,Supplies and Services,328041,Clothing Uniforms and Laundry,21-Sep-2016,5289797733,Amazon UK Marketplace,5942,Clothing uniforms and laundry,36.42,0.00,36.42
Resources,I.C.T. Services,069010,Administration,Third Party Payments,430100,Rendered by Private Contractors,21-Sep-2016,5289798047,HOOTSUITE MEDIA INC.,7399,Payments to sub-contractors,0.15,0.00,0.15
Children and Adult Services,Education,071801,Selby Cottage Childcare Centre,Supplies and Services,324117,Provisions,21-Sep-2016,5293961197,TESCO STORES 2278,5411,Catering costs - provisions,7.50,0.00,7.50
Children and Adult Services,Education,071733,Shildon Childcare,Supplies and Services,304649,Equipment and Materials,21-Sep-2016,5293961211,B & M RETAIL,5310,Toys,8.97,0.00,8.97
Children and Adult Services,Childrens Services,085957,Secure Management,Supplies and Services,324117,Provisions,21-Sep-2016,5293961255,TESCO STORES 6329,5411,Catering costs - provisions,42.26,0.00,42.26
Children and Adult Services,Childrens Services,085957,Secure Management,Supplies and Services,328041,Clothing Uniforms and Laundry,21-Sep-2016,5293961257,VERY.CO.UK,5964,Clothing uniforms and laundry,9.99,0.00,9.99
Children and Adult Services,Childrens Services,085957,Secure Management,Supplies and Services,342033,Computers and Communications,21-Sep-2016,5293961259,VERY.CO.UK,5964,Computer hardware,3.99,0.00,3.99
Children and Adult Services,Childrens Services,071449,Ferryhill One Point Hub,Supplies and Services,324117,Provisions,21-Sep-2016,5293961289,CO-OP GROUP 010488,5411,Catering costs - provisions,11.67,0.00,11.67
Neighbourhood Services,Direct Services,021242,Catering - County Hall,Supplies and Services,324117,Provisions,21-Sep-2016,5293961307,JR HOLLAND FOODSERVICE,5422,Catering costs - provisions,177.60,0.00,177.60
Neighbourhood Services,Direct Services,021242,Catering - County Hall,Supplies and Services,324117,Provisions,21-Sep-2016,5293961311,JR HOLLAND FOODSERVICE,5422,Catering costs - provisions,31.35,0.00,31.35
Neighbourhood Services,Direct Services,021242,Catering - County Hall,Supplies and Services,324117,Provisions,21-Sep-2016,5293961313,JR HOLLAND FOODSERVICE,5422,Catering costs - provisions,20.87,0.00,20.87
Neighbourhood Services,Direct Services,021242,Catering - County Hall,Supplies and Services,324117,Provisions,21-Sep-2016,5293961319,BRAKE BROS LTD,5811,Catering costs - provisions,395.41,0.00,395.41
Children and Adult Services,Childrens Services,085361,LAC & Permanence Team 1 Aycliffe,Supplies and Services,304259,Equipment and Materials,21-Sep-2016,5293961337,GRO HM PASSPORT OFFICE,9399,Equipment-purchase and rental,9.25,0.00,9.25
Neighbourhood Services,Culture & Sport,011232,Locality 3 Team Management,Supplies and Services,324117,Provisions,21-Sep-2016,5293961359,TESCO STORES 6029,5411,Catering costs - provisions,13.67,2.28,11.39
Regeneration & Economic Development,Economic Development and Housing,030737,Durham Works Flexible Fund,Supplies and Services,304259,Equipment and Materials,21-Sep-2016,5293961375,SPORTSDIRECT 368,5941,Equipment-purchase and rental,22.99,0.00,22.99
Regeneration & Economic Development,Economic Development and Housing,030554,International Relations,Transport,235057,Public Transport,21-Sep-2016,5293961381,PRINCE BISHOP SHOPPING,7523,Staff travelling,1.50,0.00,1.50
Neighbourhood Services,Direct Services,010301,C&G - North Grounds Maintenance,Supplies and Services,328041,Clothing Uniforms and Laundry,21-Sep-2016,5293961425,THOMAS OWEN & SONS /N/,5611,Clothing uniforms and laundry,241.02,40.17,200.85
Neighbourhood Services,Direct Services,010301,C&G - North Grounds Maintenance,Supplies and Services,328041,Clothing Uniforms and Laundry,21-Sep-2016,5293961425 - 1,THOMAS OWEN & SONS /N/,5611,Clothing uniforms and laundry,9.32,,9.32
Neighbourhood Services,Direct Services,010301,C&G - North Grounds Maintenance,Supplies and Services,328041,Clothing Uniforms and Laundry,21-Sep-2016,5293961427,THOMAS OWEN & SONS /N/,5611,Clothing uniforms and laundry,36.72,0.00,36.72
Neighbourhood Services,Culture & Sport,011060,Hardwick Park Catering,Supplies and Services,324117,Provisions,21-Sep-2016,5293961431,JR HOLLAND FOODSERVICE,5422,Catering costs - provisions,54.18,0.00,54.18
Neighbourhood Services,Culture & Sport,011060,Hardwick Park Catering,Supplies and Services,324117,Provisions,21-Sep-2016,5293961433,JR HOLLAND FOODSERVICE,5422,Catering costs - provisions,15.40,0.00,15.40
Neighbourhood Services,Culture & Sport,011060,Hardwick Park Catering,Supplies and Services,324117,Provisions,21-Sep-2016,5293961435,BRAKE BROS LTD,5811,Catering costs - provisions,735.48,122.58,612.90
Neighbourhood Services,Culture & Sport,011060,Hardwick Park Catering,Supplies and Services,324117,Provisions,21-Sep-2016,5293961435 - 1,BRAKE BROS LTD,5811,Catering costs - provisions,175.13,,175.13
Neighbourhood Services,Culture & Sport,011060,Hardwick Park Catering,Supplies and Services,324117,Provisions,21-Sep-2016,5293961445,BRAKE BROS LTD,5811,Catering costs - provisions,38.64,6.44,32.20
Neighbourhood Services,Culture & Sport,011060,Hardwick Park Catering,Supplies and Services,324117,Provisions,21-Sep-2016,5293961445 - 1,BRAKE BROS LTD,5811,Catering costs - provisions,111.18,,111.18
Resources,I.C.T. Services,070204,Operations - System & Repairs Team,Supplies and Services,312011,Newspapers Books and Periodicals,21-Sep-2016,5293961451,Amazon UK Marketplace,5942,Books-school library,227.29,0.00,227.29
Resources,I.C.T. Services,070204,Operations - System & Repairs Team,Supplies and Services,304403,Equipment and Materials,21-Sep-2016,5293961455,AMAZON UK RETAIL AMAZO,5999,Other consumables,173.22,0.00,173.22
Regeneration & Economic Development,Economic Development and Housing,030762,Organisational Training & Development,Employees,040149,Recruitment Instruction and Training,21-Sep-2016,5293961463,CITB,8220,Training-all costs,30.00,0.00,30.00
Regeneration & Economic Development,Economic Development and Housing,030762,Organisational Training & Development,Employees,040149,Recruitment Instruction and Training,21-Sep-2016,5293961465,CITB,8220,Training-all costs,30.00,0.00,30.00
Neighbourhood Services,Direct Services,021234,Catering - Locomotion,Supplies and Services,324117,Provisions,21-Sep-2016,5293961469,BRAKE BROS LTD,5811,Catering costs - provisions,229.25,0.00,229.25
Neighbourhood Services,Direct Services,010525,Catering - Green Lane,Supplies and Services,324117,Provisions,21-Sep-2016,5293961509,JR HOLLAND FOODSERVICE,5422,Catering costs - provisions,55.33,0.00,55.33
Children and Adult Services,Childrens Services,088063,Bishop Auckland 0 - 5,Supplies and Services,324117,Provisions,21-Sep-2016,5293961567,ASDA STORES,5411,Catering costs - provisions,11.27,0.00,11.27
Children and Adult Services,Childrens Services,074000,TTF-Attachment and Results,Supplies and Services,304403,Equipment and Materials,21-Sep-2016,5293961569,TESCO DIRECT,5999,Other consumables,38.31,0.00,38.31
Children and Adult Services,Childrens Services,085334,West Rainton Satelite Home,Supplies and Services,304259,Equipment and Materials,21-Sep-2016,5293961609,H TEMPEST LIMITED,7221,Equipment-purchase and rental,19.00,0.00,19.00
Children and Adult Services,Childrens Services,088043,Consett 0 - 5,Supplies and Services,312011,Newspapers Books and Periodicals,21-Sep-2016,5293961631,Amazon EU,5969,Books-school library,22.89,0.00,22.89
Children and Adult Services,Childrens Services,088043,Consett 0 - 5,Supplies and Services,328041,Clothing Uniforms and Laundry,21-Sep-2016,5293961633,ARGOS LTD,5310,Clothing uniforms and laundry,21.99,0.00,21.99
Children and Adult Services,Childrens Services,088043,Consett 0 - 5,Supplies and Services,384999,Miscellaneous Expenses,21-Sep-2016,5293961637,SALLY SALON SERVIC,7230,Other expenses,114.00,0.00,114.00
Resources,I.C.T. Services,069010,Administration,Supplies and Services,312011,Newspapers Books and Periodicals,21-Sep-2016,5293961653,Amazon EU,5969,Books-school library,13.94,0.00,13.94
Resources,I.C.T. Services,069010,Administration,Supplies and Services,312011,Newspapers Books and Periodicals,21-Sep-2016,5293961657,Amazon UK Marketplace,5942,Books-school library,299.00,0.00,299.00
Children and Adult Services,Childrens Services,085801,CDYOS - Support,Supplies and Services,324117,Provisions,21-Sep-2016,5293961693,ASDA HOME SHOPPING,5411,Catering costs - provisions,34.80,0.00,34.80
Children and Adult Services,Childrens Services,085801,CDYOS - Support,Supplies and Services,324117,Provisions,21-Sep-2016,5293961697,ASDA HOME SHOPPING,5411,Catering costs - provisions,-2.00,0.00,-2.00
Neighbourhood Services,Culture & Sport,054235,Bp Auckland Town Hall Cafe,Supplies and Services,324117,Provisions,21-Sep-2016,5293961703,JR HOLLAND FOODSERVICE,5422,Catering costs - provisions,37.44,0.00,37.44
Neighbourhood Services,Culture & Sport,054235,Bp Auckland Town Hall Cafe,Supplies and Services,324117,Provisions,21-Sep-2016,5293961707,JR HOLLAND FOODSERVICE,5422,Catering costs - provisions,-4.34,0.00,-4.34
Neighbourhood Services,Direct Services,021324,Catering - Meadowfield,Supplies and Services,324117,Provisions,21-Sep-2016,5293961715,JR HOLLAND FOODSERVICE,5422,Catering costs - provisions,44.29,0.00,44.29
Neighbourhood Services,Direct Services,021324,Catering - Meadowfield,Supplies and Services,324117,Provisions,21-Sep-2016,5293961717,JR HOLLAND FOODSERVICE,5422,Catering costs - provisions,6.87,0.00,6.87
Neighbourhood Services,Direct Services,021324,Catering - Meadowfield,Supplies and Services,324117,Provisions,21-Sep-2016,5293961721,BRAKE BROS LTD,5811,Catering costs - provisions,61.20,10.20,51.00
Neighbourhood Services,Direct Services,021324,Catering - Meadowfield,Supplies and Services,324117,Provisions,21-Sep-2016,5293961721 - 1,BRAKE BROS LTD,5811,Catering costs - provisions,86.21,,86.21
Children and Adult Services,Childrens Services,088033,Durham 0 - 5,Supplies and Services,312011,Newspapers Books and Periodicals,21-Sep-2016,5293961733,Amazon EU,5969,Books-school library,196.39,0.00,196.39
Neighbourhood Services,Culture & Sport,011086,Positive Futures,Supplies and Services,324117,Provisions,21-Sep-2016,5293961755,W M MORRISON PLC,5411,Catering costs - provisions,23.98,0.00,23.98
Neighbourhood Services,Technical Services,010984,Training and Development,Supplies and Services,352001,Conference Expenses,21-Sep-2016,5293961759,CIM,7392,Conferencesseminars fees etc,130.00,0.00,130.00
Neighbourhood Services,Technical Services,010984,Training and Development,Supplies and Services,352001,Conference Expenses,21-Sep-2016,5293961763,CIM,7392,Conferencesseminars fees etc,130.00,0.00,130.00
Children and Adult Services,Childrens Services,085331,New Lea Childrens Home,Supplies and Services,308011,Furniture,21-Sep-2016,5293961785,BGRP LTD,5712,Furniture repair and replacement,69.98,0.00,69.98
Children and Adult Services,Childrens Services,071404,Laurel Avenue Childrens Centre,Supplies and Services,324117,Provisions,21-Sep-2016,5293961805,TESCO STORES 2371,5411,Catering costs - provisions,20.14,0.00,20.14
Children and Adult Services,Head of Adults,051603,OP/PD Durham & CLS,Supplies and Services,340001,Postages,21-Sep-2016,5293961807,WWW.ROYALMAIL.COM,9402,Postages,32.17,0.00,32.17
Neighbourhood Services,Culture & Sport,010605,Woodhouse Close Leisure Complex,Supplies and Services,324117,Provisions,21-Sep-2016,5293961815,JR HOLLAND FOODSERVICE,5422,Catering costs - provisions,30.39,0.00,30.39
Resources,Financial Services,065166,Finance - Post Entry Training,Employees,040149,Recruitment Instruction and Training,21-Sep-2016,5293961817,WWW.CIPS.ORG,8699,Training-all costs,99.96,0.00,99.96
Regeneration & Economic Development,Economic Development and Housing,030554,International Relations,Supplies and Services,324117,Provisions,21-Sep-2016,5293961847,TESCO STORES 2371,5411,Catering costs - provisions,2.68,0.00,2.68
Children and Adult Services,Childrens Services,085957,Secure Management,Supplies and Services,328041,Clothing Uniforms and Laundry,21-Sep-2016,5303944621,NEW LOOK INTERNET,5621,Clothing uniforms and laundry,8.99,0.00,8.99
Children and Adult Services,Childrens Services,085361,LAC & Permanence Team 1 Aycliffe,Supplies and Services,304259,Equipment and Materials,21-Sep-2016,5362373081,GRO HM PASSPORT OFFICE,9399,Equipment-purchase and rental,-9.25,0.00,-9.25
Regeneration & Economic Development,Economic Development and Housing,030554,International Relations,Supplies and Services,312011,Newspapers Books and Periodicals,22-Sep-2016,5293961389,RELAY 352625PX,5942,Books-school library,0.30,0.00,0.30
Children and Adult Services,Education,071732,Dean Bank Childcare,Income,720130,Fees and Charges,22-Sep-2016,5298476077,HMCOURT-SERVICES.G,9222,Fees-legal,110.00,0.00,110.00
